Local authority department which incurred the expenditure,Service Division,Cost Centre,Summary of the Purpose of Expenditure,Expense Type,Expense Code,Detailed Expense Type,Date of Transaction,Transaction Number,Beneficiary,Merchant Category Number,Merchant Category,Gross Amount,VAT,Net Amount
Children and Young Peoples Services,Head of Childrens Social Care,085341,High Etherley Satelite Home,Supplies and Services,348037,Subsistence E348,01-Jan-2022,000007900596828,FIVE GUYS TEESSIDE,5814,Subsistence,75.80,0.00,75.80
Resources BK0010,Procurement Sales & Business Services,065500,Business Support - Management,Supplies and Services,336005,Advertising E336,01-Jan-2022,000007900596980,FACEBK CXMS39B5B2,7311,Advertising other than for staff,162.88,0.00,162.88
Children and Young Peoples Services,Head of Childrens Social Care,085334,West Rainton Satelite Home,Supplies and Services,384237,Miscellaneous Expenses,01-Jan-2022,000007900596986,JUMP GIANTS NEWCASTLE,7999,Recreational exps outings parties,6.20,0.00,6.20
Children and Young Peoples Services,Head of Childrens Social Care,085334,West Rainton Satelite Home,Supplies and Services,348037,Subsistence E348,01-Jan-2022,000007900596988,MCDONALDS,5812,Subsistence,1.98,0.00,1.98
Children and Young Peoples Services,Head of Childrens Social Care,085334,West Rainton Satelite Home,Supplies and Services,348037,Subsistence E348,01-Jan-2022,000007900596990,MCDONALDS,5812,Subsistence,16.77,0.00,16.77
Regeneration Economy and Growth,Business Durham CL0850,030689,Inward Investment and Aftercare,Supplies and Services,304403,Equipment and Materials,02-Jan-2022,000007900596674,ADOBE CREATIVE CLOUD,5734,Other consumables,49.94,0.00,49.94
Regeneration Economy and Growth,Business Durham CL0850,030689,Inward Investment and Aftercare,Supplies and Services,342222,Computers and Communications,02-Jan-2022,000007900596676,FASTHOSTS INTERNET,4816,Comp hardware purch-network servers,67.20,0.00,67.20
Regeneration Economy and Growth,Business Durham CL0850,030689,Inward Investment and Aftercare,Supplies and Services,342222,Computers and Communications,02-Jan-2022,000007900596678,FASTHOSTS INTERNET,4816,Comp hardware purch-network servers,75.06,0.00,75.06
Children and Young Peoples Services,Head of Childrens Social Care,085341,High Etherley Satelite Home,Supplies and Services,324117,Provisions E324,02-Jan-2022,000007900596680,ASDA STORES,5411,Catering costs - provisions,9.00,0.00,9.00
Children and Young Peoples Services,Head of Childrens Social Care,085341,High Etherley Satelite Home,Supplies and Services,324117,Provisions E324,02-Jan-2022,000007900596682,ASDA STORES,5411,Catering costs - provisions,2.05,0.00,2.05
Children and Young Peoples Services,Head of Childrens Social Care,085341,High Etherley Satelite Home,Supplies and Services,324117,Provisions E324,02-Jan-2022,000007900596684,TESCO STORES 6329,5411,Catering costs - provisions,8.90,0.00,8.90
Regeneration Economy and Growth,Culture Sport and Tourism,030712,VCD - Project Delivery,Supplies and Services,384199,Miscellaneous Expenses,02-Jan-2022,000007900596698,FACEBK 4Q5LPATRH2,7311,Other hired and contracted services,60.00,0.00,60.00
Regeneration Economy and Growth,Culture Sport and Tourism,030712,VCD - Project Delivery,Supplies and Services,384199,Miscellaneous Expenses,02-Jan-2022,000007900596700,MAILCHIMP MISC,5968,Other hired and contracted services,102.72,17.12,85.60
Regeneration Economy and Growth,Culture Sport and Tourism,030712,VCD - Project Delivery,Supplies and Services,384199,Miscellaneous Expenses,02-Jan-2022,000007900596700 - 1,MAILCHIMP MISC,5968,Other hired and contracted services,106.81,,106.81
Children and Young Peoples Services,Head of Early Help Inclusion & Vulnerable Children.,085954,Walworth,Supplies and Services,324117,Provisions E324,02-Jan-2022,000007900596734,TESCO STORES 6329,5411,Catering costs - provisions,47.26,0.00,47.26
Children and Young Peoples Services,Head of Childrens Social Care,085341,High Etherley Satelite Home,Supplies and Services,344033,Telephones,02-Jan-2022,000007900596830,THREE,4814,Telephones general-all costs,10.00,0.00,10.00
Children and Young Peoples Services,Head of Childrens Social Care,085332,Middlestone Moor CU,Supplies and Services,324117,Provisions E324,02-Jan-2022,000007900596940,ASDA SUPERSTORE 4987,5411,Catering costs - provisions,42.47,0.00,42.47
Children and Young Peoples Services,Head of Childrens Social Care,085332,Middlestone Moor CU,Supplies and Services,304999,Equipment and Materials,02-Jan-2022,000007900596942,MICROSOFT XBOX,5816,Misc equipment tools and materials,6.49,0.00,6.49
Children and Young Peoples Services,Head of Childrens Social Care,085332,Middlestone Moor CU,Supplies and Services,304403,Equipment and Materials,02-Jan-2022,000007900596944,CEX LTD,5065,Other consumables,11.95,0.00,11.95
Children and Young Peoples Services,Head of Childrens Social Care,085332,Middlestone Moor CU,Supplies and Services,324117,Provisions E324,02-Jan-2022,000007900596950,SAINSBURYS S/MKTS,5411,Catering costs - provisions,51.89,0.00,51.89
Children and Young Peoples Services,Head of Childrens Social Care,085341,High Etherley Satelite Home,Supplies and Services,324117,Provisions E324,03-Jan-2022,000007900596686,SAINSBURYS S/MKTS,5411,Catering costs - provisions,3.50,0.00,3.50
Regeneration Economy and Growth,Culture Sport and Tourism,030705,Visit County Durham 030705,Supplies and Services,342033,Computers and Communications,03-Jan-2022,000007900596702,FASTHOSTS INTERNET,4816,Computer hardware,7.54,1.26,6.28
Children and Young Peoples Services,Head of Childrens Social Care,085347,Solo Home The Manse,Supplies and Services,384237,Miscellaneous Expenses,03-Jan-2022,000007900596720,JUMP GIANTS NEWCASTLE,7999,Recreational exps outings parties,5.30,0.00,5.30
Children and Young Peoples Services,Head of Childrens Social Care,085347,Solo Home The Manse,Supplies and Services,384237,Miscellaneous Expenses,03-Jan-2022,000007900596722,HTTPS://WWW.JUMPGIANTS,7999,Recreational exps outings parties,13.50,0.00,13.50
Children and Young Peoples Services,Head of Childrens Social Care,085347,Solo Home The Manse,Supplies and Services,348037,Subsistence E348,03-Jan-2022,000007900596724,KFC METROCENTRE FC,5814,Subsistence,6.28,0.00,6.28
Children and Young Peoples Services,Head of Childrens Social Care,085358,Orchard House Sacriston Solo Home,Supplies and Services,344033,Telephones,03-Jan-2022,000007900596772,giffgaff,4814,Telephones general-all costs,10.00,0.00,10.00
Children and Young Peoples Services,Head of Childrens Social Care,085342,16 Hickstead Rise (previously 9 Cedar Ave),Supplies and Services,344033,Telephones,03-Jan-2022,000007900596782,Lebara Mobile Limited,4814,Telephones general-all costs,20.00,0.00,20.00
Neighbourhoods and Climate Change,Environmental Services,026591,C&G - Hardwick Park,Supplies and Services,332047,Printing Stationery and Gen Off Exps,03-Jan-2022,000007900596798,TESCO STORES 2916,5411,Stationery,16.00,0.00,16.00
Children and Young Peoples Services,Head of Childrens Social Care,085331,New Lea Childrens Home,Supplies and Services,324117,Provisions E324,03-Jan-2022,000007900596814,BARRYS BARGAIN STORE,5499,Catering costs - provisions,5.84,0.00,5.84
Children and Young Peoples Services,Head of Childrens Social Care,085331,New Lea Childrens Home,Supplies and Services,324117,Provisions E324,03-Jan-2022,000007900596816,WM MORRISONS STORE,5411,Catering costs - provisions,46.67,0.00,46.67
Children and Young Peoples Services,Head of Childrens Social Care,085331,New Lea Childrens Home,Supplies and Services,348037,Subsistence E348,03-Jan-2022,000007900596818,GREGGS,5812,Subsistence,4.20,0.00,4.20
Children and Young Peoples Services,Head of Childrens Social Care,085551,Short Break Services-Park Hse Sher,Supplies and Services,324117,Provisions E324,03-Jan-2022,000007900596822,TESCO STORES 2371,5411,Catering costs - provisions,8.60,0.00,8.60
Children and Young Peoples Services,Head of Childrens Social Care,085551,Short Break Services-Park Hse Sher,Supplies and Services,324117,Provisions E324,03-Jan-2022,000007900596824,TESCO STORES 2371,5411,Catering costs - provisions,31.30,0.00,31.30
Children and Young Peoples Services,Head of Childrens Social Care,085341,High Etherley Satelite Home,Supplies and Services,304403,Equipment and Materials,03-Jan-2022,000007900596832,AMZNMKTPLACE AMAZON.CO,5999,Other consumables,26.91,4.49,22.42
Children and Young Peoples Services,Head of Childrens Social Care,085342,16 Hickstead Rise (previously 9 Cedar Ave),Supplies and Services,324117,Provisions E324,03-Jan-2022,000007900596846,MARTIN MCCOLL,5499,Catering costs - provisions,28.66,0.00,28.66
Children and Young Peoples Services,Head of Childrens Social Care,085351,Framwellgate Moor CU,Supplies and Services,328041,Clothing uniforms and laundry E328,03-Jan-2022,000007900596914,EBAY COMMERCE UK LTD,5311,Clothing uniforms and laundry,4.99,0.00,4.99
Children and Young Peoples Services,Head of Childrens Social Care,085332,Middlestone Moor CU,Supplies and Services,384199,Miscellaneous Expenses,03-Jan-2022,000007900596952,NUFC www.nufc.co.uk,7941,Other hired and contracted services,23.00,0.00,23.00
Children and Young Peoples Services,Head of Early Help Inclusion & Vulnerable Children.,085962,Aycliffe Secure - Durham,Supplies and Services,304403,Equipment and Materials,03-Jan-2022,000007900596954,AMZNMktplace,5999,Other consumables,21.96,3.66,18.30
Children and Young Peoples Services,Head of Childrens Social Care,085347,Solo Home The Manse,Supplies and Services,348037,Subsistence E348,03-Jan-2022,000007902807496,GRETNA GREEN HOTEL,5813,Subsistence,24.99,0.00,24.99
Children and Young Peoples Services,Head of Childrens Social Care,085347,Solo Home The Manse,Supplies and Services,348037,Subsistence E348,03-Jan-2022,000007902807500,GRETNA GREEN HOTEL,5813,Subsistence,4.50,0.00,4.50
Children and Young Peoples Services,Head of Childrens Social Care,085358,Orchard House Sacriston Solo Home,Supplies and Services,304403,Equipment and Materials,03-Jan-2022,000007902807568,AMZNMKTPLACE AMAZON.CO,5999,Other consumables,5.99,1.00,4.99
Children and Young Peoples Services,Head of Childrens Social Care,085341,High Etherley Satelite Home,Supplies and Services,304403,Equipment and Materials,03-Jan-2022,000007902807744,AMZNMKTPLACE AMAZON.CO,5999,Other consumables,33.85,5.65,28.20
Children and Young Peoples Services,Head of Childrens Social Care,085341,High Etherley Satelite Home,Supplies and Services,304403,Equipment and Materials,03-Jan-2022,000007902807750,AMZNMKTPLACE AMAZON.CO,5999,Other consumables,19.99,3.33,16.66
Children and Young Peoples Services,Head of Early Help Inclusion & Vulnerable Children.,088104,BA/BC/Crook Intensive Family Support Team,Supplies and Services,304259,Equipment and Materials,04-Jan-2022,000007900596716,WWW.THEWORKS.CO.UK,5310,Equipment-purchase and rental,-120.00,0.00,-120.00
Regeneration Economy and Growth,Business Durham CL0850,030689,Inward Investment and Aftercare,Supplies and Services,336005,Advertising E336,04-Jan-2022,000007902807336,Google ADS6853017821,7311,Advertising other than for staff,67.19,0.00,67.19
Regeneration Economy and Growth,Business Durham CL0850,030689,Inward Investment and Aftercare,Supplies and Services,342222,Computers and Communications,04-Jan-2022,000007902807340,FASTHOSTS INTERNET,4816,Comp hardware purch-network servers,7.54,0.00,7.54
Children and Young Peoples Services,Head of Education and Skills,071801,Selby Cottage Childcare Centre,Supplies and Services,324117,Provisions E324,04-Jan-2022,000007902807356,JR HOLLAND FOODSERVICE,5499,Catering costs - provisions,402.22,0.00,402.22
Children and Young Peoples Services,Head of Education and Skills,071801,Selby Cottage Childcare Centre,Supplies and Services,324117,Provisions E324,04-Jan-2022,000007902807360,TESCO STORES 2278,5411,Catering costs - provisions,7.47,0.00,7.47
Children and Young Peoples Services,Head of Childrens Social Care,085357,LAC Bespoke Placements,Supplies and Services,352001,Conference Expenses,04-Jan-2022,000007902807392,Hotel at Booking.com,7011,Conferencesseminars fees etc,905.57,0.00,905.57
Regeneration Economy and Growth,Culture Sport and Tourism,054731,Killhope Lead Mining Centre,Supplies and Services,304403,Equipment and Materials,04-Jan-2022,000007902807416,AMZNMktplace,5999,Other consumables,18.98,3.16,15.82
Regeneration Economy and Growth,Culture Sport and Tourism,030712,VCD - Project Delivery,Supplies and Services,384199,Miscellaneous Expenses,04-Jan-2022,000007902807430,FACEBK 3XRSWATQH2,7311,Other hired and contracted services,9.97,0.00,9.97
Children and Young Peoples Services,Head of Early Help Inclusion & Vulnerable Children.,085956,Lumley,Supplies and Services,304403,Equipment and Materials,04-Jan-2022,000007902807454,AMZNMktplace,5999,Other consumables,8.99,0.00,8.99
Regeneration Economy and Growth,Development and Housing,030544,Rural Employability - Client Engagement,Transport,235057,Public Transport,04-Jan-2022,000007902807490,WWW.GONORTHEAST.CO.UK,4111,Staff travelling,34.00,0.00,34.00
Children and Young Peoples Services,Head of Early Help Inclusion & Vulnerable Children.,085956,Lumley,Supplies and Services,384999,Miscellaneous Expenses,04-Jan-2022,000007902807522,Maccosmetics.co.uk,5977,Other expenses,29.00,0.00,29.00
Children and Young Peoples Services,Head of Early Help Inclusion & Vulnerable Children.,085952,Secure Education,Supplies and Services,324117,Provisions E324,04-Jan-2022,000007902807528,TESCO STORES 6329,5411,Catering costs - provisions,93.29,0.00,93.29
Children and Young Peoples Services,Head of Early Help Inclusion & Vulnerable Children.,074000,National Supporting Families Programme,Transfer Payments,525033,Other,04-Jan-2022,000007902807550,AMZNMktplace,5999,Grants to individuals,22.20,3.70,18.50
Children and Young Peoples Services,Head of Early Help Inclusion & Vulnerable Children.,074000,National Supporting Families Programme,Transfer Payments,525033,Other,04-Jan-2022,000007902807550 - 1,AMZNMktplace,5999,Grants to individuals,0.10,,0.10
Regeneration Economy and Growth,Culture Sport and Tourism,054813,Gala Theatre - Technical,Supplies and Services,304259,Equipment and Materials,04-Jan-2022,000007902807594,WWW.FLINTS.CO.UK,5691,Equipment-purchase and rental,342.00,0.00,342.00
Adult and Health Services,Head of Adults,055202,Support and Recovery,Supplies and Services,304403,Equipment and Materials,04-Jan-2022,000007902807614,AMZNMktplace,5999,Other consumables,27.99,4.67,23.32
Children and Young Peoples Services,Head of Early Help Inclusion & Vulnerable Children.,085957,Secure Management,Supplies and Services,340001,Postages E340,04-Jan-2022,000007902807634,TSB Returns Ltd,4215,Postages,1.75,0.00,1.75
Children and Young Peoples Services,Head of Early Help Inclusion & Vulnerable Children.,085957,Secure Management,Supplies and Services,324117,Provisions E324,04-Jan-2022,000007902807638,SP ISAWITFIRST.COM,5399,Catering costs - provisions,12.99,0.00,12.99
Children and Young Peoples Services,Head of Early Help Inclusion & Vulnerable Children.,085957,Secure Management,Supplies and Services,328041,Clothing uniforms and laundry E328,04-Jan-2022,000007902807642,FEMMELUXE.CO.UK,5691,Clothing uniforms and laundry,25.78,0.00,25.78
Children and Young Peoples Services,Head of Early Help Inclusion & Vulnerable Children.,085957,Secure Management,Supplies and Services,324117,Provisions E324,04-Jan-2022,000007902807648,SHEIN.COM,5399,Catering costs - provisions,50.96,0.00,50.96
Children and Young Peoples Services,Head of Early Help Inclusion & Vulnerable Children.,085957,Secure Management,Supplies and Services,328041,Clothing uniforms and laundry E328,04-Jan-2022,000007902807652,PRETTYLITTLETHING.COM,5691,Clothing uniforms and laundry,66.00,0.00,66.00
Children and Young Peoples Services,Head of Early Help Inclusion & Vulnerable Children.,085957,Secure Management,Supplies and Services,328041,Clothing uniforms and laundry E328,04-Jan-2022,000007902807658,PRETTYLITTLETHING.COM,5691,Clothing uniforms and laundry,27.00,0.00,27.00
Children and Young Peoples Services,Head of Early Help Inclusion & Vulnerable Children.,085957,Secure Management,Supplies and Services,384999,Miscellaneous Expenses,04-Jan-2022,000007902807662,LOOKFANTASTIC.COM,5977,Other expenses,13.85,0.00,13.85
Children and Young Peoples Services,Head of Early Help Inclusion & Vulnerable Children.,085957,Secure Management,Supplies and Services,304999,Equipment and Materials,04-Jan-2022,000007902807668,SUPERDRUG STORES PLC,5912,Misc equipment tools and materials,11.00,0.00,11.00
Children and Young Peoples Services,Head of Early Help Inclusion & Vulnerable Children.,085957,Secure Management,Supplies and Services,304403,Equipment and Materials,04-Jan-2022,000007902807674,AMZNMktplace,5999,Other consumables,28.99,4.83,24.16
Children and Young Peoples Services,Head of Childrens Social Care,085520,Rapid Response Team CYPS,Supplies and Services,384199,Miscellaneous Expenses,04-Jan-2022,000007902807726,EB MANAGING TRANSITIO,7399,Other hired and contracted services,228.51,0.00,228.51
Children and Young Peoples Services,Head of Childrens Social Care,085626,Families First Shildon/Chilton,Supplies and Services,364301,Grants to Voluntary Organisations,04-Jan-2022,000007902807732,MOUNT PLEASANT GARAGE,5541,Hardship,250.00,0.00,250.00
Children and Young Peoples Services,Head of Childrens Social Care,085341,High Etherley Satelite Home,Supplies and Services,304403,Equipment and Materials,04-Jan-2022,000007902807754,AMZNMKTPLACE AMAZON.CO,5999,Other consumables,39.82,6.64,33.18
Children and Young Peoples Services,Head of Childrens Social Care,085333,Coxhoe Satelite Home,Supplies and Services,308011,Furniture,04-Jan-2022,000007902807778,IKEA LTD SHOP ONLINE,5712,Furniture repair and replacement,119.00,0.00,119.00
Children and Young Peoples Services,Head of Childrens Social Care,085333,Coxhoe Satelite Home,Supplies and Services,304259,Equipment and Materials,04-Jan-2022,000007902807782,MANOMANO,5722,Equipment-purchase and rental,249.99,0.00,249.99
Children and Young Peoples Services,Head of Education and Skills,071732,Dean Bank Childcare,Supplies and Services,324117,Provisions E324,04-Jan-2022,000007902807792,ASDA GROCERIES ONLINE,5411,Catering costs - provisions,57.39,0.00,57.39
Children and Young Peoples Services,Head of Education and Skills,071732,Dean Bank Childcare,Supplies and Services,324117,Provisions E324,04-Jan-2022,000007902807796,ASDA GROCERIES ONLINE,5411,Catering costs - provisions,-0.27,0.00,-0.27
Children and Young Peoples Services,Head of Early Help Inclusion & Vulnerable Children.,085957,Secure Management,Supplies and Services,304259,Equipment and Materials,04-Jan-2022,000007902807916,AMZNMktplace,5999,Equipment-purchase and rental,371.70,61.95,309.75
Children and Young Peoples Services,Head of Early Help Inclusion & Vulnerable Children.,085957,Secure Management,Supplies and Services,304259,Equipment and Materials,04-Jan-2022,000007902807916 - 1,AMZNMktplace,5999,Equipment-purchase and rental,0.15,,0.15
Children and Young Peoples Services,Head of Early Help Inclusion & Vulnerable Children.,085957,Secure Management,Premises,108099,Service Repairs and Maintenance,04-Jan-2022,000007902807920,AMZNMktplace,5999,General repairs 108099,274.50,45.80,228.70
Children and Young Peoples Services,Head of Early Help Inclusion & Vulnerable Children.,085957,Secure Management,Premises,108251,Service Repairs and Maintenance,04-Jan-2022,000007902807924,FAST KEY SERVICES LIMI,7399,Alarm and security maintenance,7.33,1.22,6.11
Dedicated Schools Grant BG0015,DSG High Needs Block,079072,English addl lang,Supplies and Services,312009,Newspapers books and periodicals E312,04-Jan-2022,000007902807940,WATERSTONES.COM,5942,Newspapers books and periodicals,39.73,0.00,39.73
Children and Young Peoples Services,Head of Childrens Social Care,085333,Coxhoe Satelite Home,Supplies and Services,324117,Provisions E324,04-Jan-2022,000007902807966,TESCO STORES 2371,5411,Catering costs - provisions,37.29,0.00,37.29
Children and Young Peoples Services,Head of Education and Skills,071802,Louisa Cent Nursery,Supplies and Services,324117,Provisions E324,04-Jan-2022,000007902808018,ASDA SUPERSTORE,5411,Catering costs - provisions,4.22,0.00,4.22
Children and Young Peoples Services,Head of Childrens Social Care,085332,Middlestone Moor CU,Supplies and Services,304403,Equipment and Materials,04-Jan-2022,000007902808056,AMZNMKTPLACE AMAZON.CO,5999,Other consumables,196.95,0.00,196.95
Regeneration Economy and Growth,Culture Sport and Tourism,054233,Bishop Auckland Town Hall Library,Supplies and Services,324117,Provisions E324,04-Jan-2022,000007902808068,HERON FOODS,5411,Catering costs - provisions,17.67,0.00,17.67
Children and Young Peoples Services,Head of Childrens Social Care,085332,Middlestone Moor CU,Supplies and Services,304999,Equipment and Materials,04-Jan-2022,000007902808084,DURHAM CLIMBING CENTRE,7032,Misc equipment tools and materials,12.00,0.00,12.00
Children and Young Peoples Services,Head of Childrens Social Care,085334,West Rainton Satelite Home,Supplies and Services,324117,Provisions E324,04-Jan-2022,000007902808088,TESCO STORES 2371,5411,Catering costs - provisions,124.99,0.00,124.99
Children and Young Peoples Services,Head of Childrens Social Care,085334,West Rainton Satelite Home,Supplies and Services,384237,Miscellaneous Expenses,04-Jan-2022,000007902808100,JUMP GIANTS NEWCASTLE,7999,Recreational exps outings parties,7.75,0.00,7.75
Children and Young Peoples Services,Head of Childrens Social Care,085334,West Rainton Satelite Home,Supplies and Services,384237,Miscellaneous Expenses,04-Jan-2022,000007902808104,JUMP GIANTS NEWCASTLE,7999,Recreational exps outings parties,4.05,0.00,4.05
Children and Young Peoples Services,Head of Childrens Social Care,085334,West Rainton Satelite Home,Supplies and Services,324117,Provisions E324,04-Jan-2022,000007902808108,TESCO STORES 6329,5411,Catering costs - provisions,10.65,0.00,10.65
Children and Young Peoples Services,Head of Early Help Inclusion & Vulnerable Children.,088113,Seaham & Laurel Avenue Family Centre,Supplies and Services,324117,Provisions E324,04-Jan-2022,000007902808206,TESCO STORES 2371,5411,Catering costs - provisions,10.00,0.00,10.00
Neighbourhoods and Climate Change,Partnerships & Community Engagement Div.,060472,Humanitarian Support programme,Supplies and Services,308011,Furniture,04-Jan-2022,000007902808222,SP TERRYS FABRICS,5719,Furniture repair and replacement,334.27,55.71,278.56
Neighbourhoods and Climate Change,Partnerships & Community Engagement Div.,060472,Humanitarian Support programme,Supplies and Services,324117,Provisions E324,04-Jan-2022,000007902808230,ASDA GEORGE COM LEEDS,5411,Catering costs - provisions,230.00,38.33,191.67
Regeneration Economy and Growth,Development and Housing,030770,Durham Advance,Supplies and Services,304403,Equipment and Materials,04-Jan-2022,000007902808264,AMZNMktplace,5999,Other consumables,44.99,7.50,37.49
Regeneration Economy and Growth,Corporate Property and Land,021234,Catering - Locomotion,Supplies and Services,384999,Miscellaneous Expenses,04-Jan-2022,000007902917058,ON A ROLL SANDWICH COM,5199,Other expenses,302.66,0.00,302.66
Regeneration Economy and Growth,Corporate Property and Land,021235,Catering - Wharton Park,Supplies and Services,384999,Miscellaneous Expenses,04-Jan-2022,000007902917066,ON A ROLL SANDWICH COM,5199,Other expenses,169.11,0.00,169.11
Children and Young Peoples Services,Head of Childrens Social Care,085331,New Lea Childrens Home,Supplies and Services,348037,Subsistence E348,04-Jan-2022,000007905649130,TANNERS HALL,5812,Subsistence,24.03,0.00,24.03
Children and Young Peoples Services,Head of Childrens Social Care,085331,New Lea Childrens Home,Supplies and Services,348037,Subsistence E348,04-Jan-2022,000007905649134,MCDONALDS 1555,5814,Subsistence,5.63,0.00,5.63
Children and Young Peoples Services,Head of Education and Skills,071732,Dean Bank Childcare,Supplies and Services,324117,Provisions E324,04-Jan-2022,000007905649302,CO-OP GROUP 010503,5411,Catering costs - provisions,13.95,0.00,13.95
Children and Young Peoples Services,Head of Childrens Social Care,085341,High Etherley Satelite Home,Supplies and Services,324117,Provisions E324,04-Jan-2022,000007905649634,ICELAND FOODS,5411,Catering costs - provisions,150.80,0.00,150.80
Children and Young Peoples Services,Head of Childrens Social Care,085333,Coxhoe Satelite Home,Supplies and Services,328041,Clothing uniforms and laundry E328,04-Jan-2022,000007905649686,ARGOS LTD,5310,Clothing uniforms and laundry,-44.99,0.00,-44.99
Children and Young Peoples Services,Head of Childrens Social Care,085351,Framwellgate Moor CU,Supplies and Services,324117,Provisions E324,04-Jan-2022,000007905649732,SAINSBURY`S S/MKT,5411,Catering costs - provisions,52.63,0.00,52.63
Children and Young Peoples Services,Head of Education and Skills,078550,Discretionary Learning Support,Supplies and Services,304259,Equipment and Materials,04-Jan-2022,000007905649846,AMZNMKTPLACE AMAZON.CO,5999,Equipment-purchase and rental,36.79,6.13,30.66
Children and Young Peoples Services,Head of Childrens Social Care,085333,Coxhoe Satelite Home,Supplies and Services,324117,Provisions E324,04-Jan-2022,000007905649954,CO-OP GROUP 310016,5411,Catering costs - provisions,15.00,0.00,15.00
Children and Young Peoples Services,Head of Childrens Social Care,085332,Middlestone Moor CU,Supplies and Services,348037,Subsistence E348,04-Jan-2022,000007905650064,MCDONALDS,5814,Subsistence,22.96,0.00,22.96
Children and Young Peoples Services,Head of Childrens Social Care,085334,West Rainton Satelite Home,Supplies and Services,328041,Clothing uniforms and laundry E328,04-Jan-2022,000007905650288,ARGOS LTD,5310,Clothing uniforms and laundry,39.99,0.00,39.99
Regeneration Economy and Growth,Development and Housing,030770,Durham Advance,Supplies and Services,328041,Clothing uniforms and laundry E328,04-Jan-2022,000007905650396,ARGOS LTD,5310,Clothing uniforms and laundry,20.00,0.00,20.00
Regeneration Economy and Growth,Corporate Property and Land,021234,Catering - Locomotion,Supplies and Services,324117,Provisions E324,04-Jan-2022,000007905768052,BATLEYS PERTH,5300,Catering costs - provisions,274.32,45.72,228.60
Regeneration Economy and Growth,Corporate Property and Land,021234,Catering - Locomotion,Supplies and Services,324117,Provisions E324,04-Jan-2022,000007905768052 - 1,BATLEYS PERTH,5300,Catering costs - provisions,24.95,,24.95
Regeneration Economy and Growth,Corporate Property and Land,021234,Catering - Locomotion,Supplies and Services,324117,Provisions E324,04-Jan-2022,000007905768056,BATLEYS PERTH,5300,Catering costs - provisions,-178.55,-28.27,-150.28
Regeneration Economy and Growth,Business Durham CL0850,030689,Inward Investment and Aftercare,Supplies and Services,336005,Advertising E336,05-Jan-2022,000007905648856,LINKEDIN-717 8448403,7311,Advertising other than for staff,33.49,0.00,33.49
Regeneration Economy and Growth,Business Durham CL0850,030689,Inward Investment and Aftercare,Supplies and Services,336005,Advertising E336,05-Jan-2022,000007905648864,LINKEDIN-717 9395113,7311,Advertising other than for staff,12.00,0.00,12.00
Children and Young Peoples Services,Head of Education and Skills,071801,Selby Cottage Childcare Centre,Supplies and Services,324117,Provisions E324,05-Jan-2022,000007905648876,JR HOLLAND FOODSERVICE,5499,Catering costs - provisions,156.48,0.00,156.48
Children and Young Peoples Services,Head of Education and Skills,071801,Selby Cottage Childcare Centre,Supplies and Services,324117,Provisions E324,05-Jan-2022,000007905648882,TESCO STORES 2371,5411,Catering costs - provisions,106.32,0.00,106.32
Resources BK0010,Digital and Customer Services,065329,Operations - Primary Support,Supplies and Services,304999,Equipment and Materials,05-Jan-2022,000007905648898,ONEDIRECT UK,5818,Misc equipment tools and materials,136.72,0.00,136.72
Dedicated Schools Grant BG0015,DSG Schools Block,417611,Greenfield Community College 004176 - Technology,Supplies and Services,304403,Equipment and Materials,05-Jan-2022,000007905648902,ASDA GROCERIES ONLINE,5411,Other consumables,100.72,0.00,100.72
Children and Young Peoples Services,Head of Childrens Social Care,085501,Child Care Cases Legal Expenses,Supplies and Services,304403,Equipment and Materials,05-Jan-2022,000007905648936,DARLINGTON BC INTERNET,9399,Other consumables,11.00,0.00,11.00
Children and Young Peoples Services,Head of Childrens Social Care,085501,Child Care Cases Legal Expenses,Supplies and Services,304403,Equipment and Materials,05-Jan-2022,000007905648942,DARLINGTON BC INTERNET,9399,Other consumables,11.00,0.00,11.00
Children and Young Peoples Services,Head of Childrens Social Care,085501,Child Care Cases Legal Expenses,Supplies and Services,304403,Equipment and Materials,05-Jan-2022,000007905648948,DARLINGTON BC INTERNET,9399,Other consumables,11.00,0.00,11.00
Children and Young Peoples Services,Head of Childrens Social Care,085501,Child Care Cases Legal Expenses,Supplies and Services,304403,Equipment and Materials,05-Jan-2022,000007905648954,DARLINGTON BC INTERNET,9399,Other consumables,11.00,0.00,11.00
Neighbourhoods and Climate Change,Environmental Services,010383,C&G - South Street Cleansing,Supplies and Services,304221,Equipment and Materials,05-Jan-2022,000007905648972,AZTEC CHEMICALS LTD,5169,Direct materials,348.24,58.04,290.20
Neighbourhoods and Climate Change,Environmental Services,010383,C&G - South Street Cleansing,Supplies and Services,304221,Equipment and Materials,05-Jan-2022,000007905648982,AZTEC CHEMICALS LTD,5169,Direct materials,381.60,63.60,318.00
Neighbourhoods and Climate Change,Environmental Services,010367,C&G - South Grounds Maintenance,Supplies and Services,304221,Equipment and Materials,05-Jan-2022,000007905649180,S&A BUILDERS MERCHANTS,5211,Direct materials,70.68,0.00,70.68
Children and Young Peoples Services,Head of Early Help Inclusion & Vulnerable Children.,085952,Secure Education,Supplies and Services,304403,Equipment and Materials,05-Jan-2022,000007905649186,WWW.CGPBOOKS.CO.UK,5999,Other consumables,15.55,0.00,15.55
Children and Young Peoples Services,Head of Early Help Inclusion & Vulnerable Children.,085952,Secure Education,Supplies and Services,384999,Miscellaneous Expenses,05-Jan-2022,000007905649190,Amazon.co.uk MA0T71UQ5,5969,Other expenses,13.50,0.00,13.50
Children and Young Peoples Services,Head of Education and Skills,071732,Dean Bank Childcare,Supplies and Services,324117,Provisions E324,05-Jan-2022,000007905649308,ASDA GROCERIES ONLINE,5411,Catering costs - provisions,69.14,0.00,69.14
Children and Young Peoples Services,Head of Education and Skills,071732,Dean Bank Childcare,Supplies and Services,324117,Provisions E324,05-Jan-2022,000007905649314,ASDA GROCERIES ONLINE,5411,Catering costs - provisions,-2.15,0.00,-2.15
Regeneration Economy and Growth,Culture Sport and Tourism,054813,Gala Theatre - Technical,Supplies and Services,304259,Equipment and Materials,05-Jan-2022,000007905649326,PALLETWAYS UK WL,4215,Equipment-purchase and rental,24.00,0.00,24.00
Regeneration Economy and Growth,Culture Sport and Tourism,011277,Technical - Events Delivery,Supplies and Services,304259,Equipment and Materials,05-Jan-2022,000007905649332,SWANFLIGHT.COM,5948,Equipment-purchase and rental,470.81,0.00,470.81
Children and Young Peoples Services,Head of Early Help Inclusion & Vulnerable Children.,085957,Secure Management,Supplies and Services,304403,Equipment and Materials,05-Jan-2022,000007905649392,AMZNMktplace,5999,Other consumables,48.00,8.00,40.00
Children and Young Peoples Services,Head of Early Help Inclusion & Vulnerable Children.,085957,Secure Management,Supplies and Services,324117,Provisions E324,05-Jan-2022,000007905649396,TESCO STORES 6329,5411,Catering costs - provisions,51.10,0.00,51.10
Children and Young Peoples Services,Head of Childrens Social Care,085331,New Lea Childrens Home,Supplies and Services,304403,Equipment and Materials,05-Jan-2022,000007905649482,Stanley,5999,Other consumables,6.00,0.00,6.00
Children and Young Peoples Services,Head of Childrens Social Care,085331,New Lea Childrens Home,Supplies and Services,304403,Equipment and Materials,05-Jan-2022,000007905649488,Stanley,5999,Other consumables,5.00,0.00,5.00
Children and Young Peoples Services,Head of Childrens Social Care,085331,New Lea Childrens Home,Supplies and Services,304999,Equipment and Materials,05-Jan-2022,000007905649490,HOME BARGAINS,5251,Misc equipment tools and materials,11.20,0.00,11.20
Children and Young Peoples Services,Head of Childrens Social Care,085331,New Lea Childrens Home,Supplies and Services,324117,Provisions E324,05-Jan-2022,000007905649496,ASDA SUPERSTORE,5411,Catering costs - provisions,180.98,0.00,180.98
Children and Young Peoples Services,Head of Childrens Social Care,085367,Children Looked After Team 4,Supplies and Services,338045,Services,05-Jan-2022,000007905649604,DARLINGTON BC INTERNET,9399,Legal expenses 338045,11.00,0.00,11.00
Children and Young Peoples Services,Head of Early Help Inclusion & Vulnerable Children.,088108,Spennymoor & Shildon Intensive Family Support Team,Supplies and Services,364301,Grants to Voluntary Organisations,05-Jan-2022,000007905649610,TESCO STORES 6329,5411,Hardship,34.76,0.00,34.76
Children and Young Peoples Services,Head of Childrens Social Care,085341,High Etherley Satelite Home,Supplies and Services,304403,Equipment and Materials,05-Jan-2022,000007905649626,AMZNMktplace,5999,Other consumables,39.99,6.67,33.32
Children and Young Peoples Services,Head of Childrens Social Care,085341,High Etherley Satelite Home,Supplies and Services,304403,Equipment and Materials,05-Jan-2022,000007905649630,AMZNMktplace,5999,Other consumables,12.99,2.17,10.82
Children and Young Peoples Services,Head of Childrens Social Care,085341,High Etherley Satelite Home,Supplies and Services,324117,Provisions E324,05-Jan-2022,000007905649638,ICELAND FOODS,5411,Catering costs - provisions,-11.35,0.00,-11.35
Neighbourhoods and Climate Change,Environmental Services,010367,C&G - South Grounds Maintenance,Supplies and Services,304221,Equipment and Materials,05-Jan-2022,000007905649646,CARRS BILLINGTON SPENN,5599,Direct materials,44.12,0.00,44.12
Regeneration Economy and Growth,Culture Sport and Tourism,010601,Spennymoor Leisure Cr - General,Supplies and Services,304259,Equipment and Materials,05-Jan-2022,000007905649752,SP RLSS UK SHOP,5691,Equipment-purchase and rental,106.32,0.00,106.32
Regeneration Economy and Growth,Culture Sport and Tourism,054399,Local Delivery-Libraries,Supplies and Services,312009,Newspapers books and periodicals E312,05-Jan-2022,000007905649800,Amazon.co.uk AS71G7F25,5969,Newspapers books and periodicals,6.99,0.00,6.99
Children and Young Peoples Services,Head of Early Help Inclusion & Vulnerable Children.,085954,Walworth,Supplies and Services,304259,Equipment and Materials,05-Jan-2022,000007905649900,AMZNMktplace,5999,Equipment-purchase and rental,69.90,11.70,58.20
Children and Young Peoples Services,Head of Childrens Social Care,085351,Framwellgate Moor CU,Supplies and Services,384999,Miscellaneous Expenses,05-Jan-2022,000007905650002,PACE HEALTH CLUB & NUS,7997,Other expenses,10.00,0.00,10.00
Children and Young Peoples Services,Head of Childrens Social Care,085333,Coxhoe Satelite Home,Supplies and Services,324117,Provisions E324,05-Jan-2022,000007905650010,TESCO STORES 2916,5411,Catering costs - provisions,91.99,0.00,91.99
Children and Young Peoples Services,Head of Education and Skills,071802,Louisa Cent Nursery,Supplies and Services,324117,Provisions E324,05-Jan-2022,000007905650016,ASDA SUPERSTORE,5411,Catering costs - provisions,15.75,0.00,15.75
Children and Young Peoples Services,Head of Childrens Social Care,085332,Middlestone Moor CU,Transport,235057,Public Transport,05-Jan-2022,000007905650070,ARRIVA UK BUS,4131,Staff travelling,14.80,0.00,14.80
Children and Young Peoples Services,Head of Childrens Social Care,085332,Middlestone Moor CU,Supplies and Services,324117,Provisions E324,05-Jan-2022,000007905650088,TESCO STORES 2916,5411,Catering costs - provisions,19.78,0.00,19.78
Regeneration Economy and Growth,Culture Sport and Tourism,054233,Bishop Auckland Town Hall Library,Supplies and Services,324117,Provisions E324,05-Jan-2022,000007905650098,HERON FOODS,5411,Catering costs - provisions,2.99,0.00,2.99
Children and Young Peoples Services,Head of Childrens Social Care,085334,West Rainton Satelite Home,Supplies and Services,384237,Miscellaneous Expenses,05-Jan-2022,000007905650202,JUMP GIANTS NEWCASTLE,7999,Recreational exps outings parties,8.80,0.00,8.80
Children and Young Peoples Services,Head of Childrens Social Care,085334,West Rainton Satelite Home,Supplies and Services,384237,Miscellaneous Expenses,05-Jan-2022,000007905650208,JUMP GIANTS NEWCASTLE,7999,Recreational exps outings parties,5.00,0.00,5.00
Neighbourhoods and Climate Change,Environmental Services,031200,North Pennines Core,Third Party Payments,430100,Rendered by Private Contractors,05-Jan-2022,000007905650312,MIDDLETON FORGE,5039,Payments to sub-contractors,32.94,0.00,32.94
Neighbourhoods and Climate Change,Partnerships & Community Engagement Div.,060472,Humanitarian Support programme,Supplies and Services,324117,Provisions E324,05-Jan-2022,000007905650364,WILKO.COM,5399,Catering costs - provisions,223.50,37.25,186.25
Neighbourhoods and Climate Change,Partnerships & Community Engagement Div.,060472,Humanitarian Support programme,Supplies and Services,324117,Provisions E324,05-Jan-2022,000007905650370,ASDA GEORGE COM LEEDS,5411,Catering costs - provisions,246.00,41.00,205.00
Regeneration Economy and Growth,Culture Sport and Tourism,054798,dli Museum - WW1 Education Programme,Supplies and Services,304259,Equipment and Materials,05-Jan-2022,000007908870786,AMZNMKTPLACE AMAZON.CO,5999,Equipment-purchase and rental,24.84,4.14,20.70
Regeneration Economy and Growth,Culture Sport and Tourism,054798,dli Museum - WW1 Education Programme,Supplies and Services,304259,Equipment and Materials,05-Jan-2022,000007908870786 - 1,AMZNMKTPLACE AMAZON.CO,5999,Equipment-purchase and rental,0.03,,0.03
Regeneration Economy and Growth,Culture Sport and Tourism,054798,dli Museum - WW1 Education Programme,Supplies and Services,304259,Equipment and Materials,05-Jan-2022,000007908870794,AMZNMKTPLACE AMAZON.CO,5999,Equipment-purchase and rental,16.58,2.76,13.82
Children and Young Peoples Services,Head of Education and Skills,071732,Dean Bank Childcare,Supplies and Services,324117,Provisions E324,05-Jan-2022,000007908871124,Wm Morrisons Store Pic,5411,Catering costs - provisions,8.00,0.00,8.00
Children and Young Peoples Services,Head of Education and Skills,071732,Dean Bank Childcare,Supplies and Services,304403,Equipment and Materials,05-Jan-2022,000007908871128,AMZNMKTPLACE AMAZON.CO,5999,Other consumables,22.98,0.00,22.98
Children and Young Peoples Services,Head of Childrens Social Care,085331,New Lea Childrens Home,Employees,040149,Recruitment Instruction and Training,05-Jan-2022,000007908871250,THE SALVATION ARMY,8398,Training-all costs,1.00,0.00,1.00
Children and Young Peoples Services,Head of Childrens Social Care,085331,New Lea Childrens Home,Employees,040149,Recruitment Instruction and Training,05-Jan-2022,000007908871254,THE SALVATION ARMY,8398,Training-all costs,3.00,0.00,3.00
Children and Young Peoples Services,Head of Childrens Social Care,085331,New Lea Childrens Home,Employees,040149,Recruitment Instruction and Training,05-Jan-2022,000007908871260,THE SALVATION ARMY,8398,Training-all costs,3.00,0.00,3.00
Children and Young Peoples Services,Head of Childrens Social Care,085367,Children Looked After Team 4,Supplies and Services,338045,Services,05-Jan-2022,000007908871344,Durham County CNCL,9399,Legal expenses 338045,-11.00,0.00,-11.00
Children and Young Peoples Services,Head of Childrens Social Care,085331,New Lea Childrens Home,Supplies and Services,304221,Equipment and Materials,05-Jan-2022,000007908871352,B & Q 1120,5200,Direct materials,20.40,0.00,20.40
Children and Young Peoples Services,Head of Childrens Social Care,085332,Middlestone Moor CU,Supplies and Services,304403,Equipment and Materials,05-Jan-2022,000007908871742,AMZNMKTPLACE AMAZON.CO,5999,Other consumables,27.98,0.00,27.98
Children and Young Peoples Services,Head of Childrens Social Care,085334,West Rainton Satelite Home,Transport,215995,Running Costs of Vehicles,05-Jan-2022,000007908871830,SHELL A167,5541,Vehicle running expenses,55.62,0.00,55.62
Children and Young Peoples Services,Head of Childrens Social Care,085334,West Rainton Satelite Home,Supplies and Services,384999,Miscellaneous Expenses,05-Jan-2022,000007908871844,DEERNESS GYMN ACADEMY,7997,Other expenses,5.00,0.00,5.00
Children and Young Peoples Services,Head of Childrens Social Care,085334,West Rainton Satelite Home,Supplies and Services,348037,Subsistence E348,05-Jan-2022,000007908871848,GRETNA GREEN HOTEL,5813,Subsistence,1.59,0.00,1.59
Children and Young Peoples Services,Head of Childrens Social Care,085334,West Rainton Satelite Home,Supplies and Services,348037,Subsistence E348,05-Jan-2022,000007908871856,GRETNA GREEN HOTEL,5813,Subsistence,24.54,0.00,24.54
Children and Young Peoples Services,Head of Childrens Social Care,085332,Middlestone Moor CU,Supplies and Services,304999,Equipment and Materials,06-Jan-2022,000007905649944,Microsoft Console 1 Mo,5816,Misc equipment tools and materials,7.99,0.00,7.99
Regeneration Economy and Growth,Business Durham CL0850,030689,Inward Investment and Aftercare,Supplies and Services,342033,Computers and Communications,06-Jan-2022,000007908870700,STK Shutterstock,7333,Computer hardware,19.00,0.00,19.00
Children and Young Peoples Services,Head of Education and Skills,071801,Selby Cottage Childcare Centre,Supplies and Services,304403,Equipment and Materials,06-Jan-2022,000007908870710,AMZNMKTPLACE AMAZON.CO,5999,Other consumables,19.14,3.19,15.95
Children and Young Peoples Services,Head of Education and Skills,071801,Selby Cottage Childcare Centre,Supplies and Services,304403,Equipment and Materials,06-Jan-2022,000007908870710 - 1,AMZNMKTPLACE AMAZON.CO,5999,Other consumables,0.03,,0.03
Children and Young Peoples Services,Head of Education and Skills,071801,Selby Cottage Childcare Centre,Supplies and Services,304403,Equipment and Materials,06-Jan-2022,000007908870716,AMZNMKTPLACE AMAZON.CO,5999,Other consumables,22.86,3.81,19.05
Children and Young Peoples Services,Head of Education and Skills,071801,Selby Cottage Childcare Centre,Supplies and Services,304403,Equipment and Materials,06-Jan-2022,000007908870716 - 1,AMZNMKTPLACE AMAZON.CO,5999,Other consumables,0.04,,0.04
Children and Young Peoples Services,Head of Education and Skills,071801,Selby Cottage Childcare Centre,Supplies and Services,324117,Provisions E324,06-Jan-2022,000007908870718,TESCO STORES 2278,5411,Catering costs - provisions,19.25,0.00,19.25
Resources BK0010,Finance & Transactional Services,065176,Quality/Subsidy/Appeals/Training/Support,Supplies and Services,304999,Equipment and Materials,06-Jan-2022,000007908870724,FS TechSmith,5817,Misc equipment tools and materials,40.91,0.00,40.91
Adult and Health Services,Head of Adults,051630,OP/PD Occupational Therapy 051630,Supplies and Services,304403,Equipment and Materials,06-Jan-2022,000007908870728,AMZNMktplace,5999,Other consumables,29.70,5.00,24.70
Dedicated Schools Grant BG0015,DSG Schools Block,110013,The Woodlands 1100 - Primary,Supplies and Services,304403,Equipment and Materials,06-Jan-2022,000007908870736,ASDA GROCERIES ONLINE,5411,Other consumables,98.92,0.00,98.92
Dedicated Schools Grant BG0015,DSG Schools Block,110013,The Woodlands 1100 - Primary,Supplies and Services,304403,Equipment and Materials,06-Jan-2022,000007908870740,ASDA GROCERIES ONLINE,5411,Other consumables,-0.01,0.00,-0.01
Dedicated Schools Grant BG0015,DSG Schools Block,417624,Greenfield Community College 004176 - DFE One Vision Funding,Supplies and Services,304403,Equipment and Materials,06-Jan-2022,000007908870748,NURTUREUK,8299,Other consumables,25.46,0.00,25.46
Regeneration Economy and Growth,Culture Sport and Tourism,011263,Louisa Centre 011263,Supplies and Services,304259,Equipment and Materials,06-Jan-2022,000007908870796,WWW.EXPERTFITNESSUK.CO,5941,Equipment-purchase and rental,56.22,0.00,56.22
Regeneration Economy and Growth,Culture Sport and Tourism,030705,Visit County Durham 030705,Employees,040149,Recruitment Instruction and Training,06-Jan-2022,000007908870816,CIM,8299,Training-all costs,65.00,0.00,65.00
Children and Young Peoples Services,Head of Early Help Inclusion & Vulnerable Children.,085956,Lumley,Supplies and Services,324117,Provisions E324,06-Jan-2022,000007908870914,WELCOME B/KFC,5499,Catering costs - provisions,1.99,0.00,1.99
Children and Young Peoples Services,Head of Early Help Inclusion & Vulnerable Children.,085956,Lumley,Supplies and Services,324117,Provisions E324,06-Jan-2022,000007908870916,WELCOME B/STARBUCKS,5499,Catering costs - provisions,17.05,0.00,17.05
Regeneration Economy and Growth,Culture Sport and Tourism,054233,Bishop Auckland Town Hall Library,Supplies and Services,328041,Clothing uniforms and laundry E328,06-Jan-2022,000007908870998,W BOYES & CO LTD BISHO,5310,Clothing uniforms and laundry,17.10,0.00,17.10
Children and Young Peoples Services,Head of Early Help Inclusion & Vulnerable Children.,085952,Secure Education,Supplies and Services,384999,Miscellaneous Expenses,06-Jan-2022,000007908871022,Amazon.co.uk 8S3NV2ED5,5969,Other expenses,23.64,3.94,19.70
Children and Young Peoples Services,Head of Early Help Inclusion & Vulnerable Children.,085952,Secure Education,Supplies and Services,384999,Miscellaneous Expenses,06-Jan-2022,000007908871024,Amazon.co.uk Y203P2NM5,5969,Other expenses,10.99,1.83,9.16
Children and Young Peoples Services,Head of Early Help Inclusion & Vulnerable Children.,085952,Secure Education,Supplies and Services,304403,Equipment and Materials,06-Jan-2022,000007908871026,AMZNMktplace,5999,Other consumables,12.96,2.16,10.80
Children and Young Peoples Services,Head of Childrens Social Care,085358,Orchard House Sacriston Solo Home,Supplies and Services,324117,Provisions E324,06-Jan-2022,000007908871088,TESCO STORES 6334,5411,Catering costs - provisions,43.15,0.00,43.15
Children and Young Peoples Services,Head of Childrens Social Care,085341,High Etherley Satelite Home,Supplies and Services,324117,Provisions E324,06-Jan-2022,000007908871134,TESCO STORES 6329,5411,Catering costs - provisions,65.22,0.00,65.22
Regeneration Economy and Growth,Development and Housing,030771,Durham Advance Flexible Fund,Transport,235057,Public Transport,06-Jan-2022,000007908871170,WWW.GONORTHEAST.CO.UK,4111,Staff travelling,20.00,0.00,20.00
Regeneration Economy and Growth,Development and Housing,030771,Durham Advance Flexible Fund,Transport,235057,Public Transport,06-Jan-2022,000007908871178,WWW.GONORTHEAST.CO.UK,4111,Staff travelling,17.00,0.00,17.00
Regeneration Economy and Growth,Development and Housing,030771,Durham Advance Flexible Fund,Transport,235057,Public Transport,06-Jan-2022,000007908871182,WWW.GONORTHEAST.CO.UK,4111,Staff travelling,17.00,0.00,17.00
Regeneration Economy and Growth,Development and Housing,030771,Durham Advance Flexible Fund,Transport,235057,Public Transport,06-Jan-2022,000007908871190,WWW.GONORTHEAST.CO.UK,4111,Staff travelling,4.50,0.00,4.50
Regeneration Economy and Growth,Development and Housing,030771,Durham Advance Flexible Fund,Transport,235057,Public Transport,06-Jan-2022,000007908871192,WWW.GONORTHEAST.CO.UK,4111,Staff travelling,4.50,0.00,4.50
Resources BK0010,People & Talent Management,010984,Training and Development,Employees,040149,Recruitment Instruction and Training,06-Jan-2022,000007908871234,PAYPAL INSTITUTION,8398,Training-all costs,"1,836.00",306.00,1530.00
Children and Young Peoples Services,Head of Childrens Social Care,085352,New Childrens Home (previously Tow Law),Supplies and Services,352001,Conference Expenses,06-Jan-2022,000007908871288,Hotel at Booking.com,7011,Conferencesseminars fees etc,630.00,0.00,630.00
Resources BK0010,Legal & Democratic Services,060131,County Records,Supplies and Services,304403,Equipment and Materials,06-Jan-2022,000007908871300,Seasons Gallery & Fra,5999,Other consumables,29.00,0.00,29.00
Children and Young Peoples Services,Head of Childrens Social Care,085551,Short Break Services-Park Hse Sher,Supplies and Services,324117,Provisions E324,06-Jan-2022,000007908871316,B&M 681 - DURHAM,5399,Catering costs - provisions,4.50,0.00,4.50
Children and Young Peoples Services,Head of Childrens Social Care,085333,Coxhoe Satelite Home,Supplies and Services,324117,Provisions E324,06-Jan-2022,000007908871410,ASDA SUPERSTORE 4987,5411,Catering costs - provisions,89.86,0.00,89.86
Children and Young Peoples Services,Central Charges (CYPS),070160,LEA Initiatives,Supplies and Services,342053,Computers and Communications,06-Jan-2022,000007908871474,THEEVENTSCALPLUGINS,5045,Computer software,79.00,0.00,79.00
Children and Young Peoples Services,Central Charges (CYPS),070160,LEA Initiatives,Supplies and Services,342033,Computers and Communications,06-Jan-2022,000007908871480,REGISTRATIONS FOR THE,7372,Computer hardware,25.52,0.00,25.52
Children and Young Peoples Services,Head of Childrens Social Care,085363,Childrens Permanence Team,Supplies and Services,338045,Services,06-Jan-2022,000007908871500,GATESHEAD COUNCIL INT,9399,Legal expenses 338045,22.00,0.00,22.00
Children and Young Peoples Services,Head of Childrens Social Care,085363,Childrens Permanence Team,Supplies and Services,338045,Services,06-Jan-2022,000007908871506,GATESHEAD COUNCIL INT,9399,Legal expenses 338045,22.00,0.00,22.00
Resources BK0010,Digital and Customer Services,065335,School Services - Implementations,Supplies and Services,304303,Equipment and Materials,06-Jan-2022,000007908871520,TOOLSTATION UK,5251,Network for resale,399.80,0.00,399.80
Children and Young Peoples Services,Head of Early Help Inclusion & Vulnerable Children.,085965,Barnard,Supplies and Services,304259,Equipment and Materials,06-Jan-2022,000007908871570,SP STEVEN BROWN ART,5399,Equipment-purchase and rental,369.98,61.66,308.32
Children and Young Peoples Services,Head of Early Help Inclusion & Vulnerable Children.,079581,Emotional Wellbeing Team,Supplies and Services,324117,Provisions E324,06-Jan-2022,000007908871580,ASDA GROCERIES ONLINE,5411,Catering costs - provisions,18.49,0.00,18.49
Children and Young Peoples Services,Head of Early Help Inclusion & Vulnerable Children.,079581,Emotional Wellbeing Team,Supplies and Services,324117,Provisions E324,06-Jan-2022,000007908871586,ASDA GROCERIES ONLINE,5411,Catering costs - provisions,-3.00,0.00,-3.00
Children and Young Peoples Services,Head of Education and Skills,071802,Louisa Cent Nursery,Supplies and Services,324117,Provisions E324,06-Jan-2022,000007908871678,ASDA SUPERSTORE,5411,Catering costs - provisions,6.90,0.00,6.90
Neighbourhoods and Climate Change,Environmental Services,031200,North Pennines Core,Supplies and Services,342033,Computers and Communications,06-Jan-2022,000007908871702,SendinBlue,7372,Computer hardware,27.60,0.00,27.60
Children and Young Peoples Services,Head of Early Help Inclusion & Vulnerable Children.,088107,Wheatley Hill & N. Aycliffe Family Centre,Supplies and Services,324117,Provisions E324,06-Jan-2022,000007908871754,ASDA GROCERIES ONLINE,5411,Catering costs - provisions,84.98,0.00,84.98
Children and Young Peoples Services,Head of Early Help Inclusion & Vulnerable Children.,088107,Wheatley Hill & N. Aycliffe Family Centre,Supplies and Services,324117,Provisions E324,06-Jan-2022,000007908871758,ASDA GROCERIES ONLINE,5411,Catering costs - provisions,-0.02,0.00,-0.02
Regeneration Economy and Growth,Culture Sport and Tourism,054233,Bishop Auckland Town Hall Library,Supplies and Services,324117,Provisions E324,06-Jan-2022,000007908871796,WILKO RETAIL LIMITED,5399,Catering costs - provisions,17.50,0.00,17.50
Regeneration Economy and Growth,Culture Sport and Tourism,054233,Bishop Auckland Town Hall Library,Supplies and Services,324117,Provisions E324,06-Jan-2022,000007908871802,HERON FOODS,5411,Catering costs - provisions,2.39,0.00,2.39
Children and Young Peoples Services,Head of Childrens Social Care,085334,West Rainton Satelite Home,Supplies and Services,384237,Miscellaneous Expenses,06-Jan-2022,000007908871886,JUMP GIANTS NEWCASTLE,7999,Recreational exps outings parties,5.00,0.00,5.00
Children and Young Peoples Services,Head of Childrens Social Care,085334,West Rainton Satelite Home,Supplies and Services,384237,Miscellaneous Expenses,06-Jan-2022,000007908871892,JUMP GIANTS NEWCASTLE,7999,Recreational exps outings parties,5.60,0.00,5.60
Children and Young Peoples Services,Head of Childrens Social Care,085334,West Rainton Satelite Home,Supplies and Services,384237,Miscellaneous Expenses,06-Jan-2022,000007908871894,JUMP GIANTS NEWCASTLE,7999,Recreational exps outings parties,2.50,0.00,2.50
Children and Young Peoples Services,Head of Childrens Social Care,085334,West Rainton Satelite Home,Supplies and Services,324117,Provisions E324,06-Jan-2022,000007908871898,TESCO STORES 6329,5411,Catering costs - provisions,8.15,0.00,8.15
Adult and Health Services,Head of Adults,055310,Positive Journeys (Tudhoe),Supplies and Services,324117,Provisions E324,06-Jan-2022,000007908871900,ASDA SUPERSTORE 4987,5411,Catering costs - provisions,3.00,0.00,3.00
Children and Young Peoples Services,Head of Early Help Inclusion & Vulnerable Children.,088113,Seaham & Laurel Avenue Family Centre,Supplies and Services,324117,Provisions E324,06-Jan-2022,000007908871960,ASDA GROCERIES ONLINE,5411,Catering costs - provisions,146.51,0.00,146.51
Children and Young Peoples Services,Head of Early Help Inclusion & Vulnerable Children.,088113,Seaham & Laurel Avenue Family Centre,Supplies and Services,324117,Provisions E324,06-Jan-2022,000007908871968,ASDA GROCERIES ONLINE,5411,Catering costs - provisions,-17.70,0.00,-17.70
Neighbourhoods and Climate Change,Partnerships & Community Engagement Div.,060472,Humanitarian Support programme,Supplies and Services,324117,Provisions E324,06-Jan-2022,000007908871990,ASDA GEORGE COM LEEDS,5411,Catering costs - provisions,46.50,7.75,38.75
Regeneration Economy and Growth,Corporate Property and Land,030691,Catering - Durham Dales Centre,Supplies and Services,324117,Provisions E324,06-Jan-2022,000007908969374,JR HOLLAND FOODSERVICE,5499,Catering costs - provisions,97.79,0.00,97.79
Regeneration Economy and Growth,Culture Sport and Tourism,054235,Bishop Auckland Town Hall Cafe,Supplies and Services,324117,Provisions E324,06-Jan-2022,000007908969376,JR HOLLAND FOODSERVICE,5499,Catering costs - provisions,419.39,0.00,419.39
Regeneration Economy and Growth,Culture Sport and Tourism,054235,Bishop Auckland Town Hall Cafe,Supplies and Services,324117,Provisions E324,06-Jan-2022,000007908969378,JR HOLLAND FOODSERVICE,5499,Catering costs - provisions,143.13,0.00,143.13
Adult and Health Services,Head of Adults,055643,Hawthorn House LD Respite Unit,Supplies and Services,324117,Provisions E324,06-Jan-2022,000007908969382,JR HOLLAND FOODSERVICE,5499,Catering costs - provisions,7.32,0.00,7.32
Adult and Health Services,Head of Adults,055643,Hawthorn House LD Respite Unit,Supplies and Services,324117,Provisions E324,06-Jan-2022,000007908969384,JR HOLLAND FOODSERVICE,5499,Catering costs - provisions,11.50,0.00,11.50
Neighbourhoods and Climate Change,Environmental Services,011060,C&G - Hardwick Park Catering,Supplies and Services,324117,Provisions E324,06-Jan-2022,000007908969386,JR HOLLAND FOODSERVICE,5499,Catering costs - provisions,22.91,0.00,22.91
Neighbourhoods and Climate Change,Environmental Services,011060,C&G - Hardwick Park Catering,Supplies and Services,324117,Provisions E324,06-Jan-2022,000007908969388,JR HOLLAND FOODSERVICE,5499,Catering costs - provisions,19.32,0.00,19.32
Regeneration Economy and Growth,Corporate Property and Land,021234,Catering - Locomotion,Supplies and Services,324117,Provisions E324,06-Jan-2022,000007908969392,JR HOLLAND FOODSERVICE,5499,Catering costs - provisions,58.34,0.00,58.34
Regeneration Economy and Growth,Culture Sport and Tourism,054812,Gala Theatre - Catering etc,Supplies and Services,324117,Provisions E324,06-Jan-2022,000007908969394,JR HOLLAND FOODSERVICE,5499,Catering costs - provisions,42.73,0.00,42.73
Children and Young Peoples Services,Head of Education and Skills,071801,Selby Cottage Childcare Centre,Supplies and Services,304403,Equipment and Materials,06-Jan-2022,000007913079088,AMZNMKTPLACE AMAZON.CO,5999,Other consumables,19.92,3.32,16.60
Children and Young Peoples Services,Head of Education and Skills,071801,Selby Cottage Childcare Centre,Supplies and Services,304403,Equipment and Materials,06-Jan-2022,000007913079088 - 1,AMZNMKTPLACE AMAZON.CO,5999,Other consumables,0.04,,0.04
Resources BK0010,Digital and Customer Services,065487,ICT Telephony Recharges,Supplies and Services,304403,Equipment and Materials,06-Jan-2022,000007913079104,AMZNMKTPLACE AMAZON.CO,5999,Other consumables,308.50,51.50,257.00
Children and Young Peoples Services,Head of Early Help Inclusion & Vulnerable Children.,085956,Lumley,Supplies and Services,348037,Subsistence E348,06-Jan-2022,000007913079342,MCDONALDS,5814,Subsistence,14.25,0.00,14.25
Children and Young Peoples Services,Head of Early Help Inclusion & Vulnerable Children.,085956,Lumley,Supplies and Services,348037,Subsistence E348,06-Jan-2022,000007913079352,MCDONALDS,5814,Subsistence,13.75,0.00,13.75
Neighbourhoods and Climate Change,Environmental Services,010367,C&G - South Grounds Maintenance,Supplies and Services,304221,Equipment and Materials,06-Jan-2022,000007913079412,SCREWFIX DIRECT,5211,Direct materials,179.88,29.98,149.90
Neighbourhoods and Climate Change,Environmental Services,010367,C&G - South Grounds Maintenance,Supplies and Services,304221,Equipment and Materials,06-Jan-2022,000007913079412 - 1,SCREWFIX DIRECT,5211,Direct materials,126.07,,126.07
Neighbourhoods and Climate Change,Environmental Services,010367,C&G - South Grounds Maintenance,Supplies and Services,304221,Equipment and Materials,06-Jan-2022,000007913079414,SCREWFIX DIRECT,5211,Direct materials,3.29,0.55,2.74
Children and Young Peoples Services,Head of Childrens Social Care,085332,Middlestone Moor CU,Supplies and Services,348037,Subsistence E348,06-Jan-2022,000007913079480,MCDONALDS,5812,Subsistence,27.63,0.00,27.63
Children and Young Peoples Services,Head of Education and Skills,071732,Dean Bank Childcare,Supplies and Services,324117,Provisions E324,06-Jan-2022,000007913079666,SAINSBURYS S/MKTS,5411,Catering costs - provisions,37.23,0.00,37.23
Children and Young Peoples Services,Head of Childrens Social Care,085551,Short Break Services-Park Hse Sher,Supplies and Services,324117,Provisions E324,06-Jan-2022,000007913079906,ALDI 59 774,5411,Catering costs - provisions,78.19,0.00,78.19
Children and Young Peoples Services,Head of Childrens Social Care,085551,Short Break Services-Park Hse Sher,Supplies and Services,308011,Furniture,06-Jan-2022,000007913079908,The Range,5719,Furniture repair and replacement,8.28,0.00,8.28
Resources BK0010,Digital and Customer Services,065335,School Services - Implementations,Supplies and Services,304639,Equipment and Materials,06-Jan-2022,000007913080138,SCREWFIX DIRECT,5211,Technicians-supplies,10.99,0.00,10.99
Children and Young Peoples Services,Head of Childrens Social Care,085332,Middlestone Moor CU,Supplies and Services,324117,Provisions E324,06-Jan-2022,000007913080382,SAINSBURYS SMKT,5411,Catering costs - provisions,11.00,0.00,11.00
Children and Young Peoples Services,Head of Childrens Social Care,085334,West Rainton Satelite Home,Supplies and Services,344033,Telephones,06-Jan-2022,000007913080426,O2 UK PAY & GO,4814,Telephones general-all costs,10.00,0.00,10.00
Children and Young Peoples Services,Head of Childrens Social Care,085334,West Rainton Satelite Home,Supplies and Services,324117,Provisions E324,06-Jan-2022,000007913080458,WM MORRISONS STORE,5411,Catering costs - provisions,3.25,0.00,3.25
Children and Young Peoples Services,Head of Childrens Social Care,085334,West Rainton Satelite Home,Supplies and Services,324117,Provisions E324,06-Jan-2022,000007913080464,WM MORRISONS STORE,5411,Catering costs - provisions,3.00,0.00,3.00
Children and Young Peoples Services,Head of Childrens Social Care,085334,West Rainton Satelite Home,Supplies and Services,324117,Provisions E324,06-Jan-2022,000007913080470,WM MORRISONS STORE,5411,Catering costs - provisions,1.25,0.00,1.25
Children and Young Peoples Services,Head of Childrens Social Care,085551,Short Break Services-Park Hse Sher,Supplies and Services,324117,Provisions E324,06-Jan-2022,000007913080580,ICELAND FOODS,5411,Catering costs - provisions,121.65,0.00,121.65
Regeneration Economy and Growth,Corporate Property and Land,030691,Catering - Durham Dales Centre,Supplies and Services,324117,Provisions E324,06-Jan-2022,000007913222532,BATLEYS PERTH,5300,Catering costs - provisions,58.02,9.67,48.35
Regeneration Economy and Growth,Corporate Property and Land,030691,Catering - Durham Dales Centre,Supplies and Services,324117,Provisions E324,06-Jan-2022,000007913222532 - 1,BATLEYS PERTH,5300,Catering costs - provisions,57.50,,57.50
Neighbourhoods and Climate Change,Environmental Services,011060,C&G - Hardwick Park Catering,Supplies and Services,324117,Provisions E324,06-Jan-2022,000007913222542,BATLEYS PERTH,5300,Catering costs - provisions,235.74,39.29,196.45
Neighbourhoods and Climate Change,Environmental Services,011060,C&G - Hardwick Park Catering,Supplies and Services,324117,Provisions E324,06-Jan-2022,000007913222542 - 1,BATLEYS PERTH,5300,Catering costs - provisions,179.76,,179.76
Regeneration Economy and Growth,Corporate Property and Land,021235,Catering - Wharton Park,Supplies and Services,384999,Miscellaneous Expenses,06-Jan-2022,000007913222546,G M PACKAGING UK LIMIT,5046,Other expenses,71.16,0.00,71.16
Regeneration Economy and Growth,Culture Sport and Tourism,054812,Gala Theatre - Catering etc,Supplies and Services,384999,Miscellaneous Expenses,06-Jan-2022,000007913222550,G M PACKAGING UK LIMIT,5046,Other expenses,167.59,0.00,167.59
Children and Young Peoples Services,Head of Childrens Social Care,085358,Orchard House Sacriston Solo Home,Supplies and Services,372009,Subscriptions E372,07-Jan-2022,000007908871084,NETFLIX.COM,4899,Subscriptions 372009,13.99,0.00,13.99
Children and Young Peoples Services,Head of Early Help Inclusion & Vulnerable Children.,085957,Secure Management,Supplies and Services,328041,Clothing uniforms and laundry E328,07-Jan-2022,000007908871202,Nike GBP,5655,Clothing uniforms and laundry,147.36,0.00,147.36
Children and Young Peoples Services,Central Charges (CYPS),070160,LEA Initiatives,Supplies and Services,342053,Computers and Communications,07-Jan-2022,000007908871486,THEEVENTSCALPLUGINS,5045,Computer software,2.17,0.00,2.17
Children and Young Peoples Services,Central Charges (CYPS),070160,LEA Initiatives,Supplies and Services,342033,Computers and Communications,07-Jan-2022,000007908871490,REGISTRATIONS FOR THE,7372,Computer hardware,0.70,0.00,0.70
Children and Young Peoples Services,Head of Childrens Social Care,085611,Families First Stanley,Supplies and Services,364340,Grants to Voluntary Organisations,07-Jan-2022,000007913079068,WWW.GONORTHEAST.CO.UK,4111,Contact expenses,5.30,0.00,5.30
Children and Young Peoples Services,Head of Childrens Social Care,085611,Families First Stanley,Supplies and Services,364340,Grants to Voluntary Organisations,07-Jan-2022,000007913079072,WWW.GONORTHEAST.CO.UK,4111,Contact expenses,5.30,0.00,5.30
Children and Young Peoples Services,Head of Education and Skills,071801,Selby Cottage Childcare Centre,Supplies and Services,304403,Equipment and Materials,07-Jan-2022,000007913079090,AMZNMktplace,5999,Other consumables,23.98,0.00,23.98
Children and Young Peoples Services,Head of Education and Skills,071801,Selby Cottage Childcare Centre,Supplies and Services,304999,Equipment and Materials,07-Jan-2022,000007913079092,HOME BARGAINS,5251,Misc equipment tools and materials,150.57,0.00,150.57
Resources BK0010,Digital and Customer Services,011105,Customer Access Points,Supplies and Services,304999,Equipment and Materials,07-Jan-2022,000007913079108,ONEDIRECT UK,5818,Misc equipment tools and materials,113.98,0.00,113.98
Resources BK0010,Digital and Customer Services,065432,Web Development Group,Supplies and Services,342033,Computers and Communications,07-Jan-2022,000007913079110,WPMU DEV INCSUBFEE.COM,7372,Computer hardware,14.09,0.00,14.09
Dedicated Schools Grant BG0015,DSG Schools Block,417611,Greenfield Community College 004176 - Technology,Supplies and Services,304403,Equipment and Materials,07-Jan-2022,000007913079134,AMZNMktplace,5999,Other consumables,17.40,2.92,14.48
Dedicated Schools Grant BG0015,DSG Schools Block,417604,Greenfield Community College 004176 - Geography,Supplies and Services,332047,Printing Stationery and Gen Off Exps,07-Jan-2022,000007913079138,AMZNMktplace,5999,Stationery,16.44,2.74,13.70
Regeneration Economy and Growth,Culture Sport and Tourism,054820,Gala Theatre - Overheads,Supplies and Services,304252,Equipment and Materials,07-Jan-2022,000007913079178,AMZNMktplace,5999,Equipment-repairsserviceinsurance,12.99,2.17,10.82
Regeneration Economy and Growth,Culture Sport and Tourism,054820,Gala Theatre - Overheads,Supplies and Services,304259,Equipment and Materials,07-Jan-2022,000007913079180,AMZNMktplace,5999,Equipment-purchase and rental,7.99,1.33,6.66
Children and Young Peoples Services,Head of Education and Skills,078100,Curric and Professional Development 078100,Supplies and Services,342033,Computers and Communications,07-Jan-2022,000007913079228,STK Shutterstock,7333,Computer hardware,22.80,0.00,22.80
Adult and Health Services,Head of Adults,055302,Durham Pathways,Supplies and Services,384999,Miscellaneous Expenses,07-Jan-2022,000007913079256,SMYTHS TOYS DURHAM,5945,Other expenses,59.96,0.00,59.96
Children and Young Peoples Services,Head of Childrens Social Care,085357,LAC Bespoke Placements,Supplies and Services,304999,Equipment and Materials,07-Jan-2022,000007913079270,YPS BIRTLEYS HIDDEN GE,6513,Misc equipment tools and materials,"2,800.00",0.00,2800.00
Regeneration Economy and Growth,Development and Housing,031623,Rough Sleeping,Transport,235073,Public Transport,07-Jan-2022,000007913079296,Airpay 60817816-Blueli,4121,Travel-clients/students/children,42.05,0.00,42.05
Regeneration Economy and Growth,Development and Housing,031623,Rough Sleeping,Transport,235073,Public Transport,07-Jan-2022,000007913079298,Airpay 60819672-Blueli,4121,Travel-clients/students/children,42.65,0.00,42.65
Regeneration Economy and Growth,Development and Housing,031623,Rough Sleeping,Supplies and Services,352001,Conference Expenses,07-Jan-2022,000007913079302,TRAVELODGE,3615,Conferencesseminars fees etc,98.48,0.00,98.48
Children and Young Peoples Services,Head of Childrens Social Care,085341,High Etherley Satelite Home,Supplies and Services,324117,Provisions E324,07-Jan-2022,000007913079312,TESCO STORES 6329,5411,Catering costs - provisions,70.28,0.00,70.28
Children and Young Peoples Services,Head of Childrens Social Care,085341,High Etherley Satelite Home,Supplies and Services,324117,Provisions E324,07-Jan-2022,000007913079318,TESCO STORES 6329,5411,Catering costs - provisions,25.95,0.00,25.95
Neighbourhoods and Climate Change,Environmental Services,010367,C&G - South Grounds Maintenance,Supplies and Services,304221,Equipment and Materials,07-Jan-2022,000007913079418,CARRS BILLINGTON SPENN,5599,Direct materials,95.52,15.92,79.60
Neighbourhoods and Climate Change,Environmental Services,010367,C&G - South Grounds Maintenance,Supplies and Services,304221,Equipment and Materials,07-Jan-2022,000007913079418 - 1,CARRS BILLINGTON SPENN,5599,Direct materials,195.03,,195.03
Neighbourhoods and Climate Change,Environmental Services,010367,C&G - South Grounds Maintenance,Supplies and Services,304221,Equipment and Materials,07-Jan-2022,000007913079420,SCREWFIX DIRECT,5211,Direct materials,24.98,0.00,24.98
Children and Young Peoples Services,Head of Childrens Social Care,085347,Solo Home The Manse,Supplies and Services,384237,Miscellaneous Expenses,07-Jan-2022,000007913079492,JUMP GIANTS NEWCASTLE,7999,Recreational exps outings parties,5.00,0.00,5.00
Children and Young Peoples Services,Head of Childrens Social Care,085347,Solo Home The Manse,Supplies and Services,384237,Miscellaneous Expenses,07-Jan-2022,000007913079496,JUMP GIANTS NEWCASTLE,7999,Recreational exps outings parties,8.10,0.00,8.10
Children and Young Peoples Services,Head of Childrens Social Care,085347,Solo Home The Manse,Supplies and Services,348037,Subsistence E348,07-Jan-2022,000007913079498,BREWERS FAYRE 41517810,5812,Subsistence,39.64,0.00,39.64
Children and Young Peoples Services,Head of Childrens Social Care,085347,Solo Home The Manse,Transport,215995,Running Costs of Vehicles,07-Jan-2022,000007913079502,JET SHILDON,5541,Vehicle running expenses,20.01,0.00,20.01
Children and Young Peoples Services,Head of Early Help Inclusion & Vulnerable Children.,085952,Secure Education,Supplies and Services,304403,Equipment and Materials,07-Jan-2022,000007913079548,AMZNMktplace,5999,Other consumables,7.03,1.17,5.86
Children and Young Peoples Services,Head of Childrens Social Care,085358,Orchard House Sacriston Solo Home,Supplies and Services,324117,Provisions E324,07-Jan-2022,000007913079620,ASDA GROCERIES ONLINE,5411,Catering costs - provisions,243.72,0.00,243.72
Children and Young Peoples Services,Head of Childrens Social Care,085358,Orchard House Sacriston Solo Home,Supplies and Services,324117,Provisions E324,07-Jan-2022,000007913079624,ASDA GROCERIES ONLINE,5411,Catering costs - provisions,-10.75,0.00,-10.75
Children and Young Peoples Services,Head of Childrens Social Care,085342,16 Hickstead Rise (previously 9 Cedar Ave),Supplies and Services,324117,Provisions E324,07-Jan-2022,000007913079650,PREZZEE/GB6B873E32,5399,Catering costs - provisions,20.00,0.00,20.00
Children and Young Peoples Services,Head of Early Help Inclusion & Vulnerable Children.,085957,Secure Management,Supplies and Services,324117,Provisions E324,07-Jan-2022,000007913079738,TESCO STORES 6329,5411,Catering costs - provisions,82.41,0.00,82.41
Children and Young Peoples Services,Head of Childrens Social Care,085551,Short Break Services-Park Hse Sher,Supplies and Services,324117,Provisions E324,07-Jan-2022,000007913079910,J FREEMAN & SONS LTD,5499,Catering costs - provisions,130.64,0.00,130.64
Children and Young Peoples Services,Head of Childrens Social Care,085551,Short Break Services-Park Hse Sher,Supplies and Services,324117,Provisions E324,07-Jan-2022,000007913079912,JR HOLLAND FOODSERVICE,5499,Catering costs - provisions,144.44,0.00,144.44
Children and Young Peoples Services,Head of Childrens Social Care,085621,Families First Aycliffe,Supplies and Services,364301,Grants to Voluntary Organisations,07-Jan-2022,000007913079928,AMZNMKTPLACE AMAZON.CO,5999,Hardship,13.00,2.17,10.83
Children and Young Peoples Services,Head of Childrens Social Care,085621,Families First Aycliffe,Supplies and Services,364301,Grants to Voluntary Organisations,07-Jan-2022,000007913079932,AMZNMKTPLACE AMAZON.CO,5999,Hardship,13.00,2.17,10.83
Children and Young Peoples Services,Head of Childrens Social Care,085621,Families First Aycliffe,Supplies and Services,364301,Grants to Voluntary Organisations,07-Jan-2022,000007913079936,ARGOS LTD,5310,Hardship,13.00,0.00,13.00
Children and Young Peoples Services,Head of Childrens Social Care,085341,High Etherley Satelite Home,Supplies and Services,348037,Subsistence E348,07-Jan-2022,000007913079946,iZ Mr Chippy,5812,Subsistence,35.40,0.00,35.40
Children and Young Peoples Services,Head of Childrens Social Care,085341,High Etherley Satelite Home,Supplies and Services,348037,Subsistence E348,07-Jan-2022,000007913079948,COSTA COFFEE,5814,Subsistence,9.10,0.00,9.10
Children and Young Peoples Services,Head of Childrens Social Care,085341,High Etherley Satelite Home,Supplies and Services,348037,Subsistence E348,07-Jan-2022,000007913079950,COSTA COFFEE,5814,Subsistence,4.25,0.00,4.25
Neighbourhoods and Climate Change,Environmental Services,010367,C&G - South Grounds Maintenance,Supplies and Services,304221,Equipment and Materials,07-Jan-2022,000007913079960,WWW.TUDORENVIRONMENTAL,5261,Direct materials,314.69,0.00,314.69
Regeneration Economy and Growth,Corporate Property and Land,020041,Bldg Serv - Business Development - General,Supplies and Services,304259,Equipment and Materials,07-Jan-2022,000007913079974,M`BROUGH CCL-TEL PARK,9399,Equipment-purchase and rental,0.30,0.05,0.25
Regeneration Economy and Growth,Corporate Property and Land,020041,Bldg Serv - Business Development - General,Supplies and Services,304259,Equipment and Materials,07-Jan-2022,000007913079974 - 1,M`BROUGH CCL-TEL PARK,9399,Equipment-purchase and rental,3.30,,3.30
Children and Young Peoples Services,Head of Childrens Social Care,085333,Coxhoe Satelite Home,Supplies and Services,304403,Equipment and Materials,07-Jan-2022,000007913079982,SumUp Gary Bolton Be,5999,Other consumables,480.00,0.00,480.00
Children and Young Peoples Services,Head of Childrens Social Care,085333,Coxhoe Satelite Home,Supplies and Services,324117,Provisions E324,07-Jan-2022,000007913079986,TESCO STORES 2371,5411,Catering costs - provisions,128.06,0.00,128.06
Children and Young Peoples Services,Head of Childrens Social Care,085333,Coxhoe Satelite Home,Supplies and Services,324117,Provisions E324,07-Jan-2022,000007913079988,TESCO STORES 2371,5411,Catering costs - provisions,78.05,0.00,78.05
Children and Young Peoples Services,Head of Childrens Social Care,085333,Coxhoe Satelite Home,Supplies and Services,308011,Furniture,07-Jan-2022,000007913079990,DUNELM LTD,5714,Furniture repair and replacement,246.20,0.00,246.20
Children and Young Peoples Services,Head of Childrens Social Care,085333,Coxhoe Satelite Home,Supplies and Services,308011,Furniture,07-Jan-2022,000007913079994,DUNELM LTD,5714,Furniture repair and replacement,9.85,0.00,9.85
Children and Young Peoples Services,Head of Childrens Social Care,085351,Framwellgate Moor CU,Supplies and Services,324117,Provisions E324,07-Jan-2022,000007913080018,ASDA GROCERIES ONLINE,5411,Catering costs - provisions,41.87,0.00,41.87
Children and Young Peoples Services,Head of Childrens Social Care,085351,Framwellgate Moor CU,Supplies and Services,324117,Provisions E324,07-Jan-2022,000007913080024,ASDA GROCERIES ONLINE,5411,Catering costs - provisions,50.33,0.00,50.33
Children and Young Peoples Services,Head of Childrens Social Care,085351,Framwellgate Moor CU,Supplies and Services,324117,Provisions E324,07-Jan-2022,000007913080030,ASDA GROCERIES ONLINE,5411,Catering costs - provisions,-0.01,0.00,-0.01
Children and Young Peoples Services,Head of Early Help Inclusion & Vulnerable Children.,088102,Consett & Stanley Intensive Family Support Team,Supplies and Services,340001,Postages E340,07-Jan-2022,000007913080110,POST OFFICE COUNTER,9402,Postages,6.85,0.00,6.85
Children and Young Peoples Services,Head of Early Help Inclusion & Vulnerable Children.,085957,Secure Management,Premises,108251,Service Repairs and Maintenance,07-Jan-2022,000007913080184,Barriers Direct,5399,Alarm and security maintenance,7.18,1.20,5.98
Children and Young Peoples Services,Head of Childrens Social Care,085378,Young Persons Service Team 3,Supplies and Services,338045,Services,07-Jan-2022,000007913080216,CALDERDALE MBC,9399,Legal expenses 338045,13.00,0.00,13.00
Children and Young Peoples Services,Head of Childrens Social Care,085333,Coxhoe Satelite Home,Supplies and Services,324117,Provisions E324,07-Jan-2022,000007913080294,B&M 681 - DURHAM,5399,Catering costs - provisions,10.00,0.00,10.00
Children and Young Peoples Services,Head of Childrens Social Care,085333,Coxhoe Satelite Home,Supplies and Services,324117,Provisions E324,07-Jan-2022,000007913080298,TESCO STORES 5970,5411,Catering costs - provisions,10.60,0.00,10.60
Children and Young Peoples Services,Head of Childrens Social Care,085333,Coxhoe Satelite Home,Supplies and Services,304403,Equipment and Materials,07-Jan-2022,000007913080300,AMZNMktplace,5999,Other consumables,8.99,0.00,8.99
Children and Young Peoples Services,Head of Childrens Social Care,085333,Coxhoe Satelite Home,Supplies and Services,304259,Equipment and Materials,07-Jan-2022,000007913080302,SPORTSDIRECT 264,5941,Equipment-purchase and rental,211.29,0.00,211.29
Children and Young Peoples Services,Head of Education and Skills,071802,Louisa Cent Nursery,Supplies and Services,324117,Provisions E324,07-Jan-2022,000007913080320,ASDA GROCERIES ONLINE,5411,Catering costs - provisions,214.86,0.00,214.86
Children and Young Peoples Services,Head of Education and Skills,071802,Louisa Cent Nursery,Supplies and Services,324117,Provisions E324,07-Jan-2022,000007913080324,ASDA GROCERIES ONLINE,5411,Catering costs - provisions,-3.06,0.00,-3.06
Children and Young Peoples Services,Head of Childrens Social Care,085332,Middlestone Moor CU,Supplies and Services,304403,Equipment and Materials,07-Jan-2022,000007913080378,AMZNMktplace,5999,Other consumables,16.70,0.00,16.70
Children and Young Peoples Services,Head of Childrens Social Care,085332,Middlestone Moor CU,Supplies and Services,348037,Subsistence E348,07-Jan-2022,000007913080418,KFC BILLINGHAM,5814,Subsistence,21.76,0.00,21.76
Children and Young Peoples Services,Head of Childrens Social Care,085334,West Rainton Satelite Home,Supplies and Services,348037,Subsistence E348,07-Jan-2022,000007913080430,Deanos Italian Restaur,5812,Subsistence,40.25,0.00,40.25
Children and Young Peoples Services,Head of Childrens Social Care,085334,West Rainton Satelite Home,Supplies and Services,324117,Provisions E324,07-Jan-2022,000007913080432,WM MORRISONS STORE,5411,Catering costs - provisions,5.65,0.00,5.65
Adult and Health Services,Head of Adults,055310,Positive Journeys (Tudhoe),Supplies and Services,324117,Provisions E324,07-Jan-2022,000007913080494,ASDA SUPERSTORE 4987,5411,Catering costs - provisions,3.38,0.00,3.38
Children and Young Peoples Services,Head of Childrens Social Care,085334,West Rainton Satelite Home,Supplies and Services,304403,Equipment and Materials,07-Jan-2022,000007913080548,CLARENDONS,5947,Other consumables,17.55,0.00,17.55
Children and Young Peoples Services,Head of Childrens Social Care,085551,Short Break Services-Park Hse Sher,Supplies and Services,308011,Furniture,07-Jan-2022,000007913080584,BAILEY BLINDS,5714,Furniture repair and replacement,500.00,0.00,500.00
Neighbourhoods and Climate Change,Partnerships & Community Engagement Div.,060472,Humanitarian Support programme,Supplies and Services,324117,Provisions E324,07-Jan-2022,000007913080628,ASDA GEORGE COM LEEDS,5411,Catering costs - provisions,-4.50,0.00,-4.50
Neighbourhoods and Climate Change,Partnerships & Community Engagement Div.,060472,Humanitarian Support programme,Supplies and Services,324117,Provisions E324,07-Jan-2022,000007913080630,ASDA GEORGE COM LEEDS,5411,Catering costs - provisions,-4.50,0.00,-4.50
Regeneration Economy and Growth,Corporate Property and Land,030691,Catering - Durham Dales Centre,Supplies and Services,324117,Provisions E324,07-Jan-2022,000007913222534,JR HOLLAND FOODSERVICE,5499,Catering costs - provisions,117.34,0.00,117.34
Adult and Health Services,Head of Adults,055643,Hawthorn House LD Respite Unit,Supplies and Services,324117,Provisions E324,07-Jan-2022,000007913222536,JR HOLLAND FOODSERVICE,5499,Catering costs - provisions,3.25,0.00,3.25
Adult and Health Services,Head of Adults,055643,Hawthorn House LD Respite Unit,Supplies and Services,324117,Provisions E324,07-Jan-2022,000007913222538,JR HOLLAND FOODSERVICE,5499,Catering costs - provisions,12.88,0.00,12.88
Adult and Health Services,Head of Adults,055643,Hawthorn House LD Respite Unit,Supplies and Services,324117,Provisions E324,07-Jan-2022,000007913222540,JR HOLLAND FOODSERVICE,5499,Catering costs - provisions,23.40,0.00,23.40
Neighbourhoods and Climate Change,Environmental Services,011060,C&G - Hardwick Park Catering,Supplies and Services,324117,Provisions E324,07-Jan-2022,000007913222544,JR HOLLAND FOODSERVICE,5499,Catering costs - provisions,36.13,0.00,36.13
Regeneration Economy and Growth,Corporate Property and Land,021235,Catering - Wharton Park,Supplies and Services,324117,Provisions E324,07-Jan-2022,000007913222548,JR HOLLAND FOODSERVICE,5499,Catering costs - provisions,18.75,0.00,18.75
Regeneration Economy and Growth,Culture Sport and Tourism,054812,Gala Theatre - Catering etc,Supplies and Services,324117,Provisions E324,07-Jan-2022,000007913222552,JR HOLLAND FOODSERVICE,5499,Catering costs - provisions,66.08,0.00,66.08
Children and Young Peoples Services,Head of Childrens Social Care,085369,Care Leavers Team 1,Supplies and Services,364354,Grants to Voluntary Organisations,07-Jan-2022,000007918065762,TVLICENSING.CO.UK,7392,Supervised Spend - Setting Up Home Allowance,159.00,0.00,159.00
Regeneration Economy and Growth,Business Durham CL0850,030689,Inward Investment and Aftercare,Supplies and Services,336005,Advertising E336,08-Jan-2022,000007913079036,LINKEDIN-719 1998273,7311,Advertising other than for staff,104.41,0.00,104.41
Children and Young Peoples Services,Head of Education and Skills,071801,Selby Cottage Childcare Centre,Supplies and Services,304999,Equipment and Materials,08-Jan-2022,000007913079096,Amazon Prime 8606H2P85,5968,Misc equipment tools and materials,7.99,0.00,7.99
Regeneration Economy and Growth,Culture Sport and Tourism,030712,VCD - Project Delivery,Supplies and Services,384199,Miscellaneous Expenses,08-Jan-2022,000007913079190,PAYPAL WEBALON,5817,Other hired and contracted services,5.78,0.00,5.78
Children and Young Peoples Services,Head of Childrens Social Care,085342,16 Hickstead Rise (previously 9 Cedar Ave),Supplies and Services,324117,Provisions E324,08-Jan-2022,000007913079214,TESCO STORES 2916,5411,Catering costs - provisions,60.49,0.00,60.49
Children and Young Peoples Services,Head of Childrens Social Care,085341,High Etherley Satelite Home,Supplies and Services,324117,Provisions E324,08-Jan-2022,000007913079324,TESCO STORES 6329,5411,Catering costs - provisions,51.00,0.00,51.00
Children and Young Peoples Services,Head of Childrens Social Care,085341,High Etherley Satelite Home,Supplies and Services,328041,Clothing uniforms and laundry E328,08-Jan-2022,000007913079330,POUNDLAND LTD 1554,5310,Clothing uniforms and laundry,13.25,0.00,13.25
Children and Young Peoples Services,Head of Childrens Social Care,085332,Middlestone Moor CU,Supplies and Services,324117,Provisions E324,08-Jan-2022,000007913079486,TESCO STORES 6329,5411,Catering costs - provisions,81.20,0.00,81.20
Children and Young Peoples Services,Head of Childrens Social Care,085342,16 Hickstead Rise (previously 9 Cedar Ave),Transport,215995,Running Costs of Vehicles,08-Jan-2022,000007913079658,JET CHILTON,5541,Vehicle running expenses,2.40,0.00,2.40
Children and Young Peoples Services,Head of Early Help Inclusion & Vulnerable Children.,085957,Secure Management,Supplies and Services,324117,Provisions E324,08-Jan-2022,000007913079740,TESCO STORES 6329,5411,Catering costs - provisions,90.79,0.00,90.79
Children and Young Peoples Services,Head of Childrens Social Care,085331,New Lea Childrens Home,Supplies and Services,304999,Equipment and Materials,08-Jan-2022,000007913079846,HOME BARGAINS,5251,Misc equipment tools and materials,59.76,0.00,59.76
Children and Young Peoples Services,Head of Childrens Social Care,085331,New Lea Childrens Home,Supplies and Services,324117,Provisions E324,08-Jan-2022,000007913079850,CO-OP GROUP 070125,5411,Catering costs - provisions,29.13,0.00,29.13
Children and Young Peoples Services,Head of Childrens Social Care,085331,New Lea Childrens Home,Supplies and Services,324117,Provisions E324,08-Jan-2022,000007913079852,PPOINT_ MASEFIELD NEWS,5499,Catering costs - provisions,7.60,0.00,7.60
Children and Young Peoples Services,Head of Childrens Social Care,085551,Short Break Services-Park Hse Sher,Supplies and Services,324117,Provisions E324,08-Jan-2022,000007913079914,CO-OP GROUP 010486,5411,Catering costs - provisions,4.00,0.00,4.00
Children and Young Peoples Services,Head of Childrens Social Care,085351,Framwellgate Moor CU,Supplies and Services,324117,Provisions E324,08-Jan-2022,000007913080028,SAINSBURY`S S/MKT,5411,Catering costs - provisions,58.18,0.00,58.18
Children and Young Peoples Services,Head of Childrens Social Care,085333,Coxhoe Satelite Home,Supplies and Services,324117,Provisions E324,08-Jan-2022,000007913080304,GEORGE BOLAM (FOODS) L,5499,Catering costs - provisions,20.49,0.00,20.49
Children and Young Peoples Services,Head of Childrens Social Care,085332,Middlestone Moor CU,Supplies and Services,348037,Subsistence E348,08-Jan-2022,000007913080384,MCDONALDS,5814,Subsistence,11.09,0.00,11.09
Resources BK0010,Procurement Sales & Business Services,065500,Business Support - Management,Supplies and Services,304259,Equipment and Materials,08-Jan-2022,000007913080482,APPLE.COM/BILL,5735,Equipment-purchase and rental,0.79,0.00,0.79
Resources BK0010,Procurement Sales & Business Services,065500,Business Support - Management,Employees,040149,Recruitment Instruction and Training,08-Jan-2022,000007913080484,CREATIVE_FED,8699,Training-all costs,25.00,0.00,25.00
Regeneration Economy and Growth,Business Durham CL0850,030689,Inward Investment and Aftercare,Supplies and Services,304999,Equipment and Materials,09-Jan-2022,000007913079040,MAILCHIMP MISC,5968,Misc equipment tools and materials,78.09,0.00,78.09
Children and Young Peoples Services,Head of Childrens Social Care,085341,High Etherley Satelite Home,Supplies and Services,384237,Miscellaneous Expenses,09-Jan-2022,000007913079050,4MOTION DARLINGTON,7999,Recreational exps outings parties,8.50,0.00,8.50
Children and Young Peoples Services,Head of Childrens Social Care,085341,High Etherley Satelite Home,Supplies and Services,384237,Miscellaneous Expenses,09-Jan-2022,000007913079056,4MOTION DARLINGTON,7999,Recreational exps outings parties,0.70,0.00,0.70
Children and Young Peoples Services,Head of Childrens Social Care,085341,High Etherley Satelite Home,Supplies and Services,384237,Miscellaneous Expenses,09-Jan-2022,000007913079060,HTTPS://WWW.DURHAMKART,7999,Recreational exps outings parties,25.00,0.00,25.00
Children and Young Peoples Services,Head of Childrens Social Care,085341,High Etherley Satelite Home,Supplies and Services,348037,Subsistence E348,09-Jan-2022,000007913079062,SUBWAY @ MFG DRAGONVIL,5814,Subsistence,7.29,0.00,7.29
Children and Young Peoples Services,Head of Childrens Social Care,085341,High Etherley Satelite Home,Supplies and Services,324117,Provisions E324,09-Jan-2022,000007913079066,TESCO STORES 6329,5411,Catering costs - provisions,17.54,0.00,17.54
Regeneration Economy and Growth,Transport and Contracted Services,032225,Bus Shelter Advertising,Supplies and Services,384999,Miscellaneous Expenses,09-Jan-2022,000007913079112,Amazon.co.uk UL3EP7H85,5969,Other expenses,19.92,3.32,16.60
Regeneration Economy and Growth,Transport and Contracted Services,032225,Bus Shelter Advertising,Supplies and Services,384999,Miscellaneous Expenses,09-Jan-2022,000007913079112 - 1,Amazon.co.uk UL3EP7H85,5969,Other expenses,0.04,,0.04
Dedicated Schools Grant BG0015,DSG Schools Block,417611,Greenfield Community College 004176 - Technology,Supplies and Services,304403,Equipment and Materials,09-Jan-2022,000007913079140,Amazon.co.uk 9L91L5ED5,5969,Other consumables,26.98,4.50,22.48
Children and Young Peoples Services,Head of Education and Skills,078100,Curric and Professional Development 078100,Supplies and Services,304403,Equipment and Materials,09-Jan-2022,000007913079232,ADOBE PRODUCTS,5734,Other consumables,25.28,0.00,25.28
Children and Young Peoples Services,Head of Early Help Inclusion & Vulnerable Children.,085956,Lumley,Supplies and Services,348037,Subsistence E348,09-Jan-2022,000007913079356,Just Eat,5814,Subsistence,57.30,0.00,57.30
Children and Young Peoples Services,Head of Childrens Social Care,085331,New Lea Childrens Home,Transport,235057,Public Transport,09-Jan-2022,000007913079442,TT2 LTD,4784,Staff travelling,1.90,0.00,1.90
Children and Young Peoples Services,Head of Childrens Social Care,085347,Solo Home The Manse,Supplies and Services,328041,Clothing uniforms and laundry E328,09-Jan-2022,000007913079506,Footasylum Limited,5651,Clothing uniforms and laundry,9.99,0.00,9.99
Children and Young Peoples Services,Head of Childrens Social Care,085347,Solo Home The Manse,Supplies and Services,384237,Miscellaneous Expenses,09-Jan-2022,000007913079510,JUMP GIANTS NEWCASTLE,7999,Recreational exps outings parties,5.00,0.00,5.00
Children and Young Peoples Services,Head of Childrens Social Care,085347,Solo Home The Manse,Supplies and Services,384237,Miscellaneous Expenses,09-Jan-2022,000007913079512,JUMP GIANTS NEWCASTLE,7999,Recreational exps outings parties,2.50,0.00,2.50
Children and Young Peoples Services,Head of Childrens Social Care,085347,Solo Home The Manse,Supplies and Services,348037,Subsistence E348,09-Jan-2022,000007913079514,KFC METROCENTRE FC,5814,Subsistence,17.27,0.00,17.27
Children and Young Peoples Services,Head of Childrens Social Care,085347,Solo Home The Manse,Supplies and Services,348037,Subsistence E348,09-Jan-2022,000007913079518,GREGGS,5812,Subsistence,2.50,0.00,2.50
Children and Young Peoples Services,Head of Education and Skills,071732,Dean Bank Childcare,Supplies and Services,304259,Equipment and Materials,09-Jan-2022,000007913079672,Amazon Music MC1NJ0ZU5,5735,Equipment-purchase and rental,14.99,0.00,14.99
Regeneration Economy and Growth,Culture Sport and Tourism,054813,Gala Theatre - Technical,Supplies and Services,304259,Equipment and Materials,09-Jan-2022,000007913079680,Amazon.co.uk EB8A09KJ5,5969,Equipment-purchase and rental,39.95,0.00,39.95
Regeneration Economy and Growth,Culture Sport and Tourism,054813,Gala Theatre - Technical,Supplies and Services,304259,Equipment and Materials,09-Jan-2022,000007913079684,AMZNMktplace,5999,Equipment-purchase and rental,29.07,0.00,29.07
Children and Young Peoples Services,Head of Early Help Inclusion & Vulnerable Children.,085957,Secure Management,Supplies and Services,324117,Provisions E324,09-Jan-2022,000007913079742,TESCO STORES 6329,5411,Catering costs - provisions,67.85,0.00,67.85
Children and Young Peoples Services,Head of Childrens Social Care,085331,New Lea Childrens Home,Transport,235057,Public Transport,09-Jan-2022,000007913079854,TT2 LTD,4784,Staff travelling,1.90,0.00,1.90
Children and Young Peoples Services,Head of Childrens Social Care,085341,High Etherley Satelite Home,Supplies and Services,324117,Provisions E324,09-Jan-2022,000007913079952,MARTIN MCCOLL,5499,Catering costs - provisions,21.47,0.00,21.47
Children and Young Peoples Services,Head of Childrens Social Care,085341,High Etherley Satelite Home,Supplies and Services,324117,Provisions E324,09-Jan-2022,000007913079954,MARTIN MCCOLL,5499,Catering costs - provisions,13.29,0.00,13.29
Children and Young Peoples Services,Head of Childrens Social Care,085342,16 Hickstead Rise (previously 9 Cedar Ave),Supplies and Services,372009,Subscriptions E372,09-Jan-2022,000007913079980,NETFLIX.COM,4899,Subscriptions 372009,13.99,0.00,13.99
Regeneration Economy and Growth,Culture Sport and Tourism,054399,Local Delivery-Libraries,Supplies and Services,312009,Newspapers books and periodicals E312,09-Jan-2022,000007913080090,Amazon.co.uk HK0F83325,5969,Newspapers books and periodicals,23.48,0.00,23.48
Children and Young Peoples Services,Head of Education and Skills,078550,Discretionary Learning Support,Supplies and Services,304259,Equipment and Materials,09-Jan-2022,000007913080112,SMARTY CO UK,4814,Equipment-purchase and rental,6.00,0.00,6.00
Children and Young Peoples Services,Head of Early Help Inclusion & Vulnerable Children.,085957,Secure Management,Supplies and Services,384302,Miscellaneous Expenses,09-Jan-2022,000007913080186,Microsoft Ultimate 1 M,5816,Activity expenses,10.99,1.83,9.16
Children and Young Peoples Services,Head of Childrens Social Care,085332,Middlestone Moor CU,Supplies and Services,348037,Subsistence E348,09-Jan-2022,000007913080252,cuccina,5814,Subsistence,5.00,0.00,5.00
Children and Young Peoples Services,Head of Childrens Social Care,085332,Middlestone Moor CU,Supplies and Services,348037,Subsistence E348,09-Jan-2022,000007913080254,cuccina,5814,Subsistence,23.80,0.00,23.80
Children and Young Peoples Services,Head of Childrens Social Care,085333,Coxhoe Satelite Home,Supplies and Services,324117,Provisions E324,09-Jan-2022,000007913080308,TESCO STORES 2371,5411,Catering costs - provisions,32.42,0.00,32.42
Children and Young Peoples Services,Head of Childrens Social Care,085333,Coxhoe Satelite Home,Supplies and Services,304221,Equipment and Materials,09-Jan-2022,000007913080310,B & Q 1343,5200,Direct materials,7.35,0.00,7.35
Children and Young Peoples Services,Head of Childrens Social Care,085333,Coxhoe Satelite Home,Supplies and Services,304259,Equipment and Materials,09-Jan-2022,000007913080314,SPORTSDIRECT 264,5941,Equipment-purchase and rental,51.13,0.00,51.13
Neighbourhoods and Climate Change,Environmental Services,031200,North Pennines Core,Supplies and Services,304999,Equipment and Materials,09-Jan-2022,000007913080360,123 REG LTD,5968,Misc equipment tools and materials,14.39,0.00,14.39
Children and Young Peoples Services,Head of Childrens Social Care,085551,Short Break Services-Park Hse Sher,Supplies and Services,304403,Equipment and Materials,09-Jan-2022,000007913080588,AMZNMktplace,5999,Other consumables,6.49,0.00,6.49
Neighbourhoods and Climate Change,Partnerships & Community Engagement Div.,060472,Humanitarian Support programme,Supplies and Services,324117,Provisions E324,09-Jan-2022,000007913080634,WILKO RETAIL LIMITED,5399,Catering costs - provisions,69.80,11.63,58.17
Neighbourhoods and Climate Change,Partnerships & Community Engagement Div.,060472,Humanitarian Support programme,Supplies and Services,324117,Provisions E324,09-Jan-2022,000007913080636,ASDA STORES LTD 4313,5411,Catering costs - provisions,214.50,35.75,178.75
Neighbourhoods and Climate Change,Partnerships & Community Engagement Div.,060472,Humanitarian Support programme,Supplies and Services,308011,Furniture,09-Jan-2022,000007913080638,The Range,5719,Furniture repair and replacement,207.34,34.56,172.78
Regeneration Economy and Growth,Business Durham CL0850,030694,Plexus 2,Supplies and Services,304999,Equipment and Materials,09-Jan-2022,000007913080670,Amazon Prime 7F8KF2X15,5968,Misc equipment tools and materials,7.99,0.00,7.99
Children and Young Peoples Services,Head of Childrens Social Care,085347,Solo Home The Manse,Supplies and Services,348037,Subsistence E348,09-Jan-2022,000007918064992,GRETNA GREEN HOTEL,5813,Subsistence,4.50,0.00,4.50
Children and Young Peoples Services,Head of Childrens Social Care,085347,Solo Home The Manse,Supplies and Services,348037,Subsistence E348,09-Jan-2022,000007918064998,GRETNA GREEN HOTEL,5813,Subsistence,6.34,0.00,6.34
Children and Young Peoples Services,Head of Early Help Inclusion & Vulnerable Children.,085957,Secure Management,Supplies and Services,304405,Equipment and Materials,09-Jan-2022,000007918065746,AMZNMKTPLACE AMAZON.CO,5999,Medical supplies,63.84,10.64,53.20
Children and Young Peoples Services,Head of Early Help Inclusion & Vulnerable Children.,085957,Secure Management,Supplies and Services,304405,Equipment and Materials,09-Jan-2022,000007918065746 - 1,AMZNMKTPLACE AMAZON.CO,5999,Medical supplies,0.04,,0.04
Adult and Health Services,Head of Adults,055643,Hawthorn House LD Respite Unit,Supplies and Services,324117,Provisions E324,09-Jan-2022,000007918191890,BATLEYS PERTH,5300,Catering costs - provisions,69.48,11.58,57.90
Adult and Health Services,Head of Adults,055643,Hawthorn House LD Respite Unit,Supplies and Services,324117,Provisions E324,09-Jan-2022,000007918191890 - 1,BATLEYS PERTH,5300,Catering costs - provisions,206.76,,206.76
Regeneration Economy and Growth,Business Durham CL0850,030689,Inward Investment and Aftercare,Supplies and Services,304999,Equipment and Materials,10-Jan-2022,000007913079044,MAILCHIMP MISC,5968,Misc equipment tools and materials,2.15,0.00,2.15
Resources BK0010,Digital and Customer Services,065432,Web Development Group,Supplies and Services,342033,Computers and Communications,10-Jan-2022,000007913079114,WPMU DEV INCSUBFEE.COM,7372,Computer hardware,0.39,0.00,0.39
Regeneration Economy and Growth,Culture Sport and Tourism,054813,Gala Theatre - Technical,Supplies and Services,304259,Equipment and Materials,10-Jan-2022,000007913079688,SPROUTVIDEO LLC,7399,Equipment-purchase and rental,147.91,0.00,147.91
Regeneration Economy and Growth,Culture Sport and Tourism,054813,Gala Theatre - Technical,Supplies and Services,304259,Equipment and Materials,10-Jan-2022,000007913079692,SPROUTVIDEO LLC,7399,Equipment-purchase and rental,4.07,0.00,4.07
Regeneration Economy and Growth,Business Durham CL0850,030689,Inward Investment and Aftercare,Third Party Payments,430100,Rendered by Private Contractors,10-Jan-2022,000007918064786,BLS monday.com,7399,Payments to sub-contractors,148.80,0.00,148.80
Children and Young Peoples Services,Head of Education and Skills,071801,Selby Cottage Childcare Centre,Supplies and Services,324117,Provisions E324,10-Jan-2022,000007918064804,B&M 228 - CHESTER-LE-S,5399,Catering costs - provisions,15.67,0.00,15.67
Regeneration Economy and Growth,Transport and Contracted Services,032250,Traffic Signals and UTMC 032250,Supplies and Services,332047,Printing Stationery and Gen Off Exps,10-Jan-2022,000007918064812,WWW.RYMAN.CO.UK,5943,Stationery,22.00,0.00,22.00
Resources BK0010,Digital and Customer Services,065481,Technical Services 065481,Employees,040149,Recruitment Instruction and Training,10-Jan-2022,000007918064816,Pluralsight,8299,Training-all costs,-231.98,0.00,-231.98
Dedicated Schools Grant BG0015,DSG Schools Block,417611,Greenfield Community College 004176 - Technology,Supplies and Services,304403,Equipment and Materials,10-Jan-2022,000007918064830,AMZNMktplace,5999,Other consumables,4.30,0.72,3.58
Dedicated Schools Grant BG0015,DSG Schools Block,417611,Greenfield Community College 004176 - Technology,Supplies and Services,304403,Equipment and Materials,10-Jan-2022,000007918064834,AMZNMktplace,5999,Other consumables,145.00,24.17,120.83
Children and Young Peoples Services,Head of Education and Skills,075024,Durham Directions,Supplies and Services,304403,Equipment and Materials,10-Jan-2022,000007918064856,AMZNMktplace,5999,Other consumables,30.95,5.16,25.79
Regeneration Economy and Growth,Culture Sport and Tourism,011207,Physical Activity 011207,Employees,040149,Recruitment Instruction and Training,10-Jan-2022,000007918064872,PAYPAL LEISUREMEDI,5942,Training-all costs,67.00,0.00,67.00
Children and Young Peoples Services,Head of Childrens Social Care,085357,LAC Bespoke Placements,Transport,235057,Public Transport,10-Jan-2022,000007918064926,Hotel at Booking.com,7011,Staff travelling,"2,690.30",0.00,2690.30
Children and Young Peoples Services,Head of Early Help Inclusion & Vulnerable Children.,085956,Lumley,Supplies and Services,304999,Equipment and Materials,10-Jan-2022,000007918064960,Amazon Prime F72JM60P5,5968,Misc equipment tools and materials,7.99,0.00,7.99
Children and Young Peoples Services,Head of Early Help Inclusion & Vulnerable Children.,085952,Secure Education,Supplies and Services,324117,Provisions E324,10-Jan-2022,000007918065018,TESCO STORES 6329,5411,Catering costs - provisions,96.53,0.00,96.53
Neighbourhoods and Climate Change,Environmental Services,010367,C&G - South Grounds Maintenance,Supplies and Services,304999,Equipment and Materials,10-Jan-2022,000007918065112,GRALANDS WOODWORK SUPP,5251,Misc equipment tools and materials,80.00,0.00,80.00
Regeneration Economy and Growth,Development and Housing,030771,Durham Advance Flexible Fund,Transport,235057,Public Transport,10-Jan-2022,000007918065210,WWW.GONORTHEAST.CO.UK,4111,Staff travelling,17.00,0.00,17.00
Regeneration Economy and Growth,Development and Housing,030771,Durham Advance Flexible Fund,Transport,235057,Public Transport,10-Jan-2022,000007918065216,WWW.GONORTHEAST.CO.UK,4111,Staff travelling,34.00,0.00,34.00
Neighbourhoods and Climate Change,Environmental Services,031238,North Pennines - Tees Swale,Supplies and Services,304999,Equipment and Materials,10-Jan-2022,000007918065264,AMZNMktplace,5999,Misc equipment tools and materials,4.99,0.83,4.16
Neighbourhoods and Climate Change,Environmental Services,031238,North Pennines - Tees Swale,Supplies and Services,304999,Equipment and Materials,10-Jan-2022,000007918065268,OWL BARN,5947,Misc equipment tools and materials,63.50,0.00,63.50
Children and Young Peoples Services,Head of Childrens Social Care,085331,New Lea Childrens Home,Supplies and Services,304403,Equipment and Materials,10-Jan-2022,000007918065292,AMZNMktplace,5999,Other consumables,12.94,0.00,12.94
Dedicated Schools Grant BG0015,DSG Schools Block,418516,Belmont Community School 004185 - Non Curriculum,Premises,145023,Cleaning and Domestic Supplies,10-Jan-2022,000007918065362,AMZNMktplace,5999,Cleaning and domestic materials,57.96,9.66,48.30
Dedicated Schools Grant BG0015,DSG Schools Block,418516,Belmont Community School 004185 - Non Curriculum,Premises,145023,Cleaning and Domestic Supplies,10-Jan-2022,000007918065362 - 1,AMZNMktplace,5999,Cleaning and domestic materials,0.04,,0.04
Children and Young Peoples Services,Head of Childrens Social Care,085364,Children Looked After Team 1,Supplies and Services,340001,Postages E340,10-Jan-2022,000007918065368,POST OFFICE COUNTER,9402,Postages,2.36,0.00,2.36
Children and Young Peoples Services,Head of Childrens Social Care,085520,Rapid Response Team CYPS,Supplies and Services,384199,Miscellaneous Expenses,10-Jan-2022,000007918065372,EB MANAGING TRANSITIO,7399,Other hired and contracted services,25.39,0.00,25.39
Children and Young Peoples Services,Head of Early Help Inclusion & Vulnerable Children.,088105,W/Close and Willington Family Centre,Supplies and Services,304259,Equipment and Materials,10-Jan-2022,000007918065378,AMZNMKTPLACE AMAZON.CO,5999,Equipment-purchase and rental,16.95,2.83,14.12
Children and Young Peoples Services,Head of Early Help Inclusion & Vulnerable Children.,088105,W/Close and Willington Family Centre,Supplies and Services,304259,Equipment and Materials,10-Jan-2022,000007918065380,AMZNMKTPLACE AMAZON.CO,5999,Equipment-purchase and rental,18.99,3.17,15.82
Children and Young Peoples Services,Head of Early Help Inclusion & Vulnerable Children.,071670,Willington Childrens Centre,Supplies and Services,304259,Equipment and Materials,10-Jan-2022,000007918065386,AMZNMKTPLACE AMAZON.CO,5999,Equipment-purchase and rental,13.99,2.33,11.66
Children and Young Peoples Services,Head of Early Help Inclusion & Vulnerable Children.,088105,W/Close and Willington Family Centre,Supplies and Services,384302,Miscellaneous Expenses,10-Jan-2022,000007918065392,AMZNMKTPLACE AMAZON.CO,5999,Activity expenses,25.98,4.33,21.65
Neighbourhoods and Climate Change,Environmental Services,010367,C&G - South Grounds Maintenance,Supplies and Services,304999,Equipment and Materials,10-Jan-2022,000007918065402,Snowballs,5251,Misc equipment tools and materials,22.51,0.00,22.51
Neighbourhoods and Climate Change,Environmental Services,010367,C&G - South Grounds Maintenance,Supplies and Services,304999,Equipment and Materials,10-Jan-2022,000007918065408,Harelaw sawmill delive,5251,Misc equipment tools and materials,257.23,0.00,257.23
Children and Young Peoples Services,Head of Education and Skills,071802,Louisa Cent Nursery,Supplies and Services,324117,Provisions E324,10-Jan-2022,000007918065462,ASDA SUPERSTORE,5411,Catering costs - provisions,3.50,0.00,3.50
Children and Young Peoples Services,Head of Childrens Social Care,085333,Coxhoe Satelite Home,Supplies and Services,324117,Provisions E324,10-Jan-2022,000007918065470,TESCO STORES 2371,5411,Catering costs - provisions,96.07,0.00,96.07
Children and Young Peoples Services,Head of Childrens Social Care,085333,Coxhoe Satelite Home,Supplies and Services,324117,Provisions E324,10-Jan-2022,000007918065476,TESCO STORES 2371,5411,Catering costs - provisions,21.55,0.00,21.55
Children and Young Peoples Services,Head of Education and Skills,071732,Dean Bank Childcare,Supplies and Services,324117,Provisions E324,10-Jan-2022,000007918065544,ASDA GROCERIES ONLINE,5411,Catering costs - provisions,50.91,0.00,50.91
Children and Young Peoples Services,Head of Education and Skills,071732,Dean Bank Childcare,Supplies and Services,324117,Provisions E324,10-Jan-2022,000007918065546,ASDA GROCERIES ONLINE,5411,Catering costs - provisions,-1.35,0.00,-1.35
Regeneration Economy and Growth,Culture Sport and Tourism,054399,Local Delivery-Libraries,Supplies and Services,312009,Newspapers books and periodicals E312,10-Jan-2022,000007918065612,Amazon.co.uk EN1MF26J5,5969,Newspapers books and periodicals,9.99,0.00,9.99
Resources BK0010,Digital and Customer Services,065335,School Services - Implementations,Supplies and Services,304639,Equipment and Materials,10-Jan-2022,000007918065662,WWW.ALIEXPRESS.COM,5964,Technicians-supplies,41.59,0.00,41.59
Children and Young Peoples Services,Head of Early Help Inclusion & Vulnerable Children.,085965,Barnard,Premises,108251,Service Repairs and Maintenance,10-Jan-2022,000007918065736,AMZNMktplace,5999,Alarm and security maintenance,43.92,7.32,36.60
Children and Young Peoples Services,Head of Early Help Inclusion & Vulnerable Children.,085957,Secure Management,Supplies and Services,304259,Equipment and Materials,10-Jan-2022,000007918065738,THE TOWEL SHOP,5699,Equipment-purchase and rental,169.98,0.00,169.98
Children and Young Peoples Services,Head of Early Help Inclusion & Vulnerable Children.,085957,Secure Management,Premises,108251,Service Repairs and Maintenance,10-Jan-2022,000007918065740,FAST KEY SERVICES LIMI,7399,Alarm and security maintenance,10.32,1.72,8.60
Resources BK0010,Legal & Democratic Services,067801,Registrars,Supplies and Services,340001,Postages E340,10-Jan-2022,000007918065758,ROYAL MAIL ONLINE SHOP,9402,Postages,51.72,0.00,51.72
Children and Young Peoples Services,Head of Early Help Inclusion & Vulnerable Children.,088110,Easington & Peterlee Intensive Family Support Team,Supplies and Services,364301,Grants to Voluntary Organisations,10-Jan-2022,000007918065772,TESCO STORE 2638,5411,Hardship,194.45,0.00,194.45
Regeneration Economy and Growth,Development and Housing,030554,International Relations 030554,Supplies and Services,304403,Equipment and Materials,10-Jan-2022,000007918065926,AMZNMktplace,5999,Other consumables,14.95,2.49,12.46
Children and Young Peoples Services,Head of Childrens Social Care,085332,Middlestone Moor CU,Supplies and Services,324117,Provisions E324,10-Jan-2022,000007918065952,COOPLANDS BAKERY,5462,Catering costs - provisions,8.00,0.00,8.00
Children and Young Peoples Services,Head of Childrens Social Care,085332,Middlestone Moor CU,Supplies and Services,324117,Provisions E324,10-Jan-2022,000007918065956,ASDA SUPERSTORE 4987,5411,Catering costs - provisions,16.89,0.00,16.89
Children and Young Peoples Services,Head of Childrens Social Care,085332,Middlestone Moor CU,Supplies and Services,348037,Subsistence E348,10-Jan-2022,000007918065960,cuccina,5814,Subsistence,6.00,0.00,6.00
Children and Young Peoples Services,Head of Childrens Social Care,085332,Middlestone Moor CU,Supplies and Services,348037,Subsistence E348,10-Jan-2022,000007918065966,cuccina,5814,Subsistence,13.00,0.00,13.00
Children and Young Peoples Services,Head of Childrens Social Care,085332,Middlestone Moor CU,Supplies and Services,328041,Clothing uniforms and laundry E328,10-Jan-2022,000007918065970,FINLEY LEISURE LTD,7996,Clothing uniforms and laundry,9.00,0.00,9.00
Regeneration Economy and Growth,Culture Sport and Tourism,054233,Bishop Auckland Town Hall Library,Supplies and Services,324117,Provisions E324,10-Jan-2022,000007918066000,WILKO RETAIL LIMITED,5399,Catering costs - provisions,4.90,0.00,4.90
Regeneration Economy and Growth,Culture Sport and Tourism,054233,Bishop Auckland Town Hall Library,Supplies and Services,324117,Provisions E324,10-Jan-2022,000007918066006,HERON FOODS,5411,Catering costs - provisions,11.25,0.00,11.25
Children and Young Peoples Services,Head of Childrens Social Care,085334,West Rainton Satelite Home,Supplies and Services,304403,Equipment and Materials,10-Jan-2022,000007918066064,AMZNMktplace,5999,Other consumables,21.98,0.00,21.98
Neighbourhoods and Climate Change,Environmental Services,031200,North Pennines Core,Supplies and Services,344033,Telephones,10-Jan-2022,000007918066156,ZOOM.US 888-799-9666,4814,Telephones general-all costs,134.40,0.00,134.40
Neighbourhoods and Climate Change,Environmental Services,010367,C&G - South Grounds Maintenance,Supplies and Services,304999,Equipment and Materials,10-Jan-2022,000007918066168,Snowballs,5251,Misc equipment tools and materials,13.50,0.00,13.50
Neighbourhoods and Climate Change,Partnerships & Community Engagement Div.,060472,Humanitarian Support programme,Supplies and Services,384999,Miscellaneous Expenses,10-Jan-2022,000007918066200,VIVO CLINIC,8099,Other expenses,10.99,0.00,10.99
Neighbourhoods and Climate Change,Partnerships & Community Engagement Div.,060472,Humanitarian Support programme,Supplies and Services,384999,Miscellaneous Expenses,10-Jan-2022,000007918066202,VIVO CLINIC,8099,Other expenses,10.99,0.00,10.99
Neighbourhoods and Climate Change,Partnerships & Community Engagement Div.,060472,Humanitarian Support programme,Supplies and Services,384999,Miscellaneous Expenses,10-Jan-2022,000007918066204,KITS.HEALTH,8099,Other expenses,101.50,0.00,101.50
Neighbourhoods and Climate Change,Partnerships & Community Engagement Div.,060472,Humanitarian Support programme,Supplies and Services,384999,Miscellaneous Expenses,10-Jan-2022,000007918066210,KITS.HEALTH,8099,Other expenses,101.50,0.00,101.50
Neighbourhoods and Climate Change,Partnerships & Community Engagement Div.,060472,Humanitarian Support programme,Supplies and Services,384999,Miscellaneous Expenses,10-Jan-2022,000007918066214,KITS.HEALTH,8099,Other expenses,101.50,0.00,101.50
Neighbourhoods and Climate Change,Partnerships & Community Engagement Div.,060472,Humanitarian Support programme,Supplies and Services,384999,Miscellaneous Expenses,10-Jan-2022,000007918066220,KITS.HEALTH,8099,Other expenses,101.50,0.00,101.50
Neighbourhoods and Climate Change,Partnerships & Community Engagement Div.,060472,Humanitarian Support programme,Supplies and Services,384999,Miscellaneous Expenses,10-Jan-2022,000007918066224,KITS.HEALTH,8099,Other expenses,101.50,0.00,101.50
Neighbourhoods and Climate Change,Partnerships & Community Engagement Div.,060472,Humanitarian Support programme,Supplies and Services,384999,Miscellaneous Expenses,10-Jan-2022,000007918066230,KITS.HEALTH,8099,Other expenses,101.50,0.00,101.50
Neighbourhoods and Climate Change,Partnerships & Community Engagement Div.,060472,Humanitarian Support programme,Supplies and Services,384999,Miscellaneous Expenses,10-Jan-2022,000007918066234,KITS.HEALTH,8099,Other expenses,101.50,0.00,101.50
Neighbourhoods and Climate Change,Partnerships & Community Engagement Div.,060472,Humanitarian Support programme,Supplies and Services,384999,Miscellaneous Expenses,10-Jan-2022,000007918066238,KITS.HEALTH,8099,Other expenses,101.50,0.00,101.50
Neighbourhoods and Climate Change,Partnerships & Community Engagement Div.,060472,Humanitarian Support programme,Supplies and Services,384999,Miscellaneous Expenses,10-Jan-2022,000007918066244,KITS.HEALTH,8099,Other expenses,101.50,0.00,101.50
Neighbourhoods and Climate Change,Partnerships & Community Engagement Div.,060472,Humanitarian Support programme,Supplies and Services,384999,Miscellaneous Expenses,10-Jan-2022,000007918066248,KITS.HEALTH,8099,Other expenses,101.50,0.00,101.50
Neighbourhoods and Climate Change,Partnerships & Community Engagement Div.,060472,Humanitarian Support programme,Supplies and Services,384999,Miscellaneous Expenses,10-Jan-2022,000007918066256,KITS.HEALTH,8099,Other expenses,101.50,0.00,101.50
Neighbourhoods and Climate Change,Partnerships & Community Engagement Div.,060472,Humanitarian Support programme,Supplies and Services,384999,Miscellaneous Expenses,10-Jan-2022,000007918066258,KITS.HEALTH,8099,Other expenses,101.50,0.00,101.50
Neighbourhoods and Climate Change,Partnerships & Community Engagement Div.,060472,Humanitarian Support programme,Supplies and Services,384999,Miscellaneous Expenses,10-Jan-2022,000007918066266,KITS.HEALTH,8099,Other expenses,101.50,0.00,101.50
Neighbourhoods and Climate Change,Partnerships & Community Engagement Div.,060472,Humanitarian Support programme,Supplies and Services,384999,Miscellaneous Expenses,10-Jan-2022,000007918066270,KITS.HEALTH,8099,Other expenses,101.50,0.00,101.50
Neighbourhoods and Climate Change,Partnerships & Community Engagement Div.,060472,Humanitarian Support programme,Supplies and Services,324117,Provisions E324,10-Jan-2022,000007918066272,WILKO.COM,5399,Catering costs - provisions,92.00,15.33,76.67
Neighbourhoods and Climate Change,Partnerships & Community Engagement Div.,060472,Humanitarian Support programme,Supplies and Services,324117,Provisions E324,10-Jan-2022,000007918066278,ASDA GEORGE COM LEEDS,5411,Catering costs - provisions,-4.50,0.00,-4.50
Regeneration Economy and Growth,Culture Sport and Tourism,054235,Bishop Auckland Town Hall Cafe,Supplies and Services,324117,Provisions E324,10-Jan-2022,000007918191878,JR HOLLAND FOODSERVICE,5499,Catering costs - provisions,339.62,0.00,339.62
Regeneration Economy and Growth,Culture Sport and Tourism,054235,Bishop Auckland Town Hall Cafe,Supplies and Services,324117,Provisions E324,10-Jan-2022,000007918191882,JR HOLLAND FOODSERVICE,5499,Catering costs - provisions,33.63,0.00,33.63
Regeneration Economy and Growth,Culture Sport and Tourism,054235,Bishop Auckland Town Hall Cafe,Supplies and Services,324117,Provisions E324,10-Jan-2022,000007918191886,JR HOLLAND FOODSERVICE,5499,Catering costs - provisions,7.15,0.00,7.15
Adult and Health Services,Head of Adults,055643,Hawthorn House LD Respite Unit,Supplies and Services,324117,Provisions E324,10-Jan-2022,000007918191896,JR HOLLAND FOODSERVICE,5499,Catering costs - provisions,19.26,0.00,19.26
Regeneration Economy and Growth,Corporate Property and Land,021234,Catering - Locomotion,Supplies and Services,384999,Miscellaneous Expenses,10-Jan-2022,000007918191900,ON A ROLL SANDWICH COM,5199,Other expenses,274.93,0.00,274.93
Resources BK0010,Finance & Transactional Services,065180,Collections,Supplies and Services,338045,Services,10-Jan-2022,000007921004648,HMCTS DURHAM012,9222,Legal expenses 338045,"2,000.00",0.00,2000.00
Children and Young Peoples Services,Head of Childrens Social Care,085342,16 Hickstead Rise (previously 9 Cedar Ave),Supplies and Services,348037,Subsistence E348,10-Jan-2022,000007921004766,MCDONALDS,5812,Subsistence,10.32,0.00,10.32
Children and Young Peoples Services,Head of Childrens Social Care,085342,16 Hickstead Rise (previously 9 Cedar Ave),Supplies and Services,348037,Subsistence E348,10-Jan-2022,000007921004774,MCDONALDS,5812,Subsistence,1.29,0.00,1.29
Children and Young Peoples Services,Head of Childrens Social Care,085347,Solo Home The Manse,Transport,215995,Running Costs of Vehicles,10-Jan-2022,000007921004958,CO-OP GROUP 014968,5541,Vehicle running expenses,45.04,0.00,45.04
Children and Young Peoples Services,Head of Childrens Social Care,085347,Solo Home The Manse,Supplies and Services,348037,Subsistence E348,10-Jan-2022,000007921004964,MCDONALDS,5812,Subsistence,4.29,0.00,4.29
Neighbourhoods and Climate Change,Environmental Services,010900,Fleet - Meadowfield Fleet,Transport,215013,Running Costs of Vehicles,10-Jan-2022,000007921005120,DVLA VEHICLE TAX,9311,Vehicle Excise Duty (VED),277.50,0.00,277.50
Neighbourhoods and Climate Change,Environmental Services,010900,Fleet - Meadowfield Fleet,Transport,215013,Running Costs of Vehicles,10-Jan-2022,000007921005128,DVLA VEHICLE TAX,9311,Vehicle Excise Duty (VED),277.50,0.00,277.50
Neighbourhoods and Climate Change,Environmental Services,010561,Fleet - Morrison Busty Fleet,Transport,215013,Running Costs of Vehicles,10-Jan-2022,000007921005130,DVLA VEHICLE TAX,9311,Vehicle Excise Duty (VED),277.50,0.00,277.50
Neighbourhoods and Climate Change,Environmental Services,010864,Fleet - Hackworth Road Fleet,Transport,215013,Running Costs of Vehicles,10-Jan-2022,000007921005134,DVLA VEHICLE TAX,9311,Vehicle Excise Duty (VED),277.50,0.00,277.50
Neighbourhoods and Climate Change,Environmental Services,010900,Fleet - Meadowfield Fleet,Transport,215013,Running Costs of Vehicles,10-Jan-2022,000007921005140,DVLA VEHICLE TAX,9311,Vehicle Excise Duty (VED),167.50,0.00,167.50
Neighbourhoods and Climate Change,Environmental Services,010900,Fleet - Meadowfield Fleet,Transport,215013,Running Costs of Vehicles,10-Jan-2022,000007921005144,DVLA VEHICLE TAX,9311,Vehicle Excise Duty (VED),277.50,0.00,277.50
Neighbourhoods and Climate Change,Environmental Services,010864,Fleet - Hackworth Road Fleet,Transport,215013,Running Costs of Vehicles,10-Jan-2022,000007921005146,DVLA VEHICLE TAX,9311,Vehicle Excise Duty (VED),167.50,0.00,167.50
Neighbourhoods and Climate Change,Environmental Services,010900,Fleet - Meadowfield Fleet,Transport,215013,Running Costs of Vehicles,10-Jan-2022,000007921005148,DVLA VEHICLE TAX,9311,Vehicle Excise Duty (VED),167.50,0.00,167.50
Neighbourhoods and Climate Change,Environmental Services,010551,Fleet - Chilton Fleet,Transport,215013,Running Costs of Vehicles,10-Jan-2022,000007921005152,DVLA VEHICLE TAX,9311,Vehicle Excise Duty (VED),277.50,0.00,277.50
Neighbourhoods and Climate Change,Environmental Services,010551,Fleet - Chilton Fleet,Transport,215013,Running Costs of Vehicles,10-Jan-2022,000007921005158,DVLA VEHICLE TAX,9311,Vehicle Excise Duty (VED),277.50,0.00,277.50
Children and Young Peoples Services,Head of Education and Skills,071732,Dean Bank Childcare,Supplies and Services,324117,Provisions E324,10-Jan-2022,000007921005230,Wm Morrisons Store Pic,5411,Catering costs - provisions,65.26,0.00,65.26
Children and Young Peoples Services,Head of Childrens Social Care,085331,New Lea Childrens Home,Supplies and Services,328041,Clothing uniforms and laundry E328,10-Jan-2022,000007921005332,MATALAN.CO.UK,5691,Clothing uniforms and laundry,54.95,0.00,54.95
Children and Young Peoples Services,Head of Childrens Social Care,085626,Families First Shildon/Chilton,Supplies and Services,364301,Grants to Voluntary Organisations,10-Jan-2022,000007921005378,ARGOS LTD,5310,Hardship,206.95,0.00,206.95
Children and Young Peoples Services,Head of Childrens Social Care,085341,High Etherley Satelite Home,Supplies and Services,348037,Subsistence E348,10-Jan-2022,000007921005400,GREGGS,5812,Subsistence,6.05,0.00,6.05
Adult and Health Services,Head of Adults,052229,Countywide AMHP Team,Supplies and Services,338048,Services,10-Jan-2022,000007921005672,HMCTS GRIMSBY&SCUNTHOR,9222,Court costs 338048,81.00,0.00,81.00
Children and Young Peoples Services,Head of Early Help Inclusion & Vulnerable Children.,088111,Easington Horden & Seascape Family Centre,Supplies and Services,304259,Equipment and Materials,10-Jan-2022,000007921005688,AMZNMKTPLACE AMAZON.CO,5999,Equipment-purchase and rental,28.99,4.83,24.16
Children and Young Peoples Services,Head of Education and Skills,071802,Louisa Cent Nursery,Supplies and Services,324117,Provisions E324,10-Jan-2022,000007921005804,ALDI 11 774,5411,Catering costs - provisions,9.71,0.00,9.71
Children and Young Peoples Services,Head of Childrens Social Care,085332,Middlestone Moor CU,Supplies and Services,304259,Equipment and Materials,10-Jan-2022,000007921005858,SPORTSDIRECT 246,5941,Equipment-purchase and rental,42.00,0.00,42.00
Children and Young Peoples Services,Head of Childrens Social Care,085331,New Lea Childrens Home,Supplies and Services,324117,Provisions E324,10-Jan-2022,000007921005918,WM Morrisons Store,5411,Catering costs - provisions,8.15,0.00,8.15
Children and Young Peoples Services,Head of Childrens Social Care,085331,New Lea Childrens Home,Supplies and Services,304259,Equipment and Materials,10-Jan-2022,000007921005920,SPORTSDIRECT 178,5941,Equipment-purchase and rental,40.00,0.00,40.00
Children and Young Peoples Services,Head of Childrens Social Care,085551,Short Break Services-Park Hse Sher,Transport,215995,Running Costs of Vehicles,10-Jan-2022,000007921006012,Coundon Gate Service S,5541,Vehicle running expenses,5.38,0.00,5.38
Regeneration Economy and Growth,Corporate Property and Land,030691,Catering - Durham Dales Centre,Supplies and Services,324117,Provisions E324,10-Jan-2022,000007921139330,BATLEYS PERTH,5300,Catering costs - provisions,12.12,2.02,10.10
Regeneration Economy and Growth,Corporate Property and Land,030691,Catering - Durham Dales Centre,Supplies and Services,324117,Provisions E324,10-Jan-2022,000007921139330 - 1,BATLEYS PERTH,5300,Catering costs - provisions,30.94,,30.94
Regeneration Economy and Growth,Corporate Property and Land,030691,Catering - Durham Dales Centre,Supplies and Services,324117,Provisions E324,10-Jan-2022,000007921139336,BATLEYS PERTH,5300,Catering costs - provisions,16.55,2.76,13.79
Regeneration Economy and Growth,Corporate Property and Land,021235,Catering - Wharton Park,Supplies and Services,324117,Provisions E324,10-Jan-2022,000007921139356,BATLEYS PERTH,5300,Catering costs - provisions,121.56,20.26,101.30
Regeneration Economy and Growth,Corporate Property and Land,021235,Catering - Wharton Park,Supplies and Services,324117,Provisions E324,10-Jan-2022,000007921139356 - 1,BATLEYS PERTH,5300,Catering costs - provisions,8.55,,8.55
Regeneration Economy and Growth,Culture Sport and Tourism,054812,Gala Theatre - Catering etc,Supplies and Services,324117,Provisions E324,10-Jan-2022,000007921139364,BATLEYS PERTH,5300,Catering costs - provisions,117.36,19.56,97.80
Regeneration Economy and Growth,Culture Sport and Tourism,054812,Gala Theatre - Catering etc,Supplies and Services,324117,Provisions E324,10-Jan-2022,000007921139364 - 1,BATLEYS PERTH,5300,Catering costs - provisions,133.69,,133.69
Children and Young Peoples Services,Head of Childrens Social Care,085331,New Lea Childrens Home,Supplies and Services,328041,Clothing uniforms and laundry E328,10-Jan-2022,000007924489244,ARGOS LTD,5310,Clothing uniforms and laundry,35.00,0.00,35.00
Regeneration Economy and Growth,Business Durham CL0850,030689,Inward Investment and Aftercare,Supplies and Services,336005,Advertising E336,11-Jan-2022,000007921004594,LINKEDIN IRELAND,7311,Advertising other than for staff,60.59,0.00,60.59
Regeneration Economy and Growth,Business Durham CL0850,030689,Inward Investment and Aftercare,Supplies and Services,336005,Advertising E336,11-Jan-2022,000007921004610,LINKEDIN-720 2391253,7311,Advertising other than for staff,77.53,0.00,77.53
Children and Young Peoples Services,Head of Childrens Social Care,085341,High Etherley Satelite Home,Supplies and Services,324117,Provisions E324,11-Jan-2022,000007921004620,TESCO STORES 6329,5411,Catering costs - provisions,6.60,0.00,6.60
Children and Young Peoples Services,Head of Childrens Social Care,085341,High Etherley Satelite Home,Supplies and Services,324117,Provisions E324,11-Jan-2022,000007921004626,TESCO STORES 6329,5411,Catering costs - provisions,22.40,0.00,22.40
Children and Young Peoples Services,Head of Childrens Social Care,085341,High Etherley Satelite Home,Supplies and Services,324117,Provisions E324,11-Jan-2022,000007921004630,TESCO STORES 6329,5411,Catering costs - provisions,17.00,0.00,17.00
Children and Young Peoples Services,Head of Education and Skills,071801,Selby Cottage Childcare Centre,Supplies and Services,324117,Provisions E324,11-Jan-2022,000007921004634,ONE STOP 3026,5411,Catering costs - provisions,9.20,0.00,9.20
Children and Young Peoples Services,Head of Childrens Social Care,085404,COMF bid Targeted interventions for CYPS,Supplies and Services,384999,Miscellaneous Expenses,11-Jan-2022,000007921004656,Amazon.co.uk JY81O5AM5,5969,Other expenses,37.98,6.34,31.64
Children and Young Peoples Services,Head of Childrens Social Care,085404,COMF bid Targeted interventions for CYPS,Supplies and Services,384999,Miscellaneous Expenses,11-Jan-2022,000007921004662,Amazon.co.uk YX2FY5AT5,5969,Other expenses,132.93,22.19,110.74
Children and Young Peoples Services,Head of Childrens Social Care,085404,COMF bid Targeted interventions for CYPS,Supplies and Services,384999,Miscellaneous Expenses,11-Jan-2022,000007921004666,Amazon.co.uk 7T7L72PX5,5969,Other expenses,132.93,22.19,110.74
Children and Young Peoples Services,Head of Childrens Social Care,085404,COMF bid Targeted interventions for CYPS,Supplies and Services,384999,Miscellaneous Expenses,11-Jan-2022,000007921004672,Amazon.co.uk 9Y61053V5,5969,Other expenses,335.86,56.00,279.86
Children and Young Peoples Services,Head of Childrens Social Care,085404,COMF bid Targeted interventions for CYPS,Supplies and Services,304403,Equipment and Materials,11-Jan-2022,000007921004678,AMZNMktplace,5999,Other consumables,77.94,13.02,64.92
Children and Young Peoples Services,Head of Childrens Social Care,085404,COMF bid Targeted interventions for CYPS,Supplies and Services,304403,Equipment and Materials,11-Jan-2022,000007921004682,AMZNMktplace,5999,Other consumables,110.88,18.48,92.40
Children and Young Peoples Services,Head of Childrens Social Care,085404,COMF bid Targeted interventions for CYPS,Supplies and Services,304403,Equipment and Materials,11-Jan-2022,000007921004682 - 1,AMZNMktplace,5999,Other consumables,51.36,,51.36
Children and Young Peoples Services,Head of Childrens Social Care,085404,COMF bid Targeted interventions for CYPS,Supplies and Services,304403,Equipment and Materials,11-Jan-2022,000007921004686,AMZNMktplace,5999,Other consumables,93.96,15.66,78.30
Children and Young Peoples Services,Head of Childrens Social Care,085404,COMF bid Targeted interventions for CYPS,Supplies and Services,304403,Equipment and Materials,11-Jan-2022,000007921004686 - 1,AMZNMktplace,5999,Other consumables,6.52,,6.52
Children and Young Peoples Services,Head of Childrens Social Care,085404,COMF bid Targeted interventions for CYPS,Supplies and Services,304403,Equipment and Materials,11-Jan-2022,000007921004692,AMZNMKTPLACE AMAZON.CO,5999,Other consumables,88.80,14.88,73.92
Children and Young Peoples Services,Head of Childrens Social Care,085404,COMF bid Targeted interventions for CYPS,Supplies and Services,304403,Equipment and Materials,11-Jan-2022,000007921004694,AMZNMktplace,5999,Other consumables,108.84,18.22,90.62
Children and Young Peoples Services,Head of Childrens Social Care,085404,COMF bid Targeted interventions for CYPS,Supplies and Services,304403,Equipment and Materials,11-Jan-2022,000007921004698,AMZNMktplace,5999,Other consumables,144.64,24.16,120.48
Children and Young Peoples Services,Head of Childrens Social Care,085404,COMF bid Targeted interventions for CYPS,Supplies and Services,304403,Equipment and Materials,11-Jan-2022,000007921004702,AMZNMktplace,5999,Other consumables,51.59,8.61,42.98
Children and Young Peoples Services,Head of Childrens Social Care,085404,COMF bid Targeted interventions for CYPS,Supplies and Services,304403,Equipment and Materials,11-Jan-2022,000007921004704,AMZNMktplace,5999,Other consumables,51.59,8.61,42.98
Children and Young Peoples Services,Head of Childrens Social Care,085404,COMF bid Targeted interventions for CYPS,Supplies and Services,304403,Equipment and Materials,11-Jan-2022,000007921004708,AMZNMktplace,5999,Other consumables,121.44,20.32,101.12
Children and Young Peoples Services,Head of Childrens Social Care,085501,Child Care Cases Legal Expenses,Supplies and Services,304403,Equipment and Materials,11-Jan-2022,000007921004740,DARLINGTON BC INTERNET,9399,Other consumables,11.00,0.00,11.00
Children and Young Peoples Services,Head of Childrens Social Care,085501,Child Care Cases Legal Expenses,Supplies and Services,304403,Equipment and Materials,11-Jan-2022,000007921004748,DARLINGTON BC INTERNET,9399,Other consumables,11.00,0.00,11.00
Children and Young Peoples Services,Head of Childrens Social Care,085332,Middlestone Moor CU,Supplies and Services,324117,Provisions E324,11-Jan-2022,000007921004796,ASDA GROCERIES ONLINE,5411,Catering costs - provisions,144.54,0.00,144.54
Children and Young Peoples Services,Head of Childrens Social Care,085332,Middlestone Moor CU,Supplies and Services,324117,Provisions E324,11-Jan-2022,000007921004802,ASDA GROCERIES ONLINE,5411,Catering costs - provisions,6.23,0.00,6.23
Children and Young Peoples Services,Head of Childrens Social Care,085332,Middlestone Moor CU,Supplies and Services,324117,Provisions E324,11-Jan-2022,000007921004806,ASDA SUPERSTORE 4987,5411,Catering costs - provisions,5.50,0.00,5.50
Children and Young Peoples Services,Head of Childrens Social Care,085332,Middlestone Moor CU,Supplies and Services,324117,Provisions E324,11-Jan-2022,000007921004810,TESCO STORES 2916,5411,Catering costs - provisions,22.28,0.00,22.28
Children and Young Peoples Services,Head of Childrens Social Care,085332,Middlestone Moor CU,Supplies and Services,324117,Provisions E324,11-Jan-2022,000007921004814,ASDA GROCERIES ONLINE,5411,Catering costs - provisions,-6.92,0.00,-6.92
Children and Young Peoples Services,Head of Childrens Social Care,085341,High Etherley Satelite Home,Supplies and Services,324117,Provisions E324,11-Jan-2022,000007921004880,ALAN CARR BUTCHERS,5499,Catering costs - provisions,13.31,0.00,13.31
Children and Young Peoples Services,Head of Childrens Social Care,085341,High Etherley Satelite Home,Supplies and Services,324117,Provisions E324,11-Jan-2022,000007921004884,TESCO STORES 6407,5411,Catering costs - provisions,9.10,0.00,9.10
Neighbourhoods and Climate Change,Environmental Services,031249,North Pennines - Nature for Climate,Supplies and Services,304259,Equipment and Materials,11-Jan-2022,000007921004894,"PEAU PRODUCTIONS,",5946,Equipment-purchase and rental,205.71,0.00,205.71
Neighbourhoods and Climate Change,Environmental Services,031249,North Pennines - Nature for Climate,Supplies and Services,304259,Equipment and Materials,11-Jan-2022,000007921004898,LUZERN. RICOHONLINESTR,5946,Equipment-purchase and rental,299.00,0.00,299.00
Neighbourhoods and Climate Change,Environmental Services,010367,C&G - South Grounds Maintenance,Supplies and Services,304221,Equipment and Materials,11-Jan-2022,000007921005028,S&A BUILDERS MERCHANTS,5211,Direct materials,152.88,0.00,152.88
Children and Young Peoples Services,Head of Early Help Inclusion & Vulnerable Children.,085957,Secure Management,Supplies and Services,304403,Equipment and Materials,11-Jan-2022,000007921005050,AMZNMKTPLACE AMAZON.CO,5999,Other consumables,26.37,4.41,21.96
Neighbourhoods and Climate Change,Environmental Services,010367,C&G - South Grounds Maintenance,Transport,215995,Running Costs of Vehicles,11-Jan-2022,000007921005092,HALFORDS ON LINE,5533,Vehicle running expenses,53.10,0.00,53.10
Resources BK0010,Digital and Customer Services,070204,School Services - Systems,Supplies and Services,372009,Subscriptions E372,11-Jan-2022,000007921005186,NOMINET UK,7392,Subscriptions 372009,46.80,7.80,39.00
Resources BK0010,Digital and Customer Services,070204,School Services - Systems,Supplies and Services,372009,Subscriptions E372,11-Jan-2022,000007921005188,NOMINET UK,7392,Subscriptions 372009,60.84,10.14,50.70
Regeneration Economy and Growth,Culture Sport and Tourism,010664,Freemans Quay Leisure Centre,Supplies and Services,324117,Provisions E324,11-Jan-2022,000007921005194,MARTIN MCCOLL,5499,Catering costs - provisions,8.69,0.00,8.69
Regeneration Economy and Growth,Culture Sport and Tourism,054813,Gala Theatre - Technical,Supplies and Services,304259,Equipment and Materials,11-Jan-2022,000007921005242,AMZNMktplace,5999,Equipment-purchase and rental,26.97,0.00,26.97
Regeneration Economy and Growth,Culture Sport and Tourism,054813,Gala Theatre - Technical,Supplies and Services,304259,Equipment and Materials,11-Jan-2022,000007921005246,AMZNMktplace,5999,Equipment-purchase and rental,55.92,0.00,55.92
Neighbourhoods and Climate Change,Environmental Services,026591,C&G - Hardwick Park,Supplies and Services,332047,Printing Stationery and Gen Off Exps,11-Jan-2022,000007921005268,AMZNMKTPLACE AMAZON.CO,5999,Stationery,78.00,13.00,65.00
Neighbourhoods and Climate Change,Environmental Services,026591,C&G - Hardwick Park,Supplies and Services,332047,Printing Stationery and Gen Off Exps,11-Jan-2022,000007921005274,AMZNMKTPLACE AMAZON.CO,5999,Stationery,10.99,1.83,9.16
Dedicated Schools Grant BG0015,DSG Schools Block,418500,Belmont Community School 004185 - Admin,Supplies and Services,384981,Miscellaneous Expenses,11-Jan-2022,000007921005370,WWW.DIGIISTORE.COM EH1,5999,House Rewards,290.00,0.00,290.00
Children and Young Peoples Services,Head of Early Help Inclusion & Vulnerable Children.,071670,Willington Childrens Centre,Supplies and Services,304259,Equipment and Materials,11-Jan-2022,000007921005382,AMZNMktplace,5999,Equipment-purchase and rental,9.99,1.67,8.32
Children and Young Peoples Services,Head of Childrens Social Care,085347,Solo Home The Manse,Supplies and Services,304259,Equipment and Materials,11-Jan-2022,000007921005390,AMZNMktplace,5999,Equipment-purchase and rental,99.99,16.67,83.32
Children and Young Peoples Services,Head of Childrens Social Care,085626,Families First Shildon/Chilton,Supplies and Services,304999,Equipment and Materials,11-Jan-2022,000007921005394,BOOTS UK ECOMM,5912,Misc equipment tools and materials,39.00,0.00,39.00
Children and Young Peoples Services,Head of Early Help Inclusion & Vulnerable Children.,088105,W/Close and Willington Family Centre,Supplies and Services,384302,Miscellaneous Expenses,11-Jan-2022,000007921005396,VUE BSL LTD,7832,Activity expenses,251.50,0.00,251.50
Children and Young Peoples Services,Head of Childrens Social Care,085341,High Etherley Satelite Home,Supplies and Services,324117,Provisions E324,11-Jan-2022,000007921005404,WALKERS BUTCHERS & BAK,5499,Catering costs - provisions,6.15,0.00,6.15
Children and Young Peoples Services,Head of Childrens Social Care,085341,High Etherley Satelite Home,Supplies and Services,348037,Subsistence E348,11-Jan-2022,000007921005408,Mikes Fish Bar,5814,Subsistence,17.90,0.00,17.90
Children and Young Peoples Services,Head of Childrens Social Care,085341,High Etherley Satelite Home,Supplies and Services,328041,Clothing uniforms and laundry E328,11-Jan-2022,000007921005414,FINLEY LEISURE LTD,7996,Clothing uniforms and laundry,22.50,0.00,22.50
Children and Young Peoples Services,Head of Childrens Social Care,085341,High Etherley Satelite Home,Supplies and Services,328041,Clothing uniforms and laundry E328,11-Jan-2022,000007921005416,FINLEY LEISURE LTD,7996,Clothing uniforms and laundry,12.00,0.00,12.00
Neighbourhoods and Climate Change,Environmental Services,010367,C&G - South Grounds Maintenance,Supplies and Services,304221,Equipment and Materials,11-Jan-2022,000007921005430,CARRS BILLINGTON SPENN,5599,Direct materials,141.16,0.00,141.16
Children and Young Peoples Services,Head of Childrens Social Care,085333,Coxhoe Satelite Home,Supplies and Services,324117,Provisions E324,11-Jan-2022,000007921005480,TESCO STORES 2371,5411,Catering costs - provisions,66.80,0.00,66.80
Children and Young Peoples Services,Head of Childrens Social Care,085333,Coxhoe Satelite Home,Supplies and Services,324117,Provisions E324,11-Jan-2022,000007921005482,TESCO STORES 2371,5411,Catering costs - provisions,86.85,0.00,86.85
Children and Young Peoples Services,Head of Childrens Social Care,085351,Framwellgate Moor CU,Supplies and Services,324117,Provisions E324,11-Jan-2022,000007921005542,ASDA GROCERIES ONLINE,5411,Catering costs - provisions,5.01,0.00,5.01
Children and Young Peoples Services,Head of Childrens Social Care,085351,Framwellgate Moor CU,Supplies and Services,324117,Provisions E324,11-Jan-2022,000007921005550,ASDA GROCERIES ONLINE,5411,Catering costs - provisions,95.45,0.00,95.45
Children and Young Peoples Services,Head of Childrens Social Care,085351,Framwellgate Moor CU,Supplies and Services,324117,Provisions E324,11-Jan-2022,000007921005552,ASDA GROCERIES ONLINE,5411,Catering costs - provisions,-0.98,0.00,-0.98
Regeneration Economy and Growth,Culture Sport and Tourism,054399,Local Delivery-Libraries,Supplies and Services,312009,Newspapers books and periodicals E312,11-Jan-2022,000007921005606,Amazon.co.uk G53G09KJ5,5969,Newspapers books and periodicals,26.55,0.00,26.55
Regeneration Economy and Growth,Culture Sport and Tourism,054399,Local Delivery-Libraries,Supplies and Services,312009,Newspapers books and periodicals E312,11-Jan-2022,000007921005610,Amazon.co.uk KI0TL40Q5,5969,Newspapers books and periodicals,28.97,0.00,28.97
Children and Young Peoples Services,Head of Childrens Social Care,085334,West Rainton Satelite Home,Supplies and Services,324117,Provisions E324,11-Jan-2022,000007921005618,B&M 681 - DURHAM,5399,Catering costs - provisions,31.99,0.00,31.99
Children and Young Peoples Services,Head of Childrens Social Care,085334,West Rainton Satelite Home,Supplies and Services,324117,Provisions E324,11-Jan-2022,000007921005620,TESCO STORES 2371,5411,Catering costs - provisions,5.80,0.00,5.80
Resources BK0010,Digital and Customer Services,065335,School Services - Implementations,Supplies and Services,304639,Equipment and Materials,11-Jan-2022,000007921005640,TOOLSTATION UK,5251,Technicians-supplies,269.98,0.00,269.98
Children and Young Peoples Services,Head of Early Help Inclusion & Vulnerable Children.,088111,Easington Horden & Seascape Family Centre,Supplies and Services,364301,Grants to Voluntary Organisations,11-Jan-2022,000007921005692,ASDA STORES LTD,5411,Hardship,145.61,0.00,145.61
Neighbourhoods and Climate Change,Environmental Services,010301,C&G - North Grounds Maintenance,Supplies and Services,304403,Equipment and Materials,11-Jan-2022,000007921005722,THE POPPY SHOP,5999,Other consumables,9.97,0.00,9.97
Regeneration Economy and Growth,Culture Sport and Tourism,054233,Bishop Auckland Town Hall Library,Supplies and Services,324117,Provisions E324,11-Jan-2022,000007921005870,HERON FOODS,5411,Catering costs - provisions,8.99,0.00,8.99
Regeneration Economy and Growth,Culture Sport and Tourism,054233,Bishop Auckland Town Hall Library,Supplies and Services,324117,Provisions E324,11-Jan-2022,000007921005876,ASDA STORES,5411,Catering costs - provisions,11.80,0.00,11.80
Children and Young Peoples Services,Head of Childrens Social Care,085332,Middlestone Moor CU,Supplies and Services,384999,Miscellaneous Expenses,11-Jan-2022,000007921005928,AMZNMktplace,5999,Other expenses,134.27,0.00,134.27
Children and Young Peoples Services,Head of Childrens Social Care,085334,West Rainton Satelite Home,Supplies and Services,324117,Provisions E324,11-Jan-2022,000007921005982,B&M 681 - DURHAM,5399,Catering costs - provisions,277.98,0.00,277.98
Neighbourhoods and Climate Change,Environmental Services,010367,C&G - South Grounds Maintenance,Supplies and Services,304999,Equipment and Materials,11-Jan-2022,000007921006042,Snowballs,5251,Misc equipment tools and materials,16.20,0.00,16.20
Regeneration Economy and Growth,Culture Sport and Tourism,054235,Bishop Auckland Town Hall Cafe,Supplies and Services,324117,Provisions E324,11-Jan-2022,000007921139338,JR HOLLAND FOODSERVICE,5499,Catering costs - provisions,84.17,0.00,84.17
Adult and Health Services,Head of Adults,055643,Hawthorn House LD Respite Unit,Supplies and Services,324117,Provisions E324,11-Jan-2022,000007921139340,FREEMAN CATERING BUTCH,5422,Catering costs - provisions,25.52,0.00,25.52
Adult and Health Services,Head of Adults,055643,Hawthorn House LD Respite Unit,Supplies and Services,324117,Provisions E324,11-Jan-2022,000007921139342,FREEMAN CATERING BUTCH,5422,Catering costs - provisions,43.52,0.00,43.52
Neighbourhoods and Climate Change,Environmental Services,011060,C&G - Hardwick Park Catering,Supplies and Services,324117,Provisions E324,11-Jan-2022,000007921139346,FREEMAN CATERING BUTCH,5422,Catering costs - provisions,78.46,0.00,78.46
Neighbourhoods and Climate Change,Environmental Services,011060,C&G - Hardwick Park Catering,Supplies and Services,324117,Provisions E324,11-Jan-2022,000007921139350,JR HOLLAND FOODSERVICE,5499,Catering costs - provisions,33.62,0.00,33.62
Regeneration Economy and Growth,Corporate Property and Land,021234,Catering - Locomotion,Supplies and Services,324117,Provisions E324,11-Jan-2022,000007921139354,FREEMAN CATERING BUTCH,5422,Catering costs - provisions,26.97,0.00,26.97
Regeneration Economy and Growth,Corporate Property and Land,021235,Catering - Wharton Park,Supplies and Services,324117,Provisions E324,11-Jan-2022,000007921139360,JR HOLLAND FOODSERVICE,5499,Catering costs - provisions,11.08,0.00,11.08
Regeneration Economy and Growth,Culture Sport and Tourism,054812,Gala Theatre - Catering etc,Supplies and Services,324117,Provisions E324,11-Jan-2022,000007921139368,JR HOLLAND FOODSERVICE,5499,Catering costs - provisions,32.37,0.00,32.37
Regeneration Economy and Growth,Culture Sport and Tourism,054812,Gala Theatre - Catering etc,Supplies and Services,324117,Provisions E324,11-Jan-2022,000007921139370,JR HOLLAND FOODSERVICE,5499,Catering costs - provisions,17.49,0.00,17.49
Children and Young Peoples Services,Head of Childrens Social Care,085341,High Etherley Satelite Home,Supplies and Services,304221,Equipment and Materials,11-Jan-2022,000007924488248,HOMEBASE LTD 822,5200,Direct materials,25.50,0.00,25.50
Children and Young Peoples Services,Head of Early Help Inclusion & Vulnerable Children.,085957,Secure Management,Supplies and Services,304403,Equipment and Materials,11-Jan-2022,000007924488606,AMZNMKTPLACE AMAZON.CO,5999,Other consumables,26.37,4.41,21.96
Children and Young Peoples Services,Head of Early Help Inclusion & Vulnerable Children.,085957,Secure Management,Supplies and Services,304403,Equipment and Materials,11-Jan-2022,000007924488610,AMZNMKTPLACE AMAZON.CO,5999,Other consumables,19.71,3.29,16.42
Neighbourhoods and Climate Change,Environmental Services,010900,Fleet - Meadowfield Fleet,Transport,215013,Running Costs of Vehicles,11-Jan-2022,000007924488744,DVLA VEHICLE TAX,9311,Vehicle Excise Duty (VED),277.50,0.00,277.50
Neighbourhoods and Climate Change,Environmental Services,010900,Fleet - Meadowfield Fleet,Transport,215013,Running Costs of Vehicles,11-Jan-2022,000007924488750,DVLA VEHICLE TAX,9311,Vehicle Excise Duty (VED),277.50,0.00,277.50
Neighbourhoods and Climate Change,Environmental Services,010900,Fleet - Meadowfield Fleet,Transport,215013,Running Costs of Vehicles,11-Jan-2022,000007924488758,DVLA VEHICLE TAX,9311,Vehicle Excise Duty (VED),277.50,0.00,277.50
Neighbourhoods and Climate Change,Environmental Services,010900,Fleet - Meadowfield Fleet,Transport,215013,Running Costs of Vehicles,11-Jan-2022,000007924488764,DVLA VEHICLE TAX,9311,Vehicle Excise Duty (VED),277.50,0.00,277.50
Neighbourhoods and Climate Change,Environmental Services,010900,Fleet - Meadowfield Fleet,Transport,215013,Running Costs of Vehicles,11-Jan-2022,000007924488768,DVLA VEHICLE TAX,9311,Vehicle Excise Duty (VED),277.50,0.00,277.50
Neighbourhoods and Climate Change,Environmental Services,010561,Fleet - Morrison Busty Fleet,Transport,215013,Running Costs of Vehicles,11-Jan-2022,000007924488772,DVLA VEHICLE TAX,9311,Vehicle Excise Duty (VED),277.50,0.00,277.50
Neighbourhoods and Climate Change,Environmental Services,010561,Fleet - Morrison Busty Fleet,Transport,215013,Running Costs of Vehicles,11-Jan-2022,000007924488776,DVLA VEHICLE TAX,9311,Vehicle Excise Duty (VED),277.50,0.00,277.50
Neighbourhoods and Climate Change,Environmental Services,010551,Fleet - Chilton Fleet,Transport,215013,Running Costs of Vehicles,11-Jan-2022,000007924488780,DVLA VEHICLE TAX,9311,Vehicle Excise Duty (VED),277.50,0.00,277.50
Neighbourhoods and Climate Change,Environmental Services,010864,Fleet - Hackworth Road Fleet,Transport,215013,Running Costs of Vehicles,11-Jan-2022,000007924488908,DVLA VEHICLE TAX,9311,Vehicle Excise Duty (VED),277.50,0.00,277.50
Neighbourhoods and Climate Change,Environmental Services,010561,Fleet - Morrison Busty Fleet,Transport,215013,Running Costs of Vehicles,11-Jan-2022,000007924488910,DVLA VEHICLE TAX,9311,Vehicle Excise Duty (VED),277.50,0.00,277.50
Neighbourhoods and Climate Change,Environmental Services,010561,Fleet - Morrison Busty Fleet,Transport,215013,Running Costs of Vehicles,11-Jan-2022,000007924488914,DVLA VEHICLE TAX,9311,Vehicle Excise Duty (VED),277.50,0.00,277.50
Neighbourhoods and Climate Change,Environmental Services,010561,Fleet - Morrison Busty Fleet,Transport,215013,Running Costs of Vehicles,11-Jan-2022,000007924488918,DVLA VEHICLE TAX,9311,Vehicle Excise Duty (VED),277.50,0.00,277.50
Neighbourhoods and Climate Change,Environmental Services,010551,Fleet - Chilton Fleet,Transport,215013,Running Costs of Vehicles,11-Jan-2022,000007924488920,DVLA VEHICLE TAX,9311,Vehicle Excise Duty (VED),277.50,0.00,277.50
Neighbourhoods and Climate Change,Environmental Services,010900,Fleet - Meadowfield Fleet,Transport,215013,Running Costs of Vehicles,11-Jan-2022,000007924488924,DVLA VEHICLE TAX,9311,Vehicle Excise Duty (VED),277.50,0.00,277.50
Neighbourhoods and Climate Change,Environmental Services,010864,Fleet - Hackworth Road Fleet,Transport,215013,Running Costs of Vehicles,11-Jan-2022,000007924488932,DVLA VEHICLE TAX,9311,Vehicle Excise Duty (VED),277.50,0.00,277.50
Neighbourhoods and Climate Change,Environmental Services,010900,Fleet - Meadowfield Fleet,Transport,215013,Running Costs of Vehicles,11-Jan-2022,000007924488952,DVLA VEHICLE TAX,9311,Vehicle Excise Duty (VED),277.50,0.00,277.50
Neighbourhoods and Climate Change,Environmental Services,010900,Fleet - Meadowfield Fleet,Transport,215013,Running Costs of Vehicles,11-Jan-2022,000007924488958,DVLA VEHICLE TAX,9311,Vehicle Excise Duty (VED),277.50,0.00,277.50
Neighbourhoods and Climate Change,Environmental Services,010900,Fleet - Meadowfield Fleet,Transport,215013,Running Costs of Vehicles,11-Jan-2022,000007924488964,DVLA VEHICLE TAX,9311,Vehicle Excise Duty (VED),277.50,0.00,277.50
Neighbourhoods and Climate Change,Environmental Services,010900,Fleet - Meadowfield Fleet,Transport,215013,Running Costs of Vehicles,11-Jan-2022,000007924488968,DVLA VEHICLE TAX,9311,Vehicle Excise Duty (VED),277.50,0.00,277.50
Neighbourhoods and Climate Change,Environmental Services,010900,Fleet - Meadowfield Fleet,Transport,215013,Running Costs of Vehicles,11-Jan-2022,000007924488970,DVLA VEHICLE TAX,9311,Vehicle Excise Duty (VED),277.50,0.00,277.50
Neighbourhoods and Climate Change,Environmental Services,010900,Fleet - Meadowfield Fleet,Transport,215013,Running Costs of Vehicles,11-Jan-2022,000007924488976,DVLA VEHICLE TAX,9311,Vehicle Excise Duty (VED),277.50,0.00,277.50
Neighbourhoods and Climate Change,Environmental Services,010561,Fleet - Morrison Busty Fleet,Transport,215013,Running Costs of Vehicles,11-Jan-2022,000007924488978,DVLA VEHICLE TAX,9311,Vehicle Excise Duty (VED),277.50,0.00,277.50
Neighbourhoods and Climate Change,Environmental Services,010561,Fleet - Morrison Busty Fleet,Transport,215013,Running Costs of Vehicles,11-Jan-2022,000007924488982,DVLA VEHICLE TAX,9311,Vehicle Excise Duty (VED),277.50,0.00,277.50
Neighbourhoods and Climate Change,Environmental Services,010864,Fleet - Hackworth Road Fleet,Transport,215013,Running Costs of Vehicles,11-Jan-2022,000007924488988,DVLA VEHICLE TAX,9311,Vehicle Excise Duty (VED),277.50,0.00,277.50
Neighbourhoods and Climate Change,Environmental Services,010900,Fleet - Meadowfield Fleet,Transport,215013,Running Costs of Vehicles,11-Jan-2022,000007924488990,DVLA VEHICLE TAX,9311,Vehicle Excise Duty (VED),277.50,0.00,277.50
Neighbourhoods and Climate Change,Environmental Services,026591,C&G - Hardwick Park,Supplies and Services,332047,Printing Stationery and Gen Off Exps,11-Jan-2022,000007924489036,AMZNMKTPLACE AMAZON.CO,5999,Stationery,29.88,4.98,24.90
Neighbourhoods and Climate Change,Environmental Services,026591,C&G - Hardwick Park,Supplies and Services,332047,Printing Stationery and Gen Off Exps,11-Jan-2022,000007924489036 - 1,AMZNMKTPLACE AMAZON.CO,5999,Stationery,0.06,,0.06
Children and Young Peoples Services,Head of Education and Skills,073911,Pupil Premium,Supplies and Services,328041,Clothing uniforms and laundry E328,11-Jan-2022,000007924489264,ARGOS LTD,5310,Clothing uniforms and laundry,119.98,0.00,119.98
Children and Young Peoples Services,Head of Early Help Inclusion & Vulnerable Children.,088104,BA/BC/Crook Intensive Family Support Team,Supplies and Services,364301,Grants to Voluntary Organisations,11-Jan-2022,000007924489354,ARGOS LTD,5310,Hardship,23.20,0.00,23.20
Children and Young Peoples Services,Head of Early Help Inclusion & Vulnerable Children.,088109,Dean Bank and Tudhoe Family Centre,Supplies and Services,364301,Grants to Voluntary Organisations,11-Jan-2022,000007924489358,ARGOS LTD,5310,Hardship,52.95,0.00,52.95
Children and Young Peoples Services,Head of Childrens Social Care,085621,Families First Aycliffe,Supplies and Services,364301,Grants to Voluntary Organisations,11-Jan-2022,000007924489362,ARGOS LTD,5310,Hardship,119.00,0.00,119.00
Children and Young Peoples Services,Head of Early Help Inclusion & Vulnerable Children.,088109,Dean Bank and Tudhoe Family Centre,Supplies and Services,364301,Grants to Voluntary Organisations,11-Jan-2022,000007924489368,ARGOS LTD,5310,Hardship,185.00,0.00,185.00
Children and Young Peoples Services,Head of Early Help Inclusion & Vulnerable Children.,088104,BA/BC/Crook Intensive Family Support Team,Supplies and Services,364301,Grants to Voluntary Organisations,11-Jan-2022,000007924489372,Durham County CNCL,9399,Hardship,21.00,0.00,21.00
Children and Young Peoples Services,Head of Childrens Social Care,085341,High Etherley Satelite Home,Supplies and Services,348037,Subsistence E348,11-Jan-2022,000007924489408,GREGGS,5812,Subsistence,6.60,0.00,6.60
Resources BK0010,Digital and Customer Services,065335,School Services - Implementations,Supplies and Services,304639,Equipment and Materials,11-Jan-2022,000007924489640,SCREWFIX DIRECT,5211,Technicians-supplies,47.57,0.00,47.57
Regeneration Economy and Growth,Development and Housing,030776,LINKCD Flexible Fund,Supplies and Services,304259,Equipment and Materials,11-Jan-2022,000007924489934,DVLA DRIVER ONLINE,9399,Equipment-purchase and rental,20.00,0.00,20.00
Resources BK0010,Procurement Sales & Business Services,065500,Business Support - Management,Supplies and Services,332047,Printing Stationery and Gen Off Exps,11-Jan-2022,000007924489998,WWW.NEOPOST.CO.UK,5111,Stationery,500.00,0.00,500.00
Children and Young Peoples Services,Head of Early Help Inclusion & Vulnerable Children.,088105,W/Close and Willington Family Centre,Supplies and Services,304259,Equipment and Materials,11-Jan-2022,000007924490118,WWW.DURHAM.GOV.UK,9399,Equipment-purchase and rental,40.00,0.00,40.00
Children and Young Peoples Services,Head of Early Help Inclusion & Vulnerable Children.,088109,Dean Bank and Tudhoe Family Centre,Supplies and Services,304259,Equipment and Materials,11-Jan-2022,000007924490120,WWW.DURHAM.GOV.UK,9399,Equipment-purchase and rental,20.00,0.00,20.00
Children and Young Peoples Services,Head of Early Help Inclusion & Vulnerable Children.,088109,Dean Bank and Tudhoe Family Centre,Supplies and Services,304259,Equipment and Materials,11-Jan-2022,000007924490124,WWW.DURHAM.GOV.UK,9399,Equipment-purchase and rental,20.00,0.00,20.00
Regeneration Economy and Growth,Culture Sport and Tourism,054235,Bishop Auckland Town Hall Cafe,Supplies and Services,324117,Provisions E324,11-Jan-2022,000007924623970,BATLEYS PERTH,5300,Catering costs - provisions,330.42,55.07,275.35
Regeneration Economy and Growth,Culture Sport and Tourism,054235,Bishop Auckland Town Hall Cafe,Supplies and Services,324117,Provisions E324,11-Jan-2022,000007924623970 - 1,BATLEYS PERTH,5300,Catering costs - provisions,143.99,,143.99
Neighbourhoods and Climate Change,Environmental Services,011060,C&G - Hardwick Park Catering,Supplies and Services,324117,Provisions E324,11-Jan-2022,000007924623984,BATLEYS PERTH,5300,Catering costs - provisions,128.46,21.41,107.05
Neighbourhoods and Climate Change,Environmental Services,011060,C&G - Hardwick Park Catering,Supplies and Services,324117,Provisions E324,11-Jan-2022,000007924623984 - 1,BATLEYS PERTH,5300,Catering costs - provisions,170.33,,170.33
Neighbourhoods and Climate Change,Environmental Services,011060,C&G - Hardwick Park Catering,Supplies and Services,324117,Provisions E324,11-Jan-2022,000007924623990,BATLEYS PERTH,5300,Catering costs - provisions,9.53,0.00,9.53
Regeneration Economy and Growth,Culture Sport and Tourism,054812,Gala Theatre - Catering etc,Supplies and Services,384999,Miscellaneous Expenses,11-Jan-2022,000007924623994,G M PACKAGING UK LIMIT,5046,Other expenses,118.58,0.00,118.58
Regeneration Economy and Growth,Culture Sport and Tourism,054812,Gala Theatre - Catering etc,Supplies and Services,324117,Provisions E324,11-Jan-2022,000007924623996,BATLEYS PERTH,5300,Catering costs - provisions,-13.13,-1.19,-11.94
Children and Young Peoples Services,Head of Childrens Social Care,085404,COMF bid Targeted interventions for CYPS,Supplies and Services,304403,Equipment and Materials,12-Jan-2022,000007921004712,AMZNMktplace,5999,Other consumables,31.20,0.00,31.20
Children and Young Peoples Services,Head of Childrens Social Care,085404,COMF bid Targeted interventions for CYPS,Supplies and Services,304403,Equipment and Materials,12-Jan-2022,000007921004716,AMZNMktplace,5999,Other consumables,143.36,0.00,143.36
Neighbourhoods and Climate Change,Environmental Services,031249,North Pennines - Nature for Climate,Supplies and Services,304259,Equipment and Materials,12-Jan-2022,000007921004902,"PEAU PRODUCTIONS,",5946,Equipment-purchase and rental,5.66,0.00,5.66
Regeneration Economy and Growth,Business Durham CL0850,030689,Inward Investment and Aftercare,Supplies and Services,342222,Computers and Communications,12-Jan-2022,000007924488236,FASTHOSTS INTERNET,4816,Comp hardware purch-network servers,30.00,0.00,30.00
Children and Young Peoples Services,Head of Education and Skills,071801,Selby Cottage Childcare Centre,Supplies and Services,324117,Provisions E324,12-Jan-2022,000007924488256,TESCO STORES 2278,5411,Catering costs - provisions,11.40,0.00,11.40
Children and Young Peoples Services,Head of Childrens Social Care,085404,COMF bid Targeted interventions for CYPS,Supplies and Services,304403,Equipment and Materials,12-Jan-2022,000007924488264,AMZNMktplace,5999,Other consumables,415.68,69.28,346.40
Children and Young Peoples Services,Head of Childrens Social Care,085404,COMF bid Targeted interventions for CYPS,Supplies and Services,304403,Equipment and Materials,12-Jan-2022,000007924488264 - 1,AMZNMktplace,5999,Other consumables,0.16,,0.16
Children and Young Peoples Services,Head of Childrens Social Care,085404,COMF bid Targeted interventions for CYPS,Supplies and Services,384999,Miscellaneous Expenses,12-Jan-2022,000007924488268,Amazon.co.uk AV8NK6ZF5,5969,Other expenses,57.44,9.60,47.84
Children and Young Peoples Services,Head of Childrens Social Care,085404,COMF bid Targeted interventions for CYPS,Supplies and Services,384999,Miscellaneous Expenses,12-Jan-2022,000007924488272,Amazon.co.uk QG4847OI5,5969,Other expenses,175.68,29.28,146.40
Children and Young Peoples Services,Head of Childrens Social Care,085404,COMF bid Targeted interventions for CYPS,Supplies and Services,384999,Miscellaneous Expenses,12-Jan-2022,000007924488272 - 1,Amazon.co.uk QG4847OI5,5969,Other expenses,0.12,,0.12
Children and Young Peoples Services,Head of Childrens Social Care,085404,COMF bid Targeted interventions for CYPS,Supplies and Services,384999,Miscellaneous Expenses,12-Jan-2022,000007924488276,Amazon.co.uk 1Y7VG5ZA5,5969,Other expenses,84.60,14.10,70.50
Children and Young Peoples Services,Head of Childrens Social Care,085404,COMF bid Targeted interventions for CYPS,Supplies and Services,384999,Miscellaneous Expenses,12-Jan-2022,000007924488276 - 1,Amazon.co.uk 1Y7VG5ZA5,5969,Other expenses,105.00,,105.00
Children and Young Peoples Services,Head of Childrens Social Care,085404,COMF bid Targeted interventions for CYPS,Supplies and Services,304403,Equipment and Materials,12-Jan-2022,000007924488278,AMZNMktplace,5999,Other consumables,55.92,9.32,46.60
Children and Young Peoples Services,Head of Childrens Social Care,085404,COMF bid Targeted interventions for CYPS,Supplies and Services,304403,Equipment and Materials,12-Jan-2022,000007924488278 - 1,AMZNMktplace,5999,Other consumables,0.04,,0.04
Children and Young Peoples Services,Head of Childrens Social Care,085404,COMF bid Targeted interventions for CYPS,Supplies and Services,304403,Equipment and Materials,12-Jan-2022,000007924488284,AMZNMktplace,5999,Other consumables,167.76,27.96,139.80
Children and Young Peoples Services,Head of Childrens Social Care,085404,COMF bid Targeted interventions for CYPS,Supplies and Services,304403,Equipment and Materials,12-Jan-2022,000007924488284 - 1,AMZNMktplace,5999,Other consumables,0.12,,0.12
Children and Young Peoples Services,Head of Childrens Social Care,085404,COMF bid Targeted interventions for CYPS,Supplies and Services,304403,Equipment and Materials,12-Jan-2022,000007924488288,AMZNMktplace,5999,Other consumables,78.00,13.04,64.96
Children and Young Peoples Services,Head of Childrens Social Care,085404,COMF bid Targeted interventions for CYPS,Supplies and Services,304403,Equipment and Materials,12-Jan-2022,000007924488292,AMZNMktplace,5999,Other consumables,64.26,10.78,53.48
Children and Young Peoples Services,Head of Childrens Social Care,085404,COMF bid Targeted interventions for CYPS,Supplies and Services,304403,Equipment and Materials,12-Jan-2022,000007924488296,AMZNMktplace,5999,Other consumables,4.59,0.77,3.82
Children and Young Peoples Services,Head of Childrens Social Care,085404,COMF bid Targeted interventions for CYPS,Supplies and Services,304403,Equipment and Materials,12-Jan-2022,000007924488300,AMZNMktplace,5999,Other consumables,45.20,0.00,45.20
Dedicated Schools Grant BG0015,DSG Schools Block,417606,Greenfield Community College 004176 - Visual Arts,Supplies and Services,304403,Equipment and Materials,12-Jan-2022,000007924488308,AMZNMktplace,5999,Other consumables,72.07,12.03,60.04
Regeneration Economy and Growth,Culture Sport and Tourism,054775,Durham Town Hall 054775,Supplies and Services,304252,Equipment and Materials,12-Jan-2022,000007924488332,First Choice Catering,5046,Equipment-repairsserviceinsurance,89.30,14.88,74.42
Children and Young Peoples Services,Head of Childrens Social Care,085332,Middlestone Moor CU,Supplies and Services,304999,Equipment and Materials,12-Jan-2022,000007924488350,PAYPAL MAGICTOYSHO ON,5945,Misc equipment tools and materials,20.99,0.00,20.99
Children and Young Peoples Services,Head of Childrens Social Care,085332,Middlestone Moor CU,Supplies and Services,324117,Provisions E324,12-Jan-2022,000007924488354,HOME BARGAINS SPENNYMO,5251,Catering costs - provisions,15.73,0.00,15.73
Children and Young Peoples Services,Head of Childrens Social Care,085334,West Rainton Satelite Home,Supplies and Services,324117,Provisions E324,12-Jan-2022,000007924488402,TESCO STORES 2371,5411,Catering costs - provisions,70.22,0.00,70.22
Children and Young Peoples Services,Head of Childrens Social Care,085341,High Etherley Satelite Home,Supplies and Services,328041,Clothing uniforms and laundry E328,12-Jan-2022,000007924488454,TK MAXX,5331,Clothing uniforms and laundry,112.11,0.00,112.11
Regeneration Economy and Growth,Development and Housing,031576,B& B - Temp Accom,Transport,235057,Public Transport,12-Jan-2022,000007924488582,National Express Limit,4131,Staff travelling,38.00,0.00,38.00
Children and Young Peoples Services,Head of Early Help Inclusion & Vulnerable Children.,085952,Secure Education,Supplies and Services,304403,Equipment and Materials,12-Jan-2022,000007924488600,AMZNMktplace,5999,Other consumables,37.02,0.00,37.02
Children and Young Peoples Services,Head of Early Help Inclusion & Vulnerable Children.,085957,Secure Management,Supplies and Services,304403,Equipment and Materials,12-Jan-2022,000007924488616,AMZNMKTPLACE AMAZON.CO,5999,Other consumables,33.98,5.66,28.32
Children and Young Peoples Services,Head of Early Help Inclusion & Vulnerable Children.,085957,Secure Management,Supplies and Services,304403,Equipment and Materials,12-Jan-2022,000007924488618,AMZNMKTPLACE AMAZON.CO,5999,Other consumables,199.00,33.17,165.83
Children and Young Peoples Services,Head of Early Help Inclusion & Vulnerable Children.,085957,Secure Management,Supplies and Services,304403,Equipment and Materials,12-Jan-2022,000007924488622,AMZNMKTPLACE AMAZON.CO,5999,Other consumables,199.00,33.17,165.83
Children and Young Peoples Services,Head of Early Help Inclusion & Vulnerable Children.,085957,Secure Management,Supplies and Services,384999,Miscellaneous Expenses,12-Jan-2022,000007924488626,Amazon.co.uk 4V44G3BA5,5969,Other expenses,32.00,5.34,26.66
Children and Young Peoples Services,Head of Early Help Inclusion & Vulnerable Children.,085957,Secure Management,Supplies and Services,304403,Equipment and Materials,12-Jan-2022,000007924488630,AMZNMKTPLACE AMAZON.CO,5999,Other consumables,65.88,10.98,54.90
Children and Young Peoples Services,Head of Early Help Inclusion & Vulnerable Children.,085957,Secure Management,Supplies and Services,304403,Equipment and Materials,12-Jan-2022,000007924488630 - 1,AMZNMKTPLACE AMAZON.CO,5999,Other consumables,0.06,,0.06
Children and Young Peoples Services,Head of Early Help Inclusion & Vulnerable Children.,085956,Lumley,Supplies and Services,328041,Clothing uniforms and laundry E328,12-Jan-2022,000007924488638,PRETTYLITTLETHING.COM,5691,Clothing uniforms and laundry,-31.00,0.00,-31.00
Neighbourhoods and Climate Change,Environmental Services,026591,C&G - Hardwick Park,Supplies and Services,332047,Printing Stationery and Gen Off Exps,12-Jan-2022,000007924489040,AMZNMKTPLACE AMAZON.CO,5999,Stationery,98.94,16.50,82.44
Adult and Health Services,Head of Adults,052953,Training - Social Work,Third Party Payments,430100,Rendered by Private Contractors,12-Jan-2022,000007924489052,WWW.PMGLTD.CO.UK,7399,Payments to sub-contractors,414.00,0.00,414.00
Regeneration Economy and Growth,Development and Housing,030771,Durham Advance Flexible Fund,Supplies and Services,348037,Subsistence E348,12-Jan-2022,000007924489096,Coffee Pronto,5814,Subsistence,3.90,0.00,3.90
Regeneration Economy and Growth,Development and Housing,031623,Rough Sleeping,Transport,235057,Public Transport,12-Jan-2022,000007924489106,Airpay 60891859-Blueli,4121,Staff travelling,42.35,0.00,42.35
Regeneration Economy and Growth,Development and Housing,030771,Durham Advance Flexible Fund,Transport,235057,Public Transport,12-Jan-2022,000007924489130,WWW.GONORTHEAST.CO.UK,4111,Staff travelling,4.50,0.00,4.50
Regeneration Economy and Growth,Development and Housing,030771,Durham Advance Flexible Fund,Transport,235057,Public Transport,12-Jan-2022,000007924489136,WWW.GONORTHEAST.CO.UK,4111,Staff travelling,4.50,0.00,4.50
Children and Young Peoples Services,Head of Early Help Inclusion & Vulnerable Children.,085957,Secure Management,Supplies and Services,304403,Equipment and Materials,12-Jan-2022,000007924489146,AMZNMktplace,5999,Other consumables,9.20,1.53,7.67
Children and Young Peoples Services,Head of Early Help Inclusion & Vulnerable Children.,085957,Secure Management,Supplies and Services,324117,Provisions E324,12-Jan-2022,000007924489152,TESCO STORES 6329,5411,Catering costs - provisions,48.22,0.00,48.22
Neighbourhoods and Climate Change,Environmental Services,010919,C&G - Countryside Site Management,Third Party Payments,430100,Rendered by Private Contractors,12-Jan-2022,000007924489184,S&A BUILDERS MERCHANTS,5039,Payments to sub-contractors,62.34,10.39,51.95
Neighbourhoods and Climate Change,Environmental Services,010919,C&G - Countryside Site Management,Supplies and Services,304403,Equipment and Materials,12-Jan-2022,000007924489188,MAXWELLS D I Y,5231,Other consumables,8.00,0.00,8.00
Neighbourhoods and Climate Change,Environmental Services,031238,North Pennines - Tees Swale,Supplies and Services,304999,Equipment and Materials,12-Jan-2022,000007924489204,MYERS BUILDING SUPPLIE,5211,Misc equipment tools and materials,398.38,0.00,398.38
Children and Young Peoples Services,Head of Childrens Social Care,085331,New Lea Childrens Home,Supplies and Services,324117,Provisions E324,12-Jan-2022,000007924489250,COOPLANDS BAKERY,5462,Catering costs - provisions,4.15,0.00,4.15
Children and Young Peoples Services,Head of Childrens Social Care,085331,New Lea Childrens Home,Supplies and Services,324117,Provisions E324,12-Jan-2022,000007924489254,COOPLANDS BAKERY,5462,Catering costs - provisions,2.40,0.00,2.40
Children and Young Peoples Services,Head of Childrens Social Care,085331,New Lea Childrens Home,Supplies and Services,304999,Equipment and Materials,12-Jan-2022,000007924489258,HOME BARGAINS,5251,Misc equipment tools and materials,7.05,0.00,7.05
Dedicated Schools Grant BG0015,DSG Schools Block,418517,Belmont Community School 004185 - Pupil Premium,Supplies and Services,304403,Equipment and Materials,12-Jan-2022,000007924489340,SHOE ZONE (INTERNET),5661,Other consumables,16.98,2.83,14.15
Dedicated Schools Grant BG0015,DSG Schools Block,418517,Belmont Community School 004185 - Pupil Premium,Supplies and Services,304403,Equipment and Materials,12-Jan-2022,000007924489340 - 1,SHOE ZONE (INTERNET),5661,Other consumables,14.99,,14.99
Dedicated Schools Grant BG0015,DSG Schools Block,418516,Belmont Community School 004185 - Non Curriculum,Supplies and Services,384073,Miscellaneous Expenses,12-Jan-2022,000007924489342,TESCO STORES 2371,5411,Catering - meetings,24.35,0.00,24.35
Children and Young Peoples Services,Head of Childrens Social Care,085347,Solo Home The Manse,Supplies and Services,304259,Equipment and Materials,12-Jan-2022,000007924489376,AMZNMKTPLACE AMAZON.CO,5999,Equipment-purchase and rental,259.99,43.33,216.66
Children and Young Peoples Services,Head of Childrens Social Care,085347,Solo Home The Manse,Supplies and Services,304259,Equipment and Materials,12-Jan-2022,000007924489378,AMZNMKTPLACE AMAZON.CO,5999,Equipment-purchase and rental,105.99,17.67,88.32
Children and Young Peoples Services,Head of Childrens Social Care,085347,Solo Home The Manse,Supplies and Services,304259,Equipment and Materials,12-Jan-2022,000007924489384,AMZNMKTPLACE AMAZON.CO,5999,Equipment-purchase and rental,119.98,20.00,99.98
Children and Young Peoples Services,Head of Early Help Inclusion & Vulnerable Children.,088104,BA/BC/Crook Intensive Family Support Team,Supplies and Services,384302,Miscellaneous Expenses,12-Jan-2022,000007924489386,AMZNMKTPLACE AMAZON.CO,5999,Activity expenses,54.90,9.15,45.75
Children and Young Peoples Services,Head of Early Help Inclusion & Vulnerable Children.,088104,BA/BC/Crook Intensive Family Support Team,Supplies and Services,384302,Miscellaneous Expenses,12-Jan-2022,000007924489386 - 1,AMZNMKTPLACE AMAZON.CO,5999,Activity expenses,0.05,,0.05
Children and Young Peoples Services,Head of Early Help Inclusion & Vulnerable Children.,088104,BA/BC/Crook Intensive Family Support Team,Supplies and Services,384302,Miscellaneous Expenses,12-Jan-2022,000007924489388,AMZNMKTPLACE AMAZON.CO,5999,Activity expenses,32.94,5.49,27.45
Children and Young Peoples Services,Head of Early Help Inclusion & Vulnerable Children.,088104,BA/BC/Crook Intensive Family Support Team,Supplies and Services,384302,Miscellaneous Expenses,12-Jan-2022,000007924489388 - 1,AMZNMKTPLACE AMAZON.CO,5999,Activity expenses,0.03,,0.03
Children and Young Peoples Services,Head of Childrens Social Care,085347,Solo Home The Manse,Supplies and Services,304259,Equipment and Materials,12-Jan-2022,000007924489394,Amazon.co.uk 7Y4AD3X35,5969,Equipment-purchase and rental,13.02,2.17,10.85
Children and Young Peoples Services,Head of Childrens Social Care,085347,Solo Home The Manse,Supplies and Services,304259,Equipment and Materials,12-Jan-2022,000007924489394 - 1,Amazon.co.uk 7Y4AD3X35,5969,Equipment-purchase and rental,4.96,,4.96
Children and Young Peoples Services,Head of Early Help Inclusion & Vulnerable Children.,071569,Woodhouse Close Childrens Centre,Supplies and Services,304259,Equipment and Materials,12-Jan-2022,000007924489398,AMZNMktplace,5999,Equipment-purchase and rental,29.97,5.01,24.96
Children and Young Peoples Services,Head of Childrens Social Care,085365,Children Looked After Team 2,Supplies and Services,338045,Services,12-Jan-2022,000007924489400,HM PASSPORT OFFICE,9399,Legal expenses 338045,49.00,0.00,49.00
Children and Young Peoples Services,Head of Childrens Social Care,085367,Children Looked After Team 4,Supplies and Services,338045,Services,12-Jan-2022,000007924489404,HM PASSPORT OFFICE,9399,Legal expenses 338045,49.00,0.00,49.00
Children and Young Peoples Services,Head of Childrens Social Care,085333,Coxhoe Satelite Home,Supplies and Services,324117,Provisions E324,12-Jan-2022,000007924489484,ASDA STORES LTD 4313,5411,Catering costs - provisions,67.00,0.00,67.00
Children and Young Peoples Services,Head of Childrens Social Care,085333,Coxhoe Satelite Home,Supplies and Services,304403,Equipment and Materials,12-Jan-2022,000007924489490,SumUp Gary Bolton Be,5999,Other consumables,370.00,0.00,370.00
Children and Young Peoples Services,Head of Childrens Social Care,085363,Childrens Permanence Team,Supplies and Services,338045,Services,12-Jan-2022,000007924489590,SUNDERLAND CC,9399,Legal expenses 338045,44.00,0.00,44.00
Children and Young Peoples Services,Head of Childrens Social Care,085363,Childrens Permanence Team,Supplies and Services,338045,Services,12-Jan-2022,000007924489594,DARLINGTON BC INTERNET,9399,Legal expenses 338045,11.00,0.00,11.00
Neighbourhoods and Climate Change,Environmental Services,010301,C&G - North Grounds Maintenance,Supplies and Services,304403,Equipment and Materials,12-Jan-2022,000007924489744,BESCOL,5231,Other consumables,29.70,0.00,29.70
Children and Young Peoples Services,Head of Childrens Social Care,085351,Framwellgate Moor CU,Supplies and Services,324117,Provisions E324,12-Jan-2022,000007924489806,ASDA STORES LTD 4313,5411,Catering costs - provisions,22.00,0.00,22.00
Children and Young Peoples Services,Head of Childrens Social Care,085351,Framwellgate Moor CU,Employees,040149,Recruitment Instruction and Training,12-Jan-2022,000007924489812,ACE MOTORCYCLE TRAININ,8299,Training-all costs,30.00,0.00,30.00
Regeneration Economy and Growth,Culture Sport and Tourism,054233,Bishop Auckland Town Hall Library,Supplies and Services,324117,Provisions E324,12-Jan-2022,000007924489906,HERON FOODS,5411,Catering costs - provisions,7.50,0.00,7.50
Children and Young Peoples Services,Head of Childrens Social Care,085334,West Rainton Satelite Home,Supplies and Services,348037,Subsistence E348,12-Jan-2022,000007924489960,INFINATE AIR CAFE- SWE,5812,Subsistence,11.80,0.00,11.80
Children and Young Peoples Services,Head of Childrens Social Care,085334,West Rainton Satelite Home,Supplies and Services,304999,Equipment and Materials,12-Jan-2022,000007924489964,WWW.INFINITEAIR.CO.UK,7991,Misc equipment tools and materials,17.95,0.00,17.95
Resources BK0010,Procurement Sales & Business Services,065500,Business Support - Management,Supplies and Services,304403,Equipment and Materials,12-Jan-2022,000007924490002,BOOKWHEN- SOFTWARE SUB,5734,Other consumables,82.80,0.00,82.80
Regeneration Economy and Growth,Corporate Property and Land,030691,Catering - Durham Dales Centre,Supplies and Services,324117,Provisions E324,12-Jan-2022,000007924623966,JR HOLLAND FOODSERVICE,5499,Catering costs - provisions,96.79,0.00,96.79
Adult and Health Services,Head of Adults,055643,Hawthorn House LD Respite Unit,Supplies and Services,324117,Provisions E324,12-Jan-2022,000007924623978,JR HOLLAND FOODSERVICE,5499,Catering costs - provisions,20.05,0.00,20.05
Adult and Health Services,Head of Adults,055643,Hawthorn House LD Respite Unit,Supplies and Services,324117,Provisions E324,12-Jan-2022,000007924623982,JR HOLLAND FOODSERVICE,5499,Catering costs - provisions,11.50,0.00,11.50
Children and Young Peoples Services,Head of Childrens Social Care,085404,COMF bid Targeted interventions for CYPS,Supplies and Services,304403,Equipment and Materials,12-Jan-2022,000007928113934,AMZNMKTPLACE AMAZON.CO,5999,Other consumables,271.20,45.28,225.92
Children and Young Peoples Services,Head of Childrens Social Care,085342,16 Hickstead Rise (previously 9 Cedar Ave),Supplies and Services,324117,Provisions E324,12-Jan-2022,000007928114032,SAINSBURYS S/MKTS,5411,Catering costs - provisions,162.02,0.00,162.02
Neighbourhoods and Climate Change,Environmental Services,010367,C&G - South Grounds Maintenance,Supplies and Services,304221,Equipment and Materials,12-Jan-2022,000007928114116,SCREWFIX DIRECT,5211,Direct materials,24.98,4.16,20.82
Children and Young Peoples Services,Head of Early Help Inclusion & Vulnerable Children.,085957,Secure Management,Supplies and Services,304403,Equipment and Materials,12-Jan-2022,000007928114138,AMZNMKTPLACE AMAZON.CO,5999,Other consumables,30.00,5.00,25.00
Children and Young Peoples Services,Head of Early Help Inclusion & Vulnerable Children.,085957,Secure Management,Supplies and Services,304403,Equipment and Materials,12-Jan-2022,000007928114138 - 1,AMZNMKTPLACE AMAZON.CO,5999,Other consumables,21.88,,21.88
Children and Young Peoples Services,Head of Early Help Inclusion & Vulnerable Children.,085957,Secure Management,Supplies and Services,304403,Equipment and Materials,12-Jan-2022,000007928114140,AMZNMKTPLACE AMAZON.CO,5999,Other consumables,109.47,18.27,91.20
Regeneration Economy and Growth,Development and Housing,030772,CLLD South,Supplies and Services,304259,Equipment and Materials,12-Jan-2022,000007928114152,Durham County CNCL,9399,Equipment-purchase and rental,11.00,0.00,11.00
Neighbourhoods and Climate Change,Environmental Services,010551,Fleet - Chilton Fleet,Transport,215013,Running Costs of Vehicles,12-Jan-2022,000007928114200,DVLA VEHICLE TAX,9311,Vehicle Excise Duty (VED),302.50,0.00,302.50
Neighbourhoods and Climate Change,Environmental Services,010561,Fleet - Morrison Busty Fleet,Transport,215013,Running Costs of Vehicles,12-Jan-2022,000007928114204,DVLA VEHICLE TAX,9311,Vehicle Excise Duty (VED),302.50,0.00,302.50
Neighbourhoods and Climate Change,Environmental Services,010864,Fleet - Hackworth Road Fleet,Transport,215013,Running Costs of Vehicles,12-Jan-2022,000007928114206,DVLA VEHICLE TAX,9311,Vehicle Excise Duty (VED),302.50,0.00,302.50
Neighbourhoods and Climate Change,Environmental Services,010561,Fleet - Morrison Busty Fleet,Transport,215013,Running Costs of Vehicles,12-Jan-2022,000007928114210,DVLA VEHICLE TAX,9311,Vehicle Excise Duty (VED),302.50,0.00,302.50
Neighbourhoods and Climate Change,Environmental Services,010864,Fleet - Hackworth Road Fleet,Transport,215013,Running Costs of Vehicles,12-Jan-2022,000007928114212,DVLA VEHICLE TAX,9311,Vehicle Excise Duty (VED),302.50,0.00,302.50
Neighbourhoods and Climate Change,Environmental Services,010561,Fleet - Morrison Busty Fleet,Transport,215013,Running Costs of Vehicles,12-Jan-2022,000007928114218,DVLA VEHICLE TAX,9311,Vehicle Excise Duty (VED),302.50,0.00,302.50
Neighbourhoods and Climate Change,Environmental Services,010561,Fleet - Morrison Busty Fleet,Transport,215013,Running Costs of Vehicles,12-Jan-2022,000007928114226,DVLA VEHICLE TAX,9311,Vehicle Excise Duty (VED),302.50,0.00,302.50
Neighbourhoods and Climate Change,Environmental Services,010561,Fleet - Morrison Busty Fleet,Transport,215013,Running Costs of Vehicles,12-Jan-2022,000007928114230,DVLA VEHICLE TAX,9311,Vehicle Excise Duty (VED),277.50,0.00,277.50
Neighbourhoods and Climate Change,Environmental Services,010864,Fleet - Hackworth Road Fleet,Transport,215013,Running Costs of Vehicles,12-Jan-2022,000007928114234,DVLA VEHICLE TAX,9311,Vehicle Excise Duty (VED),302.50,0.00,302.50
Neighbourhoods and Climate Change,Environmental Services,010561,Fleet - Morrison Busty Fleet,Transport,215013,Running Costs of Vehicles,12-Jan-2022,000007928114238,DVLA VEHICLE TAX,9311,Vehicle Excise Duty (VED),302.50,0.00,302.50
Neighbourhoods and Climate Change,Environmental Services,010561,Fleet - Morrison Busty Fleet,Transport,215013,Running Costs of Vehicles,12-Jan-2022,000007928114244,DVLA VEHICLE TAX,9311,Vehicle Excise Duty (VED),302.50,0.00,302.50
Neighbourhoods and Climate Change,Environmental Services,010551,Fleet - Chilton Fleet,Transport,215013,Running Costs of Vehicles,12-Jan-2022,000007928114252,DVLA VEHICLE TAX,9311,Vehicle Excise Duty (VED),302.50,0.00,302.50
Neighbourhoods and Climate Change,Environmental Services,026591,C&G - Hardwick Park,Supplies and Services,332047,Printing Stationery and Gen Off Exps,12-Jan-2022,000007928114302,AMZNMKTPLACE AMAZON.CO,5999,Stationery,9.00,0.00,9.00
Children and Young Peoples Services,Head of Early Help Inclusion & Vulnerable Children.,085957,Secure Management,Supplies and Services,304403,Equipment and Materials,12-Jan-2022,000007928114364,AMZNMKTPLACE AMAZON.CO,5999,Other consumables,16.66,2.78,13.88
Children and Young Peoples Services,Head of Early Help Inclusion & Vulnerable Children.,085957,Secure Management,Supplies and Services,304403,Equipment and Materials,12-Jan-2022,000007928114370,AMZNMKTPLACE AMAZON.CO,5999,Other consumables,30.00,5.00,25.00
Children and Young Peoples Services,Head of Early Help Inclusion & Vulnerable Children.,085957,Secure Management,Supplies and Services,304403,Equipment and Materials,12-Jan-2022,000007928114370 - 1,AMZNMKTPLACE AMAZON.CO,5999,Other consumables,25.98,,25.98
Children and Young Peoples Services,Head of Childrens Social Care,085331,New Lea Childrens Home,Supplies and Services,324117,Provisions E324,12-Jan-2022,000007928114444,WM MORRISONS STORE,5411,Catering costs - provisions,51.44,0.00,51.44
Children and Young Peoples Services,Head of Childrens Social Care,085331,New Lea Childrens Home,Supplies and Services,348037,Subsistence E348,12-Jan-2022,000007928114448,GREGGS,5812,Subsistence,5.40,0.00,5.40
Children and Young Peoples Services,Head of Childrens Social Care,085333,Coxhoe Satelite Home,Supplies and Services,324117,Provisions E324,12-Jan-2022,000007928114586,SAINSBURY`S S/MKT,5411,Catering costs - provisions,13.40,0.00,13.40
Neighbourhoods and Climate Change,Environmental Services,031200,North Pennines Core,Supplies and Services,352001,Conference Expenses,12-Jan-2022,000007928114656,TAN HILL INN,7011,Conferencesseminars fees etc,23.85,0.00,23.85
Neighbourhoods and Climate Change,Environmental Services,031200,North Pennines Core,Supplies and Services,352001,Conference Expenses,12-Jan-2022,000007928114658,TAN HILL INN,7011,Conferencesseminars fees etc,8.55,0.00,8.55
Children and Young Peoples Services,Head of Childrens Social Care,085363,Childrens Permanence Team,Supplies and Services,338045,Services,12-Jan-2022,000007928114688,Durham County CNCL,9399,Legal expenses 338045,22.00,0.00,22.00
Children and Young Peoples Services,Head of Childrens Social Care,085334,West Rainton Satelite Home,Transport,215995,Running Costs of Vehicles,12-Jan-2022,000007928114906,GULF WEST RAINTON,5541,Vehicle running expenses,67.90,0.00,67.90
Children and Young Peoples Services,Head of Childrens Social Care,085334,West Rainton Satelite Home,Supplies and Services,348037,Subsistence E348,12-Jan-2022,000007928114910,MCDONALDS,5814,Subsistence,2.38,0.00,2.38
Children and Young Peoples Services,Head of Childrens Social Care,085334,West Rainton Satelite Home,Supplies and Services,348037,Subsistence E348,12-Jan-2022,000007928114912,MCDONALDS,5814,Subsistence,11.56,0.00,11.56
Children and Young Peoples Services,Head of Childrens Social Care,085334,West Rainton Satelite Home,Supplies and Services,384999,Miscellaneous Expenses,12-Jan-2022,000007928114914,DEERNESS GYMN ACADEMY,7997,Other expenses,5.00,0.00,5.00
Children and Young Peoples Services,Head of Childrens Social Care,085614,Families First Durham West,Supplies and Services,324117,Provisions E324,12-Jan-2022,000007928114952,SAINSBURYS S/MKTS,5411,Catering costs - provisions,8.60,0.00,8.60
Neighbourhoods and Climate Change,Environmental Services,011060,C&G - Hardwick Park Catering,Supplies and Services,324117,Provisions E324,12-Jan-2022,000007928181792,BATLEYS PERTH,5300,Catering costs - provisions,-9.53,0.00,-9.53
Resources BK0010,Digital and Customer Services,065481,Technical Services 065481,Supplies and Services,304403,Equipment and Materials,12-Jan-2022,000007933038138,RS COMPONENTS,5065,Other consumables,319.99,0.00,319.99
Children and Young Peoples Services,Head of Early Help Inclusion & Vulnerable Children.,085957,Secure Management,Supplies and Services,304403,Equipment and Materials,13-Jan-2022,000007924488632,AMZNMktplace,5999,Other consumables,25.90,4.32,21.58
Children and Young Peoples Services,Head of Early Help Inclusion & Vulnerable Children.,085957,Secure Management,Supplies and Services,328041,Clothing uniforms and laundry E328,13-Jan-2022,000007924489158,Nike GBP,5655,Clothing uniforms and laundry,39.95,0.00,39.95
Children and Young Peoples Services,Head of Childrens Social Care,085341,High Etherley Satelite Home,Supplies and Services,324117,Provisions E324,13-Jan-2022,000007928113848,TESCO STORES 6329,5411,Catering costs - provisions,17.70,0.00,17.70
Children and Young Peoples Services,Head of Education and Skills,071801,Selby Cottage Childcare Centre,Supplies and Services,304403,Equipment and Materials,13-Jan-2022,000007928113862,AMZNMktplace,5999,Other consumables,15.50,2.58,12.92
Children and Young Peoples Services,Head of Education and Skills,071801,Selby Cottage Childcare Centre,Supplies and Services,304403,Equipment and Materials,13-Jan-2022,000007928113870,AMZNMKTPLACE AMAZON.CO,5999,Other consumables,39.98,6.66,33.32
Children and Young Peoples Services,Head of Education and Skills,071801,Selby Cottage Childcare Centre,Supplies and Services,304403,Equipment and Materials,13-Jan-2022,000007928113876,AMZNMKTPLACE AMAZON.CO,5999,Other consumables,62.64,10.44,52.20
Children and Young Peoples Services,Head of Education and Skills,071801,Selby Cottage Childcare Centre,Supplies and Services,304403,Equipment and Materials,13-Jan-2022,000007928113876 - 1,AMZNMKTPLACE AMAZON.CO,5999,Other consumables,0.06,,0.06
Children and Young Peoples Services,Head of Education and Skills,071801,Selby Cottage Childcare Centre,Supplies and Services,324117,Provisions E324,13-Jan-2022,000007928113882,ASDA GROCERIES ONLINE,5411,Catering costs - provisions,120.39,0.00,120.39
Children and Young Peoples Services,Head of Education and Skills,071801,Selby Cottage Childcare Centre,Supplies and Services,324117,Provisions E324,13-Jan-2022,000007928113890,TESCO STORES 2278,5411,Catering costs - provisions,6.55,0.00,6.55
Children and Young Peoples Services,Head of Education and Skills,071801,Selby Cottage Childcare Centre,Supplies and Services,324117,Provisions E324,13-Jan-2022,000007928113892,TESCO STORES 2278,5411,Catering costs - provisions,4.20,0.00,4.20
Children and Young Peoples Services,Head of Education and Skills,071801,Selby Cottage Childcare Centre,Supplies and Services,324117,Provisions E324,13-Jan-2022,000007928113900,ASDA GROCERIES ONLINE,5411,Catering costs - provisions,-8.74,0.00,-8.74
Regeneration Economy and Growth,Transport and Contracted Services,032250,Traffic Signals and UTMC 032250,Supplies and Services,304403,Equipment and Materials,13-Jan-2022,000007928113922,WWW.TINYBOX.COM,5947,Other consumables,87.36,0.00,87.36
Adult and Health Services,Commissioning inc Supporting People,052100,Supporting the Provider Market,Supplies and Services,304999,Equipment and Materials,13-Jan-2022,000007928113942,WESTMINSTER INSIGHT,5815,Misc equipment tools and materials,351.00,0.00,351.00
Adult and Health Services,Commissioning inc Supporting People,052100,Supporting the Provider Market,Supplies and Services,304999,Equipment and Materials,13-Jan-2022,000007928113946,WESTMINSTER INSIGHT,5815,Misc equipment tools and materials,351.00,0.00,351.00
Children and Young Peoples Services,Head of Childrens Social Care,085404,COMF bid Targeted interventions for CYPS,Supplies and Services,344033,Telephones,13-Jan-2022,000007928113950,ZOOM.US 888-799-9666,4814,Telephones general-all costs,119.90,0.00,119.90
Resources BK0010,Legal & Democratic Services,067910,Democratic Representation 067910,Supplies and Services,304403,Equipment and Materials,13-Jan-2022,000007928113954,AMZNMKTPLACE AMAZON.CO,5999,Other consumables,11.99,2.00,9.99
Resources BK0010,Digital and Customer Services,065432,Web Development Group,Supplies and Services,342033,Computers and Communications,13-Jan-2022,000007928113960,POWERMAPPER,7372,Computer hardware,238.80,0.00,238.80
Regeneration Economy and Growth,Development and Housing,030773,CLLD North,Supplies and Services,304259,Equipment and Materials,13-Jan-2022,000007928113988,M and M Direct Ltd,5941,Equipment-purchase and rental,56.98,0.00,56.98
Regeneration Economy and Growth,Development and Housing,030773,CLLD North,Supplies and Services,328041,Clothing uniforms and laundry E328,13-Jan-2022,000007928113992,BOOHOO.COM,5691,Clothing uniforms and laundry,46.29,0.00,46.29
Regeneration Economy and Growth,Culture Sport and Tourism,054798,dli Museum - WW1 Education Programme,Supplies and Services,304259,Equipment and Materials,13-Jan-2022,000007928114010,AMZNMKTPLACE AMAZON.CO,5999,Equipment-purchase and rental,-31.47,-5.25,-26.22
Regeneration Economy and Growth,Culture Sport and Tourism,030712,VCD - Project Delivery,Supplies and Services,384199,Miscellaneous Expenses,13-Jan-2022,000007928114014,GOOGLE ADS1872075479,7311,Other hired and contracted services,"1,000.00",0.00,1000.00
Regeneration Economy and Growth,Culture Sport and Tourism,030712,VCD - Project Delivery,Supplies and Services,384199,Miscellaneous Expenses,13-Jan-2022,000007928114020,WWW.FIRSTLIGHTOPTICS.C,5946,Other hired and contracted services,256.95,42.83,214.12
Children and Young Peoples Services,Head of Childrens Social Care,085334,West Rainton Satelite Home,Supplies and Services,348037,Subsistence E348,13-Jan-2022,000007928114078,BREWERS FAYRE 41512455,5812,Subsistence,41.43,0.00,41.43
Children and Young Peoples Services,Head of Childrens Social Care,085334,West Rainton Satelite Home,Supplies and Services,348037,Subsistence E348,13-Jan-2022,000007928114082,BREWERS FAYRE 41512455,5812,Subsistence,14.27,0.00,14.27
Children and Young Peoples Services,Head of Childrens Social Care,085334,West Rainton Satelite Home,Supplies and Services,324117,Provisions E324,13-Jan-2022,000007928114084,ASDA STORES LTD 4313,5411,Catering costs - provisions,20.20,0.00,20.20
Children and Young Peoples Services,Head of Childrens Social Care,085334,West Rainton Satelite Home,Supplies and Services,328041,Clothing uniforms and laundry E328,13-Jan-2022,000007928114086,NEXT RETAIL LTD,5651,Clothing uniforms and laundry,14.10,0.00,14.10
Children and Young Peoples Services,Head of Childrens Social Care,085334,West Rainton Satelite Home,Supplies and Services,328041,Clothing uniforms and laundry E328,13-Jan-2022,000007928114088,RIVER ISLAND 820,5691,Clothing uniforms and laundry,18.70,0.00,18.70
Children and Young Peoples Services,Head of Childrens Social Care,085334,West Rainton Satelite Home,Supplies and Services,304999,Equipment and Materials,13-Jan-2022,000007928114090,SUPERDRUG STORES PLC,5912,Misc equipment tools and materials,4.99,0.00,4.99
Regeneration Economy and Growth,Development and Housing,031623,Rough Sleeping,Transport,235073,Public Transport,13-Jan-2022,000007928114108,BLUELINE TAXIS,4121,Travel-clients/students/children,9.60,0.00,9.60
Neighbourhoods and Climate Change,Environmental Services,031249,North Pennines - Nature for Climate,Supplies and Services,304259,Equipment and Materials,13-Jan-2022,000007928114114,OM Digital Solutions G,5732,Equipment-purchase and rental,369.00,0.00,369.00
Children and Young Peoples Services,Head of Early Help Inclusion & Vulnerable Children.,088104,BA/BC/Crook Intensive Family Support Team,Supplies and Services,304259,Equipment and Materials,13-Jan-2022,000007928114126,AMZNMktplace,5999,Equipment-purchase and rental,26.58,4.44,22.14
Children and Young Peoples Services,Head of Early Help Inclusion & Vulnerable Children.,074000,National Supporting Families Programme,Transfer Payments,525033,Other,13-Jan-2022,000007928114168,Amazon.co.uk 4Z3X73GU5,5969,Grants to individuals,119.88,19.98,99.90
Children and Young Peoples Services,Head of Early Help Inclusion & Vulnerable Children.,074000,National Supporting Families Programme,Transfer Payments,525033,Other,13-Jan-2022,000007928114168 - 1,Amazon.co.uk 4Z3X73GU5,5969,Grants to individuals,0.06,,0.06
Children and Young Peoples Services,Head of Early Help Inclusion & Vulnerable Children.,074000,National Supporting Families Programme,Transfer Payments,525033,Other,13-Jan-2022,000007928114172,AMZNMktplace,5999,Grants to individuals,15.84,2.64,13.20
Children and Young Peoples Services,Head of Early Help Inclusion & Vulnerable Children.,074000,National Supporting Families Programme,Transfer Payments,525033,Other,13-Jan-2022,000007928114172 - 1,AMZNMktplace,5999,Grants to individuals,0.06,,0.06
Neighbourhoods and Climate Change,Environmental Services,010301,C&G - North Grounds Maintenance,Supplies and Services,304403,Equipment and Materials,13-Jan-2022,000007928114312,BESCOL,5231,Other consumables,36.00,0.00,36.00
Regeneration Economy and Growth,Development and Housing,030771,Durham Advance Flexible Fund,Transport,235057,Public Transport,13-Jan-2022,000007928114346,PRINCE BISHOP SHOPPING,7523,Staff travelling,2.10,0.00,2.10
Children and Young Peoples Services,Head of Early Help Inclusion & Vulnerable Children.,071445,Chester le Street One Point Hub,Supplies and Services,304403,Equipment and Materials,13-Jan-2022,000007928114356,AMZNMktplace,5999,Other consumables,29.98,5.00,24.98
Children and Young Peoples Services,Head of Early Help Inclusion & Vulnerable Children.,085957,Secure Management,Supplies and Services,304403,Equipment and Materials,13-Jan-2022,000007928114374,AMZNMKTPLACE AMAZON.CO,5999,Other consumables,9.99,1.67,8.32
Neighbourhoods and Climate Change,Environmental Services,010367,C&G - South Grounds Maintenance,Supplies and Services,304221,Equipment and Materials,13-Jan-2022,000007928114400,CARRS BILLINGTON SPENN,5599,Direct materials,288.20,0.00,288.20
Neighbourhoods and Climate Change,Environmental Services,031228,North Pennines - Fellfoot Forward,Supplies and Services,304403,Equipment and Materials,13-Jan-2022,000007928114404,TIMPSON LTD,5999,Other consumables,24.00,0.00,24.00
Children and Young Peoples Services,Head of Education and Skills,073911,Pupil Premium,Third Party Payments,430100,Rendered by Private Contractors,13-Jan-2022,000007928114452,EB KNOW ME TO TEACH M,7399,Payments to sub-contractors,375.00,0.00,375.00
Children and Young Peoples Services,Head of Education and Skills,073911,Pupil Premium,Third Party Payments,430100,Rendered by Private Contractors,13-Jan-2022,000007928114458,EB KNOW ME TO TEACH M,7399,Payments to sub-contractors,375.00,0.00,375.00
Children and Young Peoples Services,Head of Education and Skills,073911,Pupil Premium,Third Party Payments,430100,Rendered by Private Contractors,13-Jan-2022,000007928114462,EB KNOW ME TO TEACH M,7399,Payments to sub-contractors,125.00,0.00,125.00
Children and Young Peoples Services,Head of Education and Skills,073911,Pupil Premium,Third Party Payments,430100,Rendered by Private Contractors,13-Jan-2022,000007928114468,EB KNOW ME TO TEACH M,7399,Payments to sub-contractors,250.00,0.00,250.00
Regeneration Economy and Growth,Development and Housing,030554,International Relations 030554,Transport,235057,Public Transport,13-Jan-2022,000007928114518,PRINCE BISHOP SHOPPING,7523,Staff travelling,2.10,0.00,2.10
Children and Young Peoples Services,Head of Early Help Inclusion & Vulnerable Children.,088104,BA/BC/Crook Intensive Family Support Team,Supplies and Services,384302,Miscellaneous Expenses,13-Jan-2022,000007928114522,Amazon.co.uk HW1J020P5,5969,Activity expenses,9.44,0.00,9.44
Children and Young Peoples Services,Head of Early Help Inclusion & Vulnerable Children.,088104,BA/BC/Crook Intensive Family Support Team,Supplies and Services,384302,Miscellaneous Expenses,13-Jan-2022,000007928114526,AMZNMKTPLACE AMAZON.CO,5999,Activity expenses,69.93,11.69,58.24
Children and Young Peoples Services,Head of Early Help Inclusion & Vulnerable Children.,088104,BA/BC/Crook Intensive Family Support Team,Supplies and Services,384302,Miscellaneous Expenses,13-Jan-2022,000007928114528,Amazon.co.uk AP38S4AI5,5969,Activity expenses,9.44,0.00,9.44
Children and Young Peoples Services,Head of Early Help Inclusion & Vulnerable Children.,088105,W/Close and Willington Family Centre,Supplies and Services,384302,Miscellaneous Expenses,13-Jan-2022,000007928114532,ASDA GROCERIES ONLINE,5411,Activity expenses,49.23,0.00,49.23
Children and Young Peoples Services,Head of Early Help Inclusion & Vulnerable Children.,088105,W/Close and Willington Family Centre,Supplies and Services,384302,Miscellaneous Expenses,13-Jan-2022,000007928114536,ASDA GROCERIES ONLINE,5411,Activity expenses,101.73,0.00,101.73
Children and Young Peoples Services,Head of Early Help Inclusion & Vulnerable Children.,088108,Spennymoor & Shildon Intensive Family Support Team,Supplies and Services,332047,Printing Stationery and Gen Off Exps,13-Jan-2022,000007928114540,WWW.RYMAN.CO.UK,5943,Stationery,48.92,0.00,48.92
Children and Young Peoples Services,Head of Early Help Inclusion & Vulnerable Children.,088115,Young Parents Programme 088115,Supplies and Services,324117,Provisions E324,13-Jan-2022,000007928114542,ASDA GROCERIES ONLINE,5411,Catering costs - provisions,-10.00,0.00,-10.00
Children and Young Peoples Services,Head of Childrens Social Care,085341,High Etherley Satelite Home,Supplies and Services,384999,Miscellaneous Expenses,13-Jan-2022,000007928114546,Amazon.co.uk UP59U6OQ5,5969,Other expenses,29.99,5.00,24.99
Children and Young Peoples Services,Head of Childrens Social Care,085333,Coxhoe Satelite Home,Supplies and Services,324117,Provisions E324,13-Jan-2022,000007928114590,TESCO STORES 2371,5411,Catering costs - provisions,42.67,0.00,42.67
Children and Young Peoples Services,Head of Childrens Social Care,085333,Coxhoe Satelite Home,Supplies and Services,324117,Provisions E324,13-Jan-2022,000007928114594,TESCO STORES 2371,5411,Catering costs - provisions,81.25,0.00,81.25
Children and Young Peoples Services,Head of Childrens Social Care,085333,Coxhoe Satelite Home,Supplies and Services,324117,Provisions E324,13-Jan-2022,000007928114596,TESCO STORES 2371,5411,Catering costs - provisions,44.30,0.00,44.30
Children and Young Peoples Services,Head of Childrens Social Care,085333,Coxhoe Satelite Home,Supplies and Services,324117,Provisions E324,13-Jan-2022,000007928114602,TESCO STORES 2371,5411,Catering costs - provisions,67.27,0.00,67.27
Adult and Health Services,Head of Adults,055301,Stanley Pathways,Supplies and Services,384999,Miscellaneous Expenses,13-Jan-2022,000007928114606,Amazon.co.uk OT7A206G5,5969,Other expenses,14.99,2.50,12.49
Adult and Health Services,Head of Adults,055301,Stanley Pathways,Supplies and Services,304403,Equipment and Materials,13-Jan-2022,000007928114610,AMZNMktplace,5999,Other consumables,2.98,0.50,2.48
Children and Young Peoples Services,Head of Childrens Social Care,085351,Framwellgate Moor CU,Supplies and Services,304403,Equipment and Materials,13-Jan-2022,000007928114634,AMZNMktplace,5999,Other consumables,4.54,0.76,3.78
Children and Young Peoples Services,Head of Childrens Social Care,085351,Framwellgate Moor CU,Supplies and Services,304403,Equipment and Materials,13-Jan-2022,000007928114640,AMZNMktplace,5999,Other consumables,14.50,2.42,12.08
Children and Young Peoples Services,Head of Childrens Social Care,085351,Framwellgate Moor CU,Supplies and Services,304403,Equipment and Materials,13-Jan-2022,000007928114644,AMZNMktplace,5999,Other consumables,39.19,6.53,32.66
Children and Young Peoples Services,Head of Education and Skills,054640,Durham Learning Resources 054640,Supplies and Services,312009,Newspapers books and periodicals E312,13-Jan-2022,000007928114684,Amazon.co.uk U20AM7Q45,5969,Newspapers books and periodicals,41.58,0.00,41.58
Children and Young Peoples Services,Head of Early Help Inclusion & Vulnerable Children.,085957,Secure Management,Premises,108099,Service Repairs and Maintenance,13-Jan-2022,000007928114738,REPLACEMENT KEYS LTD,5399,General repairs 108099,12.60,2.10,10.50
Children and Young Peoples Services,Head of Early Help Inclusion & Vulnerable Children.,085957,Secure Management,Supplies and Services,384302,Miscellaneous Expenses,13-Jan-2022,000007928114740,Amazon MP3,5735,Activity expenses,0.98,0.16,0.82
Children and Young Peoples Services,Head of Early Help Inclusion & Vulnerable Children.,085957,Secure Management,Supplies and Services,384302,Miscellaneous Expenses,13-Jan-2022,000007928114744,Amazon MP3,5735,Activity expenses,0.98,0.16,0.82
Children and Young Peoples Services,Head of Early Help Inclusion & Vulnerable Children.,085957,Secure Management,Supplies and Services,384302,Miscellaneous Expenses,13-Jan-2022,000007928114746,Amazon MP3,5735,Activity expenses,0.98,0.16,0.82
Children and Young Peoples Services,Head of Early Help Inclusion & Vulnerable Children.,085957,Secure Management,Supplies and Services,384302,Miscellaneous Expenses,13-Jan-2022,000007928114748,Amazon MP3,5735,Activity expenses,0.98,0.16,0.82
Children and Young Peoples Services,Head of Early Help Inclusion & Vulnerable Children.,085957,Secure Management,Supplies and Services,384302,Miscellaneous Expenses,13-Jan-2022,000007928114750,Amazon MP3,5735,Activity expenses,1.96,0.33,1.63
Children and Young Peoples Services,Head of Early Help Inclusion & Vulnerable Children.,085957,Secure Management,Supplies and Services,384302,Miscellaneous Expenses,13-Jan-2022,000007928114752,Amazon MP3,5735,Activity expenses,1.96,0.33,1.63
Children and Young Peoples Services,Head of Early Help Inclusion & Vulnerable Children.,085957,Secure Management,Supplies and Services,384302,Miscellaneous Expenses,13-Jan-2022,000007928114756,Amazon MP3,5735,Activity expenses,13.08,2.18,10.90
Children and Young Peoples Services,Head of Early Help Inclusion & Vulnerable Children.,085957,Secure Management,Supplies and Services,384302,Miscellaneous Expenses,13-Jan-2022,000007928114756 - 1,Amazon MP3,5735,Activity expenses,0.25,,0.25
